{"text_format":"1","workbook":"xlsx","n_sheets":3,"sheets":["report","data","label"],"not_rendered":{"charts":10,"images":0,"macros":1,"external_links":0,"defined_names":60,"comments":0,"pivot_tables":0},"unopened":[],"bounds":{"document_bytes":16777216,"sheet_cells":100000,"rows_first":2000,"rows_last":500,"rows_between":2000,"halvings":0,"cell_chars":16384,"cell_head_chars":4096},"cells_cut":0,"cells_raw":0,"read":"whole","date_system":"1900"}

{"sheet":"report","index":0,"n_rows":116,"n_cols":38,"rows_kept":116,"cut":false,"hidden":false,"merged":[[68,34,74,34],[68,35,74,35],[68,36,74,36],[7,2,11,2],[7,3,11,3],[7,4,11,4],[7,5,11,5],[7,6,11,6],[7,7,11,7],[13,6,24,6],[27,10,32,10],[27,11,32,11],[7,9,11,9],[7,10,11,10],[7,11,11,11],[27,2,31,2],[27,3,31,3],[27,4,31,4],[27,5,31,5],[47,8,52,8],[47,9,52,9],[27,6,31,6],[27,7,31,7],[27,8,31,8],[7,0,11,1],[25,0,25,1],[27,9,32,9],[92,6,96,6],[71,6,75,6],[66,0,66,1],[47,0,52,1],[27,0,31,1],[45,0,45,1],[33,7,44,7],[33,8,44,8],[47,2,52,2],[47,4,52,4],[47,5,52,5],[91,0,95,1],[114,0,115,0],[71,12,75,12],[71,13,75,13],[68,0,74,1],[92,8,96,8],[91,5,91,7],[92,4,96,4],[92,5,96,5],[92,2,96,2],[92,3,96,3],[71,5,75,5],[71,7,75,7],[91,2,91,4],[88,0,89,1],[91,12,96,12],[71,2,75,2],[71,3,75,3],[71,4,75,4],[111,2,111,5],[111,0,113,1],[112,2,113,2],[112,3,113,3],[112,4,113,4],[109,0,109,1],[7,37,11,37],[8,17,11,17],[8,18,11,18],[8,19,11,19],[8,20,11,20],[8,21,11,21],[8,22,11,22],[8,23,11,23],[8,24,11,24],[7,33,7,36],[7,25,7,26],[7,27,7,28],[8,25,11,25],[8,26,11,26],[8,27,11,27],[8,28,11,28],[7,30,11,30],[8,33,11,33],[8,34,11,34],[8,35,11,35],[7,31,11,31],[7,32,11,32],[7,29,11,29],[8,36,11,36],[76,35,87,35],[92,21,96,21],[92,20,96,20],[91,22,91,27],[91,28,96,28],[76,36,87,36],[27,12,32,12],[91,13,96,13],[91,14,96,14],[68,32,74,33],[70,10,70,14],[69,10,69,15],[68,30,75,30],[68,29,75,29],[68,28,75,28],[71,10,75,10],[71,11,75,11],[68,20,68,22],[88,32,88,33],[92,25,96,25],[68,27,75,27],[68,25,75,25],[92,26,96,26],[92,27,96,27],[68,26,75,26],[91,10,95,11],[71,9,75,9],[71,15,75,15],[109,10,109,11],[92,19,96,19],[68,16,68,18],[92,7,96,7],[109,17,110,18],[91,19,91,21],[68,2,68,15],[71,14,75,14],[89,2,89,15],[69,22,75,22],[69,21,75,21],[69,20,75,20],[91,15,96,15],[69,18,75,18],[69,17,75,17],[69,16,75,16],[110,23,110,24],[92,22,96,22],[92,23,96,23],[92,24,96,24],[2,16,2,19],[89,23,89,24],[89,20,89,22],[27,15,32,15],[91,17,95,18],[68,19,75,19],[89,16,89,18],[4,7,4,8],[4,9,4,12],[47,14,52,14],[47,15,52,15],[47,13,52,13],[47,12,52,12],[7,15,11,16],[47,10,52,10],[47,11,52,11],[27,13,32,13],[27,14,32,14],[7,8,11,8],[7,12,11,12],[7,13,11,13],[69,2,69,9],[70,2,70,8],[71,8,75,8],[2,0,2,1],[2,2,2,5],[3,0,3,1],[3,2,3,5],[2,7,2,8],[2,9,2,12],[3,7,3,8],[3,9,3,12],[2,14,2,15],[112,5,113,5],[47,3,52,3],[7,17,7,18],[7,19,7,24],[25,15,25,16],[47,6,52,6],[47,7,52,7],[3,14,3,15],[3,16,3,19],[110,19,110,21],[68,23,69,24],[70,24,75,24],[70,23,75,23]]}
[{"$f":"\"CPU Performance Analysis Report \" & data!C18","v":"CPU Performance Analysis Report 4.2.1"}]
[]
[{"$f":"data!F4","v":"Measured time"},null,{"$f":"data!G4","v":""},null,null,null,null,{"$f":"data!F10","v":"Process no."},null,{"$f":"data!G10","v":""},null,null,null,null,{"$f":"data!F14","v":"Vector length (bit)"},null,{"$f":"data!G14","v":""}]
[{"$f":"data!F5","v":"Node name"},null,{"$f":"data!G5","v":""},null,null,null,null,{"$f":"data!F11","v":"CMG no."},null,{"$f":"data!G11","v":""},null,null,null,null,{"$f":"data!F15","v":"CPU frequency (GHz)"},null,{"$f":"data!G15","v":""}]
[null,null,null,null,null,null,null,{"$f":"data!F12","v":"Measured region"},null,{"$f":"data!G12","v":""}]
[]
[]
[{"$f":"data!NC25","v":"Statistics"},null,{"$f":"data!NC28","v":"Execution time (s)"},{"$f":"data!ND28","v":"GFLOPS"},{"$f":"data!NE28","v":"Floating-point operation peak ratio (%)"},{"$f":"data!NF28","v":"Memory throughput (GB/s)"},{"$f":"data!NG28","v":"Memory throughput peak ratio (%)"},{"$f":"data!NH28","v":"Effective instruction"},{"$f":"data!NI28","v":"Floating-point operation"},{"$f":"data!NJ28","v":"SIMD instruction rate (%) (/Effective instruction)"},{"$f":"data!NK28","v":"SVE operation rate (%)"},{"$f":"data!NL28","v":"Floating-point pipeline Active element rate (%)"},{"$f":"data!NM28","v":"IPC"},{"$f":"data!NN28","v":"GIPS"},null,{"$f":"data!NO25","v":"Cycle Accounting"},null,{"$f":"data!NO27","v":"Prefetch port busy wait"},null,{"$f":"data!NQ27","v":"Memory access wait & Cache access wait"},null,null,null,null,null,{"$f":"data!NW27","v":"Operation wait"},null,{"$f":"data!NY27","v":"Other wait"},null,{"$f":"data!OA28","v":"Store port busy wait"},{"$f":"data!OB28","v":"Instruction fetch wait"},{"$f":"data!OC28","v":"Barrier synchronization wait"},{"$f":"data!OD28","v":"1 instruction commit"},{"$f":"data!OD27","v":"Other instruction commit"},null,null,null,{"$f":"data!OI28","v":"Total"}]
[null,null,null,null,null,null,null,null,null,null,null,null,null,null,null,null,null,{"$f":"data!NO28","v":"Prefetch port busy wait by hardware prefetch"},{"$f":"data!NP28","v":"Prefetch port busy wait by software prefetch"},{"$f":"data!NQ28","v":"Integer load memory access wait"},{"$f":"data!NR28","v":"Floating-point load memory access wait"},{"$f":"data!NS28","v":"Integer load L2 cache access wait"},{"$f":"data!NT28","v":"Integer load L1D cache access wait"},{"$f":"data!NU28","v":"Floating-point load L2 cache access wait"},{"$f":"data!NV28","v":"Floating-point load L1D cache access wait (*)"},{"$f":"data!NW28","v":"Integer operation wait"},{"$f":"data!NX28","v":"Floating-point operation wait"},{"$f":"data!NY28","v":"Branch instruction wait"},{"$f":"data!NZ28","v":"Other wait"},null,null,null,null,{"$f":"data!OE28","v":"2 instruction commit"},{"$f":"data!OF28","v":"3 instruction commit"},{"$f":"data!OG28","v":"4 instruction commit"},{"$f":"data!OH28","v":"Other instruction commit"}]
[]
[]
[]
["Process ","Thread",null,null,null,null,null,null,null,null,null,null,null,null,null,"Process ","Thread"]
[{"$f":"data!$NA$30","v":""},{"$f":"data!$NB$30","v":""},{"$f":"data!NC30","v":""},{"$f":"data!ND30","v":""},{"$f":"data!NE30","v":""},{"$f":"data!NF30","v":""},{"$f":"data!NG42","v":""},{"$f":"data!NH30","v":""},{"$f":"data!NI30","v":""},{"$f":"data!NJ30","v":""},{"$f":"data!NK30","v":""},{"$f":"data!NL30","v":""},{"$f":"data!NM30","v":""},{"$f":"data!NN30","v":""},null,{"$f":"data!$NA$30","v":""},{"$f":"data!$NB$30","v":""},{"$f":"data!NO30","v":""},{"$f":"data!NP30","v":""},{"$f":"data!NQ30","v":""},{"$f":"data!NR30","v":""},{"$f":"data!NS30","v":""},{"$f":"data!NT30","v":""},{"$f":"data!NU30","v":""},{"$f":"data!NV30","v":""},{"$f":"data!NW30","v":""},{"$f":"data!NX30","v":""},{"$f":"data!NY30","v":""},{"$f":"data!NZ30","v":""},{"$f":"data!OA30","v":""},{"$f":"data!OB30","v":""},{"$f":"data!OC30","v":""},{"$f":"data!OD30","v":""},{"$f":"data!OE30","v":""},{"$f":"data!OF30","v":""},{"$f":"data!OG30","v":""},{"$f":"data!OH30","v":""},{"$f":"data!OI30","v":""}]
[{"$f":"data!$NA$31","v":""},{"$f":"data!$NB$31","v":""},{"$f":"data!NC31","v":""},{"$f":"data!ND31","v":""},{"$f":"data!NE31","v":""},{"$f":"data!NF31","v":""},null,{"$f":"data!NH31","v":""},{"$f":"data!NI31","v":""},{"$f":"data!NJ31","v":""},{"$f":"data!NK31","v":""},{"$f":"data!NL31","v":""},{"$f":"data!NM31","v":""},{"$f":"data!NN31","v":""},null,{"$f":"data!$NA$31","v":""},{"$f":"data!$NB$31","v":""},{"$f":"data!NO31","v":""},{"$f":"data!NP31","v":""},{"$f":"data!NQ31","v":""},{"$f":"data!NR31","v":""},{"$f":"data!NS31","v":""},{"$f":"data!NT31","v":""},{"$f":"data!NU31","v":""},{"$f":"data!NV31","v":""},{"$f":"data!NW31","v":""},{"$f":"data!NX31","v":""},{"$f":"data!NY31","v":""},{"$f":"data!NZ31","v":""},{"$f":"data!OA31","v":""},{"$f":"data!OB31","v":""},{"$f":"data!OC31","v":""},{"$f":"data!OD31","v":""},{"$f":"data!OE31","v":""},{"$f":"data!OF31","v":""},{"$f":"data!OG31","v":""},{"$f":"data!OH31","v":""},{"$f":"data!OI31","v":""}]
[{"$f":"data!$NA$32","v":""},{"$f":"data!$NB$32","v":""},{"$f":"data!NC32","v":""},{"$f":"data!ND32","v":""},{"$f":"data!NE32","v":""},{"$f":"data!NF32","v":""},null,{"$f":"data!NH32","v":""},{"$f":"data!NI32","v":""},{"$f":"data!NJ32","v":""},{"$f":"data!NK32","v":""},{"$f":"data!NL32","v":""},{"$f":"data!NM32","v":""},{"$f":"data!NN32","v":""},null,{"$f":"data!$NA$32","v":""},{"$f":"data!$NB$32","v":""},{"$f":"data!NO32","v":""},{"$f":"data!NP32","v":""},{"$f":"data!NQ32","v":""},{"$f":"data!NR32","v":""},{"$f":"data!NS32","v":""},{"$f":"data!NT32","v":""},{"$f":"data!NU32","v":""},{"$f":"data!NV32","v":""},{"$f":"data!NW32","v":""},{"$f":"data!NX32","v":""},{"$f":"data!NY32","v":""},{"$f":"data!NZ32","v":""},{"$f":"data!OA32","v":""},{"$f":"data!OB32","v":""},{"$f":"data!OC32","v":""},{"$f":"data!OD32","v":""},{"$f":"data!OE32","v":""},{"$f":"data!OF32","v":""},{"$f":"data!OG32","v":""},{"$f":"data!OH32","v":""},{"$f":"data!OI32","v":""}]
[{"$f":"data!$NA$33","v":""},{"$f":"data!$NB$33","v":""},{"$f":"data!NC33","v":""},{"$f":"data!ND33","v":""},{"$f":"data!NE33","v":""},{"$f":"data!NF33","v":""},null,{"$f":"data!NH33","v":""},{"$f":"data!NI33","v":""},{"$f":"data!NJ33","v":""},{"$f":"data!NK33","v":""},{"$f":"data!NL33","v":""},{"$f":"data!NM33","v":""},{"$f":"data!NN33","v":""},null,{"$f":"data!$NA$33","v":""},{"$f":"data!$NB$33","v":""},{"$f":"data!NO33","v":""},{"$f":"data!NP33","v":""},{"$f":"data!NQ33","v":""},{"$f":"data!NR33","v":""},{"$f":"data!NS33","v":""},{"$f":"data!NT33","v":""},{"$f":"data!NU33","v":""},{"$f":"data!NV33","v":""},{"$f":"data!NW33","v":""},{"$f":"data!NX33","v":""},{"$f":"data!NY33","v":""},{"$f":"data!NZ33","v":""},{"$f":"data!OA33","v":""},{"$f":"data!OB33","v":""},{"$f":"data!OC33","v":""},{"$f":"data!OD33","v":""},{"$f":"data!OE33","v":""},{"$f":"data!OF33","v":""},{"$f":"data!OG33","v":""},{"$f":"data!OH33","v":""},{"$f":"data!OI33","v":""}]
[{"$f":"data!$NA$34","v":""},{"$f":"data!$NB$34","v":""},{"$f":"data!NC34","v":""},{"$f":"data!ND34","v":""},{"$f":"data!NE34","v":""},{"$f":"data!NF34","v":""},null,{"$f":"data!NH34","v":""},{"$f":"data!NI34","v":""},{"$f":"data!NJ34","v":""},{"$f":"data!NK34","v":""},{"$f":"data!NL34","v":""},{"$f":"data!NM34","v":""},{"$f":"data!NN34","v":""},null,{"$f":"data!$NA$34","v":""},{"$f":"data!$NB$34","v":""},{"$f":"data!NO34","v":""},{"$f":"data!NP34","v":""},{"$f":"data!NQ34","v":""},{"$f":"data!NR34","v":""},{"$f":"data!NS34","v":""},{"$f":"data!NT34","v":""},{"$f":"data!NU34","v":""},{"$f":"data!NV34","v":""},{"$f":"data!NW34","v":""},{"$f":"data!NX34","v":""},{"$f":"data!NY34","v":""},{"$f":"data!NZ34","v":""},{"$f":"data!OA34","v":""},{"$f":"data!OB34","v":""},{"$f":"data!OC34","v":""},{"$f":"data!OD34","v":""},{"$f":"data!OE34","v":""},{"$f":"data!OF34","v":""},{"$f":"data!OG34","v":""},{"$f":"data!OH34","v":""},{"$f":"data!OI34","v":""}]
[{"$f":"data!$NA$35","v":""},{"$f":"data!$NB$35","v":""},{"$f":"data!NC35","v":""},{"$f":"data!ND35","v":""},{"$f":"data!NE35","v":""},{"$f":"data!NF35","v":""},null,{"$f":"data!NH35","v":""},{"$f":"data!NI35","v":""},{"$f":"data!NJ35","v":""},{"$f":"data!NK35","v":""},{"$f":"data!NL35","v":""},{"$f":"data!NM35","v":""},{"$f":"data!NN35","v":""},null,{"$f":"data!$NA$35","v":""},{"$f":"data!$NB$35","v":""},{"$f":"data!NO35","v":""},{"$f":"data!NP35","v":""},{"$f":"data!NQ35","v":""},{"$f":"data!NR35","v":""},{"$f":"data!NS35","v":""},{"$f":"data!NT35","v":""},{"$f":"data!NU35","v":""},{"$f":"data!NV35","v":""},{"$f":"data!NW35","v":""},{"$f":"data!NX35","v":""},{"$f":"data!NY35","v":""},{"$f":"data!NZ35","v":""},{"$f":"data!OA35","v":""},{"$f":"data!OB35","v":""},{"$f":"data!OC35","v":""},{"$f":"data!OD35","v":""},{"$f":"data!OE35","v":""},{"$f":"data!OF35","v":""},{"$f":"data!OG35","v":""},{"$f":"data!OH35","v":""},{"$f":"data!OI35","v":""}]
[{"$f":"data!$NA$36","v":""},{"$f":"data!$NB$36","v":""},{"$f":"data!NC36","v":""},{"$f":"data!ND36","v":""},{"$f":"data!NE36","v":""},{"$f":"data!NF36","v":""},null,{"$f":"data!NH36","v":""},{"$f":"data!NI36","v":""},{"$f":"data!NJ36","v":""},{"$f":"data!NK36","v":""},{"$f":"data!NL36","v":""},{"$f":"data!NM36","v":""},{"$f":"data!NN36","v":""},null,{"$f":"data!$NA$36","v":""},{"$f":"data!$NB$36","v":""},{"$f":"data!NO36","v":""},{"$f":"data!NP36","v":""},{"$f":"data!NQ36","v":""},{"$f":"data!NR36","v":""},{"$f":"data!NS36","v":""},{"$f":"data!NT36","v":""},{"$f":"data!NU36","v":""},{"$f":"data!NV36","v":""},{"$f":"data!NW36","v":""},{"$f":"data!NX36","v":""},{"$f":"data!NY36","v":""},{"$f":"data!NZ36","v":""},{"$f":"data!OA36","v":""},{"$f":"data!OB36","v":""},{"$f":"data!OC36","v":""},{"$f":"data!OD36","v":""},{"$f":"data!OE36","v":""},{"$f":"data!OF36","v":""},{"$f":"data!OG36","v":""},{"$f":"data!OH36","v":""},{"$f":"data!OI36","v":""}]
[{"$f":"data!$NA$37","v":""},{"$f":"data!$NB$37","v":""},{"$f":"data!NC37","v":""},{"$f":"data!ND37","v":""},{"$f":"data!NE37","v":""},{"$f":"data!NF37","v":""},null,{"$f":"data!NH37","v":""},{"$f":"data!NI37","v":""},{"$f":"data!NJ37","v":""},{"$f":"data!NK37","v":""},{"$f":"data!NL37","v":""},{"$f":"data!NM37","v":""},{"$f":"data!NN37","v":""},null,{"$f":"data!$NA$37","v":""},{"$f":"data!$NB$37","v":""},{"$f":"data!NO37","v":""},{"$f":"data!NP37","v":""},{"$f":"data!NQ37","v":""},{"$f":"data!NR37","v":""},{"$f":"data!NS37","v":""},{"$f":"data!NT37","v":""},{"$f":"data!NU37","v":""},{"$f":"data!NV37","v":""},{"$f":"data!NW37","v":""},{"$f":"data!NX37","v":""},{"$f":"data!NY37","v":""},{"$f":"data!NZ37","v":""},{"$f":"data!OA37","v":""},{"$f":"data!OB37","v":""},{"$f":"data!OC37","v":""},{"$f":"data!OD37","v":""},{"$f":"data!OE37","v":""},{"$f":"data!OF37","v":""},{"$f":"data!OG37","v":""},{"$f":"data!OH37","v":""},{"$f":"data!OI37","v":""}]
[{"$f":"data!$NA$38","v":""},{"$f":"data!$NB$38","v":""},{"$f":"data!NC38","v":""},{"$f":"data!ND38","v":""},{"$f":"data!NE38","v":""},{"$f":"data!NF38","v":""},null,{"$f":"data!NH38","v":""},{"$f":"data!NI38","v":""},{"$f":"data!NJ38","v":""},{"$f":"data!NK38","v":""},{"$f":"data!NL38","v":""},{"$f":"data!NM38","v":""},{"$f":"data!NN38","v":""},null,{"$f":"data!$NA$38","v":""},{"$f":"data!$NB$38","v":""},{"$f":"data!NO38","v":""},{"$f":"data!NP38","v":""},{"$f":"data!NQ38","v":""},{"$f":"data!NR38","v":""},{"$f":"data!NS38","v":""},{"$f":"data!NT38","v":""},{"$f":"data!NU38","v":""},{"$f":"data!NV38","v":""},{"$f":"data!NW38","v":""},{"$f":"data!NX38","v":""},{"$f":"data!NY38","v":""},{"$f":"data!NZ38","v":""},{"$f":"data!OA38","v":""},{"$f":"data!OB38","v":""},{"$f":"data!OC38","v":""},{"$f":"data!OD38","v":""},{"$f":"data!OE38","v":""},{"$f":"data!OF38","v":""},{"$f":"data!OG38","v":""},{"$f":"data!OH38","v":""},{"$f":"data!OI38","v":""}]
[{"$f":"data!$NA$39","v":""},{"$f":"data!$NB$39","v":""},{"$f":"data!NC39","v":""},{"$f":"data!ND39","v":""},{"$f":"data!NE39","v":""},{"$f":"data!NF39","v":""},null,{"$f":"data!NH39","v":""},{"$f":"data!NI39","v":""},{"$f":"data!NJ39","v":""},{"$f":"data!NK39","v":""},{"$f":"data!NL39","v":""},{"$f":"data!NM39","v":""},{"$f":"data!NN39","v":""},null,{"$f":"data!$NA$39","v":""},{"$f":"data!$NB$39","v":""},{"$f":"data!NO39","v":""},{"$f":"data!NP39","v":""},{"$f":"data!NQ39","v":""},{"$f":"data!NR39","v":""},{"$f":"data!NS39","v":""},{"$f":"data!NT39","v":""},{"$f":"data!NU39","v":""},{"$f":"data!NV39","v":""},{"$f":"data!NW39","v":""},{"$f":"data!NX39","v":""},{"$f":"data!NY39","v":""},{"$f":"data!NZ39","v":""},{"$f":"data!OA39","v":""},{"$f":"data!OB39","v":""},{"$f":"data!OC39","v":""},{"$f":"data!OD39","v":""},{"$f":"data!OE39","v":""},{"$f":"data!OF39","v":""},{"$f":"data!OG39","v":""},{"$f":"data!OH39","v":""},{"$f":"data!OI39","v":""}]
[{"$f":"data!$NA$40","v":""},{"$f":"data!$NB$40","v":""},{"$f":"data!NC40","v":""},{"$f":"data!ND40","v":""},{"$f":"data!NE40","v":""},{"$f":"data!NF40","v":""},null,{"$f":"data!NH40","v":""},{"$f":"data!NI40","v":""},{"$f":"data!NJ40","v":""},{"$f":"data!NK40","v":""},{"$f":"data!NL40","v":""},{"$f":"data!NM40","v":""},{"$f":"data!NN40","v":""},null,{"$f":"data!$NA$40","v":""},{"$f":"data!$NB$40","v":""},{"$f":"data!NO40","v":""},{"$f":"data!NP40","v":""},{"$f":"data!NQ40","v":""},{"$f":"data!NR40","v":""},{"$f":"data!NS40","v":""},{"$f":"data!NT40","v":""},{"$f":"data!NU40","v":""},{"$f":"data!NV40","v":""},{"$f":"data!NW40","v":""},{"$f":"data!NX40","v":""},{"$f":"data!NY40","v":""},{"$f":"data!NZ40","v":""},{"$f":"data!OA40","v":""},{"$f":"data!OB40","v":""},{"$f":"data!OC40","v":""},{"$f":"data!OD40","v":""},{"$f":"data!OE40","v":""},{"$f":"data!OF40","v":""},{"$f":"data!OG40","v":""},{"$f":"data!OH40","v":""},{"$f":"data!OI40","v":""}]
[{"$f":"data!$NA$41","v":""},{"$f":"data!$NB$41","v":""},{"$f":"data!NC41","v":""},{"$f":"data!ND41","v":""},{"$f":"data!NE41","v":""},{"$f":"data!NF41","v":""},null,{"$f":"data!NH41","v":""},{"$f":"data!NI41","v":""},{"$f":"data!NJ41","v":""},{"$f":"data!NK41","v":""},{"$f":"data!NL41","v":""},{"$f":"data!NM41","v":""},{"$f":"data!NN41","v":""},null,{"$f":"data!$NA$41","v":""},{"$f":"data!$NB$41","v":""},{"$f":"data!NO41","v":""},{"$f":"data!NP41","v":""},{"$f":"data!NQ41","v":""},{"$f":"data!NR41","v":""},{"$f":"data!NS41","v":""},{"$f":"data!NT41","v":""},{"$f":"data!NU41","v":""},{"$f":"data!NV41","v":""},{"$f":"data!NW41","v":""},{"$f":"data!NX41","v":""},{"$f":"data!NY41","v":""},{"$f":"data!NZ41","v":""},{"$f":"data!OA41","v":""},{"$f":"data!OB41","v":""},{"$f":"data!OC41","v":""},{"$f":"data!OD41","v":""},{"$f":"data!OE41","v":""},{"$f":"data!OF41","v":""},{"$f":"data!OG41","v":""},{"$f":"data!OH41","v":""},{"$f":"data!OI41","v":""}]
[{"$f":"data!$NB$42","v":""},null,{"$f":"data!NC42","v":""},{"$f":"data!ND42","v":""},{"$f":"data!NE42","v":""},{"$f":"data!NF42","v":""},{"$f":"data!NG42","v":""},{"$f":"data!NH42","v":""},{"$f":"data!NI42","v":""},{"$f":"data!NJ42","v":""},{"$f":"data!NK42","v":""},{"$f":"data!NL42","v":""},{"$f":"data!NM42","v":""},{"$f":"data!NN42","v":""},null,{"$f":"data!$NB$42","v":""},null,{"$f":"data!NO42","v":""},{"$f":"data!NP42","v":""},{"$f":"data!NQ42","v":""},{"$f":"data!NR42","v":""},{"$f":"data!NS42","v":""},{"$f":"data!NT42","v":""},{"$f":"data!NU42","v":""},{"$f":"data!NV42","v":""},{"$f":"data!NW42","v":""},{"$f":"data!NX42","v":""},{"$f":"data!NY42","v":""},{"$f":"data!NZ42","v":""},{"$f":"data!OA42","v":""},{"$f":"data!OB42","v":""},{"$f":"data!OC42","v":""},{"$f":"data!OD42","v":""},{"$f":"data!OE42","v":""},{"$f":"data!OF42","v":""},{"$f":"data!OG42","v":""},{"$f":"data!OH42","v":""},{"$f":"data!OI42","v":""}]
[null,null,null,null,null,null,null,null,null,null,null,null,null,null,null,null,null,null,null,null,null,null,null,null,"(*) Include wait time for integer L1D cache access"]
[{"$f":"data!OJ25","v":"Busy"},null,{"$f":"data!OJ28","v":"Floating-point operation pipeline A busy rate (%)"},{"$f":"data!OK28","v":"Floating-point operation pipeline B busy rate (%)"},{"$f":"data!OL28","v":"Integer operation pipeline A busy rate (%)"},{"$f":"data!OM28","v":"Integer operation pipeline B busy rate (%)"},{"$f":"data!ON28","v":"L1 busy rate (%)"},{"$f":"data!OO28","v":"L2 busy rate (%)"},{"$f":"data!OP28","v":"Memory busy rate (%)"},{"$f":"data!OQ28","v":"Address calculation operation pipeline A busy rate (%)"},{"$f":"data!OR28","v":"Address calculation operation pipeline B busy rate (%)"},{"$f":"data!OS28","v":"Floating-point pipeline A Active element rate (%)"},{"$f":"data!OT28","v":"Floating-point pipeline B Active element rate (%)"},{"$f":"data!OU28","v":"L1 pipeline 0 Active element rate (%)"},{"$f":"data!OV28","v":"L1 pipeline 1 Active element rate (%)"},{"$f":"data!OW28","v":"SFI(Store Fetch Interlock) rate"}]
[]
[]
[]
[]
["Process ","Thread"]
[{"$f":"data!$NA$30","v":""},{"$f":"data!$NB$30","v":""},{"$f":"data!OJ30","v":""},{"$f":"data!OK30","v":""},{"$f":"data!OL30","v":""},{"$f":"data!OM30","v":""},{"$f":"data!ON30","v":""},{"$f":"data!OO42","v":""},{"$f":"data!OP42","v":""},{"$f":"data!OQ30","v":""},{"$f":"data!OR30","v":""},{"$f":"data!OS30","v":""},{"$f":"data!OT30","v":""},{"$f":"data!OU30","v":""},{"$f":"data!OV30","v":""},{"$f":"data!OW30","v":""}]
[{"$f":"data!$NA$31","v":""},{"$f":"data!$NB$31","v":""},{"$f":"data!OJ31","v":""},{"$f":"data!OK31","v":""},{"$f":"data!OL31","v":""},{"$f":"data!OM31","v":""},{"$f":"data!ON31","v":""},null,null,{"$f":"data!OQ31","v":""},{"$f":"data!OR31","v":""},{"$f":"data!OS31","v":""},{"$f":"data!OT31","v":""},{"$f":"data!OU31","v":""},{"$f":"data!OV31","v":""},{"$f":"data!OW31","v":""}]
[{"$f":"data!$NA$32","v":""},{"$f":"data!$NB$32","v":""},{"$f":"data!OJ32","v":""},{"$f":"data!OK32","v":""},{"$f":"data!OL32","v":""},{"$f":"data!OM32","v":""},{"$f":"data!ON32","v":""},null,null,{"$f":"data!OQ32","v":""},{"$f":"data!OR32","v":""},{"$f":"data!OS32","v":""},{"$f":"data!OT32","v":""},{"$f":"data!OU32","v":""},{"$f":"data!OV32","v":""},{"$f":"data!OW32","v":""}]
[{"$f":"data!$NA$33","v":""},{"$f":"data!$NB$33","v":""},{"$f":"data!OJ33","v":""},{"$f":"data!OK33","v":""},{"$f":"data!OL33","v":""},{"$f":"data!OM33","v":""},{"$f":"data!ON33","v":""},null,null,{"$f":"data!OQ33","v":""},{"$f":"data!OR33","v":""},{"$f":"data!OS33","v":""},{"$f":"data!OT33","v":""},{"$f":"data!OU33","v":""},{"$f":"data!OV33","v":""},{"$f":"data!OW33","v":""}]
[{"$f":"data!$NA$34","v":""},{"$f":"data!$NB$34","v":""},{"$f":"data!OJ34","v":""},{"$f":"data!OK34","v":""},{"$f":"data!OL34","v":""},{"$f":"data!OM34","v":""},{"$f":"data!ON34","v":""},null,null,{"$f":"data!OQ34","v":""},{"$f":"data!OR34","v":""},{"$f":"data!OS34","v":""},{"$f":"data!OT34","v":""},{"$f":"data!OU34","v":""},{"$f":"data!OV34","v":""},{"$f":"data!OW34","v":""}]
[{"$f":"data!$NA$35","v":""},{"$f":"data!$NB$35","v":""},{"$f":"data!OJ35","v":""},{"$f":"data!OK35","v":""},{"$f":"data!OL35","v":""},{"$f":"data!OM35","v":""},{"$f":"data!ON35","v":""},null,null,{"$f":"data!OQ35","v":""},{"$f":"data!OR35","v":""},{"$f":"data!OS35","v":""},{"$f":"data!OT35","v":""},{"$f":"data!OU35","v":""},{"$f":"data!OV35","v":""},{"$f":"data!OW35","v":""}]
[{"$f":"data!$NA$36","v":""},{"$f":"data!$NB$36","v":""},{"$f":"data!OJ36","v":""},{"$f":"data!OK36","v":""},{"$f":"data!OL36","v":""},{"$f":"data!OM36","v":""},{"$f":"data!ON36","v":""},null,null,{"$f":"data!OQ36","v":""},{"$f":"data!OR36","v":""},{"$f":"data!OS36","v":""},{"$f":"data!OT36","v":""},{"$f":"data!OU36","v":""},{"$f":"data!OV36","v":""},{"$f":"data!OW36","v":""}]
[{"$f":"data!$NA$37","v":""},{"$f":"data!$NB$37","v":""},{"$f":"data!OJ37","v":""},{"$f":"data!OK37","v":""},{"$f":"data!OL37","v":""},{"$f":"data!OM37","v":""},{"$f":"data!ON37","v":""},null,null,{"$f":"data!OQ37","v":""},{"$f":"data!OR37","v":""},{"$f":"data!OS37","v":""},{"$f":"data!OT37","v":""},{"$f":"data!OU37","v":""},{"$f":"data!OV37","v":""},{"$f":"data!OW37","v":""}]
[{"$f":"data!$NA$38","v":""},{"$f":"data!$NB$38","v":""},{"$f":"data!OJ38","v":""},{"$f":"data!OK38","v":""},{"$f":"data!OL38","v":""},{"$f":"data!OM38","v":""},{"$f":"data!ON38","v":""},null,null,{"$f":"data!OQ38","v":""},{"$f":"data!OR38","v":""},{"$f":"data!OS38","v":""},{"$f":"data!OT38","v":""},{"$f":"data!OU38","v":""},{"$f":"data!OV38","v":""},{"$f":"data!OW38","v":""}]
[{"$f":"data!$NA$39","v":""},{"$f":"data!$NB$39","v":""},{"$f":"data!OJ39","v":""},{"$f":"data!OK39","v":""},{"$f":"data!OL39","v":""},{"$f":"data!OM39","v":""},{"$f":"data!ON39","v":""},null,null,{"$f":"data!OQ39","v":""},{"$f":"data!OR39","v":""},{"$f":"data!OS39","v":""},{"$f":"data!OT39","v":""},{"$f":"data!OU39","v":""},{"$f":"data!OV39","v":""},{"$f":"data!OW39","v":""}]
[{"$f":"data!$NA$40","v":""},{"$f":"data!$NB$40","v":""},{"$f":"data!OJ40","v":""},{"$f":"data!OK40","v":""},{"$f":"data!OL40","v":""},{"$f":"data!OM40","v":""},{"$f":"data!ON40","v":""},null,null,{"$f":"data!OQ40","v":""},{"$f":"data!OR40","v":""},{"$f":"data!OS40","v":""},{"$f":"data!OT40","v":""},{"$f":"data!OU40","v":""},{"$f":"data!OV40","v":""},{"$f":"data!OW40","v":""}]
[{"$f":"data!$NA$41","v":""},{"$f":"data!$NB$41","v":""},{"$f":"data!OJ41","v":""},{"$f":"data!OK41","v":""},{"$f":"data!OL41","v":""},{"$f":"data!OM41","v":""},{"$f":"data!ON41","v":""},null,null,{"$f":"data!OQ41","v":""},{"$f":"data!OR41","v":""},{"$f":"data!OS41","v":""},{"$f":"data!OT41","v":""},{"$f":"data!OU41","v":""},{"$f":"data!OV41","v":""},{"$f":"data!OW41","v":""}]
[{"$f":"data!$NB$42","v":""},null,{"$f":"data!OJ42","v":""},{"$f":"data!OK42","v":""},{"$f":"data!OL42","v":""},{"$f":"data!OM42","v":""},{"$f":"data!ON42","v":""},{"$f":"data!OO42","v":""},{"$f":"data!OP42","v":""},{"$f":"data!OQ42","v":""},{"$f":"data!OR42","v":""},{"$f":"data!OS42","v":""},{"$f":"data!OT42","v":""},{"$f":"data!OU42","v":""},{"$f":"data!OV42","v":""},{"$f":"data!OW42","v":""}]
[]
[{"$f":"data!OX25","v":"Cache"},null,{"$f":"data!OX28","v":"L1I miss rate (/Effective instruction)"},{"$f":"data!OY28","v":"Load-store instruction"},{"$f":"data!OZ28","v":"L1D miss"},{"$f":"data!PA28","v":"L1D miss rate (/Load-store instruction)"},{"$f":"data!PB28","v":"L1D miss demand rate (%) (/L1D miss)"},{"$f":"data!PC28","v":"L1D miss hardware prefetch rate (%) (/L1D miss)"},{"$f":"data!PD28","v":"L1D miss software prefetch rate (%) (/L1D miss)"},{"$f":"data!PE28","v":"L2 miss"},{"$f":"data!PF28","v":"L2 miss rate (/Load-store instruction)"},{"$f":"data!PG28","v":"L2 miss demand rate (%) (/L2 miss)"},{"$f":"data!PH28","v":"L2 miss hardware prefetch rate (%) (/L2 miss)"},{"$f":"data!PI28","v":"L2 miss software prefetch rate (%) (/L2 miss)"},{"$f":"data!PJ28","v":"L1D TLB miss rate (/Load-store instruction)"},{"$f":"data!PK28","v":"L2D TLB miss rate (/Load-store instruction)"}]
[]
[]
[]
[]
[]
["Process ","Thread"]
[{"$f":"data!$NA$30","v":""},{"$f":"data!$NB$30","v":""},{"$f":"data!OX30","v":""},{"$f":"data!OY30","v":""},{"$f":"data!OZ30","v":""},{"$f":"data!PA30","v":""},{"$f":"data!PB30","v":""},{"$f":"data!PC30","v":""},{"$f":"data!PD30","v":""},{"$f":"data!PE30","v":""},{"$f":"data!PF30","v":""},{"$f":"data!PG30","v":""},{"$f":"data!PH30","v":""},{"$f":"data!PI30","v":""},{"$f":"data!PJ30","v":""},{"$f":"data!PK30","v":""}]
[{"$f":"data!$NA$31","v":""},{"$f":"data!$NB$31","v":""},{"$f":"data!OX31","v":""},{"$f":"data!OY31","v":""},{"$f":"data!OZ31","v":""},{"$f":"data!PA31","v":""},{"$f":"data!PB31","v":""},{"$f":"data!PC31","v":""},{"$f":"data!PD31","v":""},{"$f":"data!PE31","v":""},{"$f":"data!PF31","v":""},{"$f":"data!PG31","v":""},{"$f":"data!PH31","v":""},{"$f":"data!PI31","v":""},{"$f":"data!PJ31","v":""},{"$f":"data!PK31","v":""}]
[{"$f":"data!$NA$32","v":""},{"$f":"data!$NB$32","v":""},{"$f":"data!OX32","v":""},{"$f":"data!OY32","v":""},{"$f":"data!OZ32","v":""},{"$f":"data!PA32","v":""},{"$f":"data!PB32","v":""},{"$f":"data!PC32","v":""},{"$f":"data!PD32","v":""},{"$f":"data!PE32","v":""},{"$f":"data!PF32","v":""},{"$f":"data!PG32","v":""},{"$f":"data!PH32","v":""},{"$f":"data!PI32","v":""},{"$f":"data!PJ32","v":""},{"$f":"data!PK32","v":""}]
[{"$f":"data!$NA$33","v":""},{"$f":"data!$NB$33","v":""},{"$f":"data!OX33","v":""},{"$f":"data!OY33","v":""},{"$f":"data!OZ33","v":""},{"$f":"data!PA33","v":""},{"$f":"data!PB33","v":""},{"$f":"data!PC33","v":""},{"$f":"data!PD33","v":""},{"$f":"data!PE33","v":""},{"$f":"data!PF33","v":""},{"$f":"data!PG33","v":""},{"$f":"data!PH33","v":""},{"$f":"data!PI33","v":""},{"$f":"data!PJ33","v":""},{"$f":"data!PK33","v":""}]
[{"$f":"data!$NA$34","v":""},{"$f":"data!$NB$34","v":""},{"$f":"data!OX34","v":""},{"$f":"data!OY34","v":""},{"$f":"data!OZ34","v":""},{"$f":"data!PA34","v":""},{"$f":"data!PB34","v":""},{"$f":"data!PC34","v":""},{"$f":"data!PD34","v":""},{"$f":"data!PE34","v":""},{"$f":"data!PF34","v":""},{"$f":"data!PG34","v":""},{"$f":"data!PH34","v":""},{"$f":"data!PI34","v":""},{"$f":"data!PJ34","v":""},{"$f":"data!PK34","v":""}]
[{"$f":"data!$NA$35","v":""},{"$f":"data!$NB$35","v":""},{"$f":"data!OX35","v":""},{"$f":"data!OY35","v":""},{"$f":"data!OZ35","v":""},{"$f":"data!PA35","v":""},{"$f":"data!PB35","v":""},{"$f":"data!PC35","v":""},{"$f":"data!PD35","v":""},{"$f":"data!PE35","v":""},{"$f":"data!PF35","v":""},{"$f":"data!PG35","v":""},{"$f":"data!PH35","v":""},{"$f":"data!PI35","v":""},{"$f":"data!PJ35","v":""},{"$f":"data!PK35","v":""}]
[{"$f":"data!$NA$36","v":""},{"$f":"data!$NB$36","v":""},{"$f":"data!OX36","v":""},{"$f":"data!OY36","v":""},{"$f":"data!OZ36","v":""},{"$f":"data!PA36","v":""},{"$f":"data!PB36","v":""},{"$f":"data!PC36","v":""},{"$f":"data!PD36","v":""},{"$f":"data!PE36","v":""},{"$f":"data!PF36","v":""},{"$f":"data!PG36","v":""},{"$f":"data!PH36","v":""},{"$f":"data!PI36","v":""},{"$f":"data!PJ36","v":""},{"$f":"data!PK36","v":""}]
[{"$f":"data!$NA$37","v":""},{"$f":"data!$NB$37","v":""},{"$f":"data!OX37","v":""},{"$f":"data!OY37","v":""},{"$f":"data!OZ37","v":""},{"$f":"data!PA37","v":""},{"$f":"data!PB37","v":""},{"$f":"data!PC37","v":""},{"$f":"data!PD37","v":""},{"$f":"data!PE37","v":""},{"$f":"data!PF37","v":""},{"$f":"data!PG37","v":""},{"$f":"data!PH37","v":""},{"$f":"data!PI37","v":""},{"$f":"data!PJ37","v":""},{"$f":"data!PK37","v":""}]
[{"$f":"data!$NA$38","v":""},{"$f":"data!$NB$38","v":""},{"$f":"data!OX38","v":""},{"$f":"data!OY38","v":""},{"$f":"data!OZ38","v":""},{"$f":"data!PA38","v":""},{"$f":"data!PB38","v":""},{"$f":"data!PC38","v":""},{"$f":"data!PD38","v":""},{"$f":"data!PE38","v":""},{"$f":"data!PF38","v":""},{"$f":"data!PG38","v":""},{"$f":"data!PH38","v":""},{"$f":"data!PI38","v":""},{"$f":"data!PJ38","v":""},{"$f":"data!PK38","v":""}]
[{"$f":"data!$NA$39","v":""},{"$f":"data!$NB$39","v":""},{"$f":"data!OX39","v":""},{"$f":"data!OY39","v":""},{"$f":"data!OZ39","v":""},{"$f":"data!PA39","v":""},{"$f":"data!PB39","v":""},{"$f":"data!PC39","v":""},{"$f":"data!PD39","v":""},{"$f":"data!PE39","v":""},{"$f":"data!PF39","v":""},{"$f":"data!PG39","v":""},{"$f":"data!PH39","v":""},{"$f":"data!PI39","v":""},{"$f":"data!PJ39","v":""},{"$f":"data!PK39","v":""}]
[{"$f":"data!$NA$40","v":""},{"$f":"data!$NB$40","v":""},{"$f":"data!OX40","v":""},{"$f":"data!OY40","v":""},{"$f":"data!OZ40","v":""},{"$f":"data!PA40","v":""},{"$f":"data!PB40","v":""},{"$f":"data!PC40","v":""},{"$f":"data!PD40","v":""},{"$f":"data!PE40","v":""},{"$f":"data!PF40","v":""},{"$f":"data!PG40","v":""},{"$f":"data!PH40","v":""},{"$f":"data!PI40","v":""},{"$f":"data!PJ40","v":""},{"$f":"data!PK40","v":""}]
[{"$f":"data!$NA$41","v":""},{"$f":"data!$NB$41","v":""},{"$f":"data!OX41","v":""},{"$f":"data!OY41","v":""},{"$f":"data!OZ41","v":""},{"$f":"data!PA41","v":""},{"$f":"data!PB41","v":""},{"$f":"data!PC41","v":""},{"$f":"data!PD41","v":""},{"$f":"data!PE41","v":""},{"$f":"data!PF41","v":""},{"$f":"data!PG41","v":""},{"$f":"data!PH41","v":""},{"$f":"data!PI41","v":""},{"$f":"data!PJ41","v":""},{"$f":"data!PK41","v":""}]
[{"$f":"data!$NB$42","v":""},null,{"$f":"data!OX42","v":""},{"$f":"data!OY42","v":""},{"$f":"data!OZ42","v":""},{"$f":"data!PA42","v":""},{"$f":"data!PB42","v":""},{"$f":"data!PC42","v":""},{"$f":"data!PD42","v":""},{"$f":"data!PE42","v":""},{"$f":"data!PF42","v":""},{"$f":"data!PG42","v":""},{"$f":"data!PH42","v":""},{"$f":"data!PI42","v":""},{"$f":"data!PJ42","v":""},{"$f":"data!PK42","v":""}]
[]
[{"$f":"data!PL25","v":"Instruction"},null,{"$f":"data!PN25","v":"Load-store instruction"},null,null,null,null,null,null,null,null,null,null,null,null,null,{"$f":"data!PZ26","v":"Prefetch instruction"},null,null,{"$f":"data!QC28","v":"DCZVA instruction"},{"$f":"data!QD26","v":"Floating-point instruction"},null,null,{"$f":"data!QG26","v":"Floating-point move and conversion instruction"},null,{"$f":"data!QI28","v":"Integer instruction"},{"$f":"data!QJ28","v":"Branch instruction"},{"$f":"data!QK28","v":"Predicate instruction"},{"$f":"data!QL28","v":"Crypto-graphic instruction"},{"$f":"data!QM28","v":"Other instruction"},{"$f":"data!QN28","v":"Total"},null,{"$f":"data!RR25","v":"Power Consumption (W)"},null,{"$f":"data!RR28","v":"Power consumption used by core"},{"$f":"data!RS28","v":"Power consumption used by L2 cache"},{"$f":"data!RT28","v":"Power consumption used by memory"}]
[null,null,{"$f":"data!PL26","v":"Load instruction"},null,null,null,null,null,null,null,{"$f":"data!PT26","v":"Store instruction"},null,null,null,null,null,{"$f":"data!PZ28","v":"Contiguous prefetch instruction"},{"$f":"data!QA28","v":"Gathering prefetch instruction"},{"$f":"data!QB28","v":"Scalar prefetch instruction"},null,{"$f":"data!QD28","v":"Floating-point instruction except FMA and reciprocal"},{"$f":"data!QE28","v":"FMA instruction"},{"$f":"data!QF28","v":"Floating-point reciprocal instruction"}]
[null,null,{"$f":"data!PL27","v":"SIMD"},null,null,null,null,null,null,{"$f":"data!PS27","v":"Non-SIMD"},{"$f":"data!PL27","v":"SIMD"},null,null,null,null,{"$f":"data!PY27","v":"Non-SIMD"},null,null,null,null,null,null,null,{"$f":"data!QG28","v":"Floating-point conversion instruction"},{"$f":"data!QH28","v":"Floating-point move instruction"}]
[null,null,{"$f":"data!PL28","v":"Single vector contiguous load instruction"},{"$f":"data!PM28","v":"Multiple vector contiguous structure load instruction"},{"$f":"data!PN28","v":"Non-contiguous gather load instruction"},{"$f":"data!PO28","v":"Broadcast load instruction"},{"$f":"data!PP28","v":"Floating-point register fill instruction"},{"$f":"data!PQ28","v":"Predicate register fill instruction"},{"$f":"data!PR28","v":"First-fault load instruction"},{"$f":"data!PS28","v":"Non-SIMD load instruction"},{"$f":"data!PT28","v":"Single vector contiguous store instruction"},{"$f":"data!PU28","v":"Multiple vector contiguous structure store instruction"},{"$f":"data!PV28","v":"Non-contiguous scatter store instruction"},{"$f":"data!PW28","v":"Floating-point register spill instruction"},{"$f":"data!PX28","v":"Predicate register spill instruction"},{"$f":"data!PY28","v":"Non-SIMD store instruction"}]
[]
[]
[]
["Process ","Thread",null,null,null,null,null,null,null,null,null,null,null,null,null,null,null,null,null,null,null,null,null,null,null,null,null,null,null,null,null,null,"Process ","Thread"]
[{"$f":"data!$NA$30","v":""},{"$f":"data!$NB$30","v":""},{"$f":"data!PL30","v":""},{"$f":"data!PM30","v":""},{"$f":"data!PN30","v":""},{"$f":"data!PO30","v":""},{"$f":"data!PP30","v":""},{"$f":"data!PQ30","v":""},{"$f":"data!PR30","v":""},{"$f":"data!PS30","v":""},{"$f":"data!PT30","v":""},{"$f":"data!PU30","v":""},{"$f":"data!PV30","v":""},{"$f":"data!PW30","v":""},{"$f":"data!PX30","v":""},{"$f":"data!PY30","v":""},{"$f":"data!PZ30","v":""},{"$f":"data!QA30","v":""},{"$f":"data!QB30","v":""},{"$f":"data!QC30","v":""},{"$f":"data!QD30","v":""},{"$f":"data!QE30","v":""},{"$f":"data!QF30","v":""},{"$f":"data!QG30","v":""},{"$f":"data!QH30","v":""},{"$f":"data!QI30","v":""},{"$f":"data!QJ30","v":""},{"$f":"data!QK30","v":""},{"$f":"data!QL30","v":""},{"$f":"data!QM30","v":""},{"$f":"data!QN30","v":""},null,{"$f":"data!$NA$30","v":""},{"$f":"data!$NB$30","v":""},{"$f":"data!RR30","v":""},{"$f":"data!RS42","v":""},{"$f":"data!RT42","v":""}]
[{"$f":"data!$NA$31","v":""},{"$f":"data!$NB$31","v":""},{"$f":"data!PL31","v":""},{"$f":"data!PM31","v":""},{"$f":"data!PN31","v":""},{"$f":"data!PO31","v":""},{"$f":"data!PP31","v":""},{"$f":"data!PQ31","v":""},{"$f":"data!PR31","v":""},{"$f":"data!PS31","v":""},{"$f":"data!PT31","v":""},{"$f":"data!PU31","v":""},{"$f":"data!PV31","v":""},{"$f":"data!PW31","v":""},{"$f":"data!PX31","v":""},{"$f":"data!PY31","v":""},{"$f":"data!PZ31","v":""},{"$f":"data!QA31","v":""},{"$f":"data!QB31","v":""},{"$f":"data!QC31","v":""},{"$f":"data!QD31","v":""},{"$f":"data!QE31","v":""},{"$f":"data!QF31","v":""},{"$f":"data!QG31","v":""},{"$f":"data!QH31","v":""},{"$f":"data!QI31","v":""},{"$f":"data!QJ31","v":""},{"$f":"data!QK31","v":""},{"$f":"data!QL31","v":""},{"$f":"data!QM31","v":""},{"$f":"data!QN31","v":""},null,{"$f":"data!$NA$31","v":""},{"$f":"data!$NB$31","v":""},{"$f":"data!RR31","v":""}]
[{"$f":"data!$NA$32","v":""},{"$f":"data!$NB$32","v":""},{"$f":"data!PL32","v":""},{"$f":"data!PM32","v":""},{"$f":"data!PN32","v":""},{"$f":"data!PO32","v":""},{"$f":"data!PP32","v":""},{"$f":"data!PQ32","v":""},{"$f":"data!PR32","v":""},{"$f":"data!PS32","v":""},{"$f":"data!PT32","v":""},{"$f":"data!PU32","v":""},{"$f":"data!PV32","v":""},{"$f":"data!PW32","v":""},{"$f":"data!PX32","v":""},{"$f":"data!PY32","v":""},{"$f":"data!PZ32","v":""},{"$f":"data!QA32","v":""},{"$f":"data!QB32","v":""},{"$f":"data!QC32","v":""},{"$f":"data!QD32","v":""},{"$f":"data!QE32","v":""},{"$f":"data!QF32","v":""},{"$f":"data!QG32","v":""},{"$f":"data!QH32","v":""},{"$f":"data!QI32","v":""},{"$f":"data!QJ32","v":""},{"$f":"data!QK32","v":""},{"$f":"data!QL32","v":""},{"$f":"data!QM32","v":""},{"$f":"data!QN32","v":""},null,{"$f":"data!$NA$32","v":""},{"$f":"data!$NB$32","v":""},{"$f":"data!RR32","v":""}]
[{"$f":"data!$NA$33","v":""},{"$f":"data!$NB$33","v":""},{"$f":"data!PL33","v":""},{"$f":"data!PM33","v":""},{"$f":"data!PN33","v":""},{"$f":"data!PO33","v":""},{"$f":"data!PP33","v":""},{"$f":"data!PQ33","v":""},{"$f":"data!PR33","v":""},{"$f":"data!PS33","v":""},{"$f":"data!PT33","v":""},{"$f":"data!PU33","v":""},{"$f":"data!PV33","v":""},{"$f":"data!PW33","v":""},{"$f":"data!PX33","v":""},{"$f":"data!PY33","v":""},{"$f":"data!PZ33","v":""},{"$f":"data!QA33","v":""},{"$f":"data!QB33","v":""},{"$f":"data!QC33","v":""},{"$f":"data!QD33","v":""},{"$f":"data!QE33","v":""},{"$f":"data!QF33","v":""},{"$f":"data!QG33","v":""},{"$f":"data!QH33","v":""},{"$f":"data!QI33","v":""},{"$f":"data!QJ33","v":""},{"$f":"data!QK33","v":""},{"$f":"data!QL33","v":""},{"$f":"data!QM33","v":""},{"$f":"data!QN33","v":""},null,{"$f":"data!$NA$33","v":""},{"$f":"data!$NB$33","v":""},{"$f":"data!RR33","v":""}]
[{"$f":"data!$NA$34","v":""},{"$f":"data!$NB$34","v":""},{"$f":"data!PL34","v":""},{"$f":"data!PM34","v":""},{"$f":"data!PN34","v":""},{"$f":"data!PO34","v":""},{"$f":"data!PP34","v":""},{"$f":"data!PQ34","v":""},{"$f":"data!PR34","v":""},{"$f":"data!PS34","v":""},{"$f":"data!PT34","v":""},{"$f":"data!PU34","v":""},{"$f":"data!PV34","v":""},{"$f":"data!PW34","v":""},{"$f":"data!PX34","v":""},{"$f":"data!PY34","v":""},{"$f":"data!PZ34","v":""},{"$f":"data!QA34","v":""},{"$f":"data!QB34","v":""},{"$f":"data!QC34","v":""},{"$f":"data!QD34","v":""},{"$f":"data!QE34","v":""},{"$f":"data!QF34","v":""},{"$f":"data!QG34","v":""},{"$f":"data!QH34","v":""},{"$f":"data!QI34","v":""},{"$f":"data!QJ34","v":""},{"$f":"data!QK34","v":""},{"$f":"data!QL34","v":""},{"$f":"data!QM34","v":""},{"$f":"data!QN34","v":""},null,{"$f":"data!$NA$34","v":""},{"$f":"data!$NB$34","v":""},{"$f":"data!RR34","v":""}]
[{"$f":"data!$NA$35","v":""},{"$f":"data!$NB$35","v":""},{"$f":"data!PL35","v":""},{"$f":"data!PM35","v":""},{"$f":"data!PN35","v":""},{"$f":"data!PO35","v":""},{"$f":"data!PP35","v":""},{"$f":"data!PQ35","v":""},{"$f":"data!PR35","v":""},{"$f":"data!PS35","v":""},{"$f":"data!PT35","v":""},{"$f":"data!PU35","v":""},{"$f":"data!PV35","v":""},{"$f":"data!PW35","v":""},{"$f":"data!PX35","v":""},{"$f":"data!PY35","v":""},{"$f":"data!PZ35","v":""},{"$f":"data!QA35","v":""},{"$f":"data!QB35","v":""},{"$f":"data!QC35","v":""},{"$f":"data!QD35","v":""},{"$f":"data!QE35","v":""},{"$f":"data!QF35","v":""},{"$f":"data!QG35","v":""},{"$f":"data!QH35","v":""},{"$f":"data!QI35","v":""},{"$f":"data!QJ35","v":""},{"$f":"data!QK35","v":""},{"$f":"data!QL35","v":""},{"$f":"data!QM35","v":""},{"$f":"data!QN35","v":""},null,{"$f":"data!$NA$35","v":""},{"$f":"data!$NB$35","v":""},{"$f":"data!RR35","v":""}]
[{"$f":"data!$NA$36","v":""},{"$f":"data!$NB$36","v":""},{"$f":"data!PL36","v":""},{"$f":"data!PM36","v":""},{"$f":"data!PN36","v":""},{"$f":"data!PO36","v":""},{"$f":"data!PP36","v":""},{"$f":"data!PQ36","v":""},{"$f":"data!PR36","v":""},{"$f":"data!PS36","v":""},{"$f":"data!PT36","v":""},{"$f":"data!PU36","v":""},{"$f":"data!PV36","v":""},{"$f":"data!PW36","v":""},{"$f":"data!PX36","v":""},{"$f":"data!PY36","v":""},{"$f":"data!PZ36","v":""},{"$f":"data!QA36","v":""},{"$f":"data!QB36","v":""},{"$f":"data!QC36","v":""},{"$f":"data!QD36","v":""},{"$f":"data!QE36","v":""},{"$f":"data!QF36","v":""},{"$f":"data!QG36","v":""},{"$f":"data!QH36","v":""},{"$f":"data!QI36","v":""},{"$f":"data!QJ36","v":""},{"$f":"data!QK36","v":""},{"$f":"data!QL36","v":""},{"$f":"data!QM36","v":""},{"$f":"data!QN36","v":""},null,{"$f":"data!$NA$36","v":""},{"$f":"data!$NB$36","v":""},{"$f":"data!RR36","v":""}]
[{"$f":"data!$NA$37","v":""},{"$f":"data!$NB$37","v":""},{"$f":"data!PL37","v":""},{"$f":"data!PM37","v":""},{"$f":"data!PN37","v":""},{"$f":"data!PO37","v":""},{"$f":"data!PP37","v":""},{"$f":"data!PQ37","v":""},{"$f":"data!PR37","v":""},{"$f":"data!PS37","v":""},{"$f":"data!PT37","v":""},{"$f":"data!PU37","v":""},{"$f":"data!PV37","v":""},{"$f":"data!PW37","v":""},{"$f":"data!PX37","v":""},{"$f":"data!PY37","v":""},{"$f":"data!PZ37","v":""},{"$f":"data!QA37","v":""},{"$f":"data!QB37","v":""},{"$f":"data!QC37","v":""},{"$f":"data!QD37","v":""},{"$f":"data!QE37","v":""},{"$f":"data!QF37","v":""},{"$f":"data!QG37","v":""},{"$f":"data!QH37","v":""},{"$f":"data!QI37","v":""},{"$f":"data!QJ37","v":""},{"$f":"data!QK37","v":""},{"$f":"data!QL37","v":""},{"$f":"data!QM37","v":""},{"$f":"data!QN37","v":""},null,{"$f":"data!$NA$37","v":""},{"$f":"data!$NB$37","v":""},{"$f":"data!RR37","v":""}]
[{"$f":"data!$NA$38","v":""},{"$f":"data!$NB$38","v":""},{"$f":"data!PL38","v":""},{"$f":"data!PM38","v":""},{"$f":"data!PN38","v":""},{"$f":"data!PO38","v":""},{"$f":"data!PP38","v":""},{"$f":"data!PQ38","v":""},{"$f":"data!PR38","v":""},{"$f":"data!PS38","v":""},{"$f":"data!PT38","v":""},{"$f":"data!PU38","v":""},{"$f":"data!PV38","v":""},{"$f":"data!PW38","v":""},{"$f":"data!PX38","v":""},{"$f":"data!PY38","v":""},{"$f":"data!PZ38","v":""},{"$f":"data!QA38","v":""},{"$f":"data!QB38","v":""},{"$f":"data!QC38","v":""},{"$f":"data!QD38","v":""},{"$f":"data!QE38","v":""},{"$f":"data!QF38","v":""},{"$f":"data!QG38","v":""},{"$f":"data!QH38","v":""},{"$f":"data!QI38","v":""},{"$f":"data!QJ38","v":""},{"$f":"data!QK38","v":""},{"$f":"data!QL38","v":""},{"$f":"data!QM38","v":""},{"$f":"data!QN38","v":""},null,{"$f":"data!$NA$38","v":""},{"$f":"data!$NB$38","v":""},{"$f":"data!RR38","v":""}]
[{"$f":"data!$NA$39","v":""},{"$f":"data!$NB$39","v":""},{"$f":"data!PL39","v":""},{"$f":"data!PM39","v":""},{"$f":"data!PN39","v":""},{"$f":"data!PO39","v":""},{"$f":"data!PP39","v":""},{"$f":"data!PQ39","v":""},{"$f":"data!PR39","v":""},{"$f":"data!PS39","v":""},{"$f":"data!PT39","v":""},{"$f":"data!PU39","v":""},{"$f":"data!PV39","v":""},{"$f":"data!PW39","v":""},{"$f":"data!PX39","v":""},{"$f":"data!PY39","v":""},{"$f":"data!PZ39","v":""},{"$f":"data!QA39","v":""},{"$f":"data!QB39","v":""},{"$f":"data!QC39","v":""},{"$f":"data!QD39","v":""},{"$f":"data!QE39","v":""},{"$f":"data!QF39","v":""},{"$f":"data!QG39","v":""},{"$f":"data!QH39","v":""},{"$f":"data!QI39","v":""},{"$f":"data!QJ39","v":""},{"$f":"data!QK39","v":""},{"$f":"data!QL39","v":""},{"$f":"data!QM39","v":""},{"$f":"data!QN39","v":""},null,{"$f":"data!$NA$39","v":""},{"$f":"data!$NB$39","v":""},{"$f":"data!RR39","v":""}]
[{"$f":"data!$NA$40","v":""},{"$f":"data!$NB$40","v":""},{"$f":"data!PL40","v":""},{"$f":"data!PM40","v":""},{"$f":"data!PN40","v":""},{"$f":"data!PO40","v":""},{"$f":"data!PP40","v":""},{"$f":"data!PQ40","v":""},{"$f":"data!PR40","v":""},{"$f":"data!PS40","v":""},{"$f":"data!PT40","v":""},{"$f":"data!PU40","v":""},{"$f":"data!PV40","v":""},{"$f":"data!PW40","v":""},{"$f":"data!PX40","v":""},{"$f":"data!PY40","v":""},{"$f":"data!PZ40","v":""},{"$f":"data!QA40","v":""},{"$f":"data!QB40","v":""},{"$f":"data!QC40","v":""},{"$f":"data!QD40","v":""},{"$f":"data!QE40","v":""},{"$f":"data!QF40","v":""},{"$f":"data!QG40","v":""},{"$f":"data!QH40","v":""},{"$f":"data!QI40","v":""},{"$f":"data!QJ40","v":""},{"$f":"data!QK40","v":""},{"$f":"data!QL40","v":""},{"$f":"data!QM40","v":""},{"$f":"data!QN40","v":""},null,{"$f":"data!$NA$40","v":""},{"$f":"data!$NB$40","v":""},{"$f":"data!RR40","v":""}]
[{"$f":"data!$NA$41","v":""},{"$f":"data!$NB$41","v":""},{"$f":"data!PL41","v":""},{"$f":"data!PM41","v":""},{"$f":"data!PN41","v":""},{"$f":"data!PO41","v":""},{"$f":"data!PP41","v":""},{"$f":"data!PQ41","v":""},{"$f":"data!PR41","v":""},{"$f":"data!PS41","v":""},{"$f":"data!PT41","v":""},{"$f":"data!PU41","v":""},{"$f":"data!PV41","v":""},{"$f":"data!PW41","v":""},{"$f":"data!PX41","v":""},{"$f":"data!PY41","v":""},{"$f":"data!PZ41","v":""},{"$f":"data!QA41","v":""},{"$f":"data!QB41","v":""},{"$f":"data!QC41","v":""},{"$f":"data!QD41","v":""},{"$f":"data!QE41","v":""},{"$f":"data!QF41","v":""},{"$f":"data!QG41","v":""},{"$f":"data!QH41","v":""},{"$f":"data!QI41","v":""},{"$f":"data!QJ41","v":""},{"$f":"data!QK41","v":""},{"$f":"data!QL41","v":""},{"$f":"data!QM41","v":""},{"$f":"data!QN41","v":""},null,{"$f":"data!$NA$41","v":""},{"$f":"data!$NB$41","v":""},{"$f":"data!RR41","v":""}]
[{"$f":"data!$NB$42","v":""},null,{"$f":"data!PL42","v":""},{"$f":"data!PM42","v":""},{"$f":"data!PN42","v":""},{"$f":"data!PO42","v":""},{"$f":"data!PP42","v":""},{"$f":"data!PQ42","v":""},{"$f":"data!PR42","v":""},{"$f":"data!PS42","v":""},{"$f":"data!PT42","v":""},{"$f":"data!PU42","v":""},{"$f":"data!PV42","v":""},{"$f":"data!PW42","v":""},{"$f":"data!PX42","v":""},{"$f":"data!PY42","v":""},{"$f":"data!PZ42","v":""},{"$f":"data!QA42","v":""},{"$f":"data!QB42","v":""},{"$f":"data!QC42","v":""},{"$f":"data!QD42","v":""},{"$f":"data!QE42","v":""},{"$f":"data!QF42","v":""},{"$f":"data!QG42","v":""},{"$f":"data!QH42","v":""},{"$f":"data!QI42","v":""},{"$f":"data!QJ42","v":""},{"$f":"data!QK42","v":""},{"$f":"data!QL42","v":""},{"$f":"data!QM42","v":""},{"$f":"data!QN42","v":""},null,{"$f":"data!$NB$42","v":""},null,{"$f":"data!RR42","v":""},{"$f":"data!RS42","v":""},{"$f":"data!RT42","v":""}]
[null,null,{"$f":"data!PL43","v":""},null,null,null,null,null,null,null,null,null,null,null,null,null,{"$f":"data!PZ43","v":""},null,null,{"$f":"data!QC43","v":""},{"$f":"data!QD43","v":""},null,null,{"$f":"data!QG43","v":""},null,{"$f":"data!QI43","v":""},{"$f":"data!QJ43","v":""},{"$f":"data!QK43","v":""},{"$f":"data!QL43","v":""},{"$f":"data!QM43","v":""},{"$f":"data!QN43","v":""}]
[]
[{"$f":"data!RC25","v":"Hardware Prefetch Rate (%) (/Hardware Prefetch) "},null,{"$f":"data!RC27","v":"L1"},null,null,{"$f":"data!RF27","v":"L2"},null,null,{"$f":"data!RI27","v":"L1/L2"},null,{"$f":"data!QO25","v":"FLOPS"},null,{"$f":"data!QO28","v":"Double precision floating-point operation"},{"$f":"data!QP28","v":"Single precision floating-point operation"},{"$f":"data!QQ28","v":"Half precision floating-point operation"},{"$f":"data!QR28","v":"GFLOPS by Active element rate"},null,{"$f":"data!QS25","v":"Extra"},null,{"$f":"data!QS26","v":"Gather instruction rate (%)"},null,null,{"$f":"data!QV26","v":"Instruction"},null,null,null,null,null,{"$f":"data!RB28","v":"Branch prediction miss rate (%)"}]
[null,null,{"$f":"data!RC28","v":"Stream mode prefetch rate"},{"$f":"data!RD28","v":"Injection mode allocate prefetch rate"},{"$f":"data!RE28","v":"Injection mode unallocate prefetch rate"},{"$f":"data!RF28","v":"Stream mode prefetch rate"},{"$f":"data!RG28","v":"Injection mode allocate prefetch rate"},{"$f":"data!RH28","v":"Injection mode unallocate prefetch rate"},{"$f":"data!RI28","v":"Other hardware prefetch"},null,null,null,null,null,null,null,null,null,null,{"$f":"data!QS28","v":"0 flow rate (%)"},{"$f":"data!QT28","v":"1 flow rate (%)"},{"$f":"data!QU28","v":"2 flows rate (%)"},{"$f":"data!QV28","v":"Micro-operation instruction"},{"$f":"data!QW28","v":"Element manipulated instruction"},{"$f":"data!QX28","v":"Register manipulated instruction"},{"$f":"data!QY28","v":"MOVPRFX instruction"},{"$f":"data!QZ28","v":"Math functional instruction"},{"$f":"data!RA28","v":"Micro decomposition instruction rate (%)"}]
[]
[]
[]
["Process ","Thread",null,null,null,null,null,null,null,null,"Process ","Thread",null,null,null,null,null,"Process ","Thread"]
[{"$f":"data!$NA$30","v":""},{"$f":"data!$NB$30","v":""},{"$f":"data!RC30","v":""},{"$f":"data!RD30","v":""},{"$f":"data!RE30","v":""},{"$f":"data!RF30","v":""},{"$f":"data!RG30","v":""},{"$f":"data!RH30","v":""},{"$f":"data!RI30","v":""},null,{"$f":"data!$NA$30","v":""},{"$f":"data!$NB$30","v":""},{"$f":"data!QO30","v":""},{"$f":"data!QP30","v":""},{"$f":"data!QQ30","v":""},{"$f":"data!QR30","v":""},null,{"$f":"data!$NA$30","v":""},{"$f":"data!$NB$30","v":""},{"$f":"data!QS30","v":""},{"$f":"data!QT30","v":""},{"$f":"data!QU30","v":""},{"$f":"data!QV30","v":""},{"$f":"data!QW30","v":""},{"$f":"data!QX30","v":""},{"$f":"data!QY30","v":""},{"$f":"data!QZ30","v":""},{"$f":"data!RA30","v":""},{"$f":"data!RB30","v":""}]
[{"$f":"data!$NA$31","v":""},{"$f":"data!$NB$31","v":""},{"$f":"data!RC31","v":""},{"$f":"data!RD31","v":""},{"$f":"data!RE31","v":""},{"$f":"data!RF31","v":""},{"$f":"data!RG31","v":""},{"$f":"data!RH31","v":""},{"$f":"data!RI31","v":""},null,{"$f":"data!$NA$31","v":""},{"$f":"data!$NB$31","v":""},{"$f":"data!QO31","v":""},{"$f":"data!QP31","v":""},{"$f":"data!QQ31","v":""},{"$f":"data!QR31","v":""},null,{"$f":"data!$NA$31","v":""},{"$f":"data!$NB$31","v":""},{"$f":"data!QS31","v":""},{"$f":"data!QT31","v":""},{"$f":"data!QU31","v":""},{"$f":"data!QV31","v":""},{"$f":"data!QW31","v":""},{"$f":"data!QX31","v":""},{"$f":"data!QY31","v":""},{"$f":"data!QZ31","v":""},{"$f":"data!RA31","v":""},{"$f":"data!RB31","v":""}]
[{"$f":"data!$NA$32","v":""},{"$f":"data!$NB$32","v":""},{"$f":"data!RC32","v":""},{"$f":"data!RD32","v":""},{"$f":"data!RE32","v":""},{"$f":"data!RF32","v":""},{"$f":"data!RG32","v":""},{"$f":"data!RH32","v":""},{"$f":"data!RI32","v":""},null,{"$f":"data!$NA$32","v":""},{"$f":"data!$NB$32","v":""},{"$f":"data!QO32","v":""},{"$f":"data!QP32","v":""},{"$f":"data!QQ32","v":""},{"$f":"data!QR32","v":""},null,{"$f":"data!$NA$32","v":""},{"$f":"data!$NB$32","v":""},{"$f":"data!QS32","v":""},{"$f":"data!QT32","v":""},{"$f":"data!QU32","v":""},{"$f":"data!QV32","v":""},{"$f":"data!QW32","v":""},{"$f":"data!QX32","v":""},{"$f":"data!QY32","v":""},{"$f":"data!QZ32","v":""},{"$f":"data!RA32","v":""},{"$f":"data!RB32","v":""}]
[{"$f":"data!$NA$33","v":""},{"$f":"data!$NB$33","v":""},{"$f":"data!RC33","v":""},{"$f":"data!RD33","v":""},{"$f":"data!RE33","v":""},{"$f":"data!RF33","v":""},{"$f":"data!RG33","v":""},{"$f":"data!RH33","v":""},{"$f":"data!RI33","v":""},null,{"$f":"data!$NA$33","v":""},{"$f":"data!$NB$33","v":""},{"$f":"data!QO33","v":""},{"$f":"data!QP33","v":""},{"$f":"data!QQ33","v":""},{"$f":"data!QR33","v":""},null,{"$f":"data!$NA$33","v":""},{"$f":"data!$NB$33","v":""},{"$f":"data!QS33","v":""},{"$f":"data!QT33","v":""},{"$f":"data!QU33","v":""},{"$f":"data!QV33","v":""},{"$f":"data!QW33","v":""},{"$f":"data!QX33","v":""},{"$f":"data!QY33","v":""},{"$f":"data!QZ33","v":""},{"$f":"data!RA33","v":""},{"$f":"data!RB33","v":""}]
[{"$f":"data!$NA$34","v":""},{"$f":"data!$NB$34","v":""},{"$f":"data!RC34","v":""},{"$f":"data!RD34","v":""},{"$f":"data!RE34","v":""},{"$f":"data!RF34","v":""},{"$f":"data!RG34","v":""},{"$f":"data!RH34","v":""},{"$f":"data!RI34","v":""},null,{"$f":"data!$NA$34","v":""},{"$f":"data!$NB$34","v":""},{"$f":"data!QO34","v":""},{"$f":"data!QP34","v":""},{"$f":"data!QQ34","v":""},{"$f":"data!QR34","v":""},null,{"$f":"data!$NA$34","v":""},{"$f":"data!$NB$34","v":""},{"$f":"data!QS34","v":""},{"$f":"data!QT34","v":""},{"$f":"data!QU34","v":""},{"$f":"data!QV34","v":""},{"$f":"data!QW34","v":""},{"$f":"data!QX34","v":""},{"$f":"data!QY34","v":""},{"$f":"data!QZ34","v":""},{"$f":"data!RA34","v":""},{"$f":"data!RB34","v":""}]
[{"$f":"data!$NA$35","v":""},{"$f":"data!$NB$35","v":""},{"$f":"data!RC35","v":""},{"$f":"data!RD35","v":""},{"$f":"data!RE35","v":""},{"$f":"data!RF35","v":""},{"$f":"data!RG35","v":""},{"$f":"data!RH35","v":""},{"$f":"data!RI35","v":""},null,{"$f":"data!$NA$35","v":""},{"$f":"data!$NB$35","v":""},{"$f":"data!QO35","v":""},{"$f":"data!QP35","v":""},{"$f":"data!QQ35","v":""},{"$f":"data!QR35","v":""},null,{"$f":"data!$NA$35","v":""},{"$f":"data!$NB$35","v":""},{"$f":"data!QS35","v":""},{"$f":"data!QT35","v":""},{"$f":"data!QU35","v":""},{"$f":"data!QV35","v":""},{"$f":"data!QW35","v":""},{"$f":"data!QX35","v":""},{"$f":"data!QY35","v":""},{"$f":"data!QZ35","v":""},{"$f":"data!RA35","v":""},{"$f":"data!RB35","v":""}]
[{"$f":"data!$NA$36","v":""},{"$f":"data!$NB$36","v":""},{"$f":"data!RC36","v":""},{"$f":"data!RD36","v":""},{"$f":"data!RE36","v":""},{"$f":"data!RF36","v":""},{"$f":"data!RG36","v":""},{"$f":"data!RH36","v":""},{"$f":"data!RI36","v":""},null,{"$f":"data!$NA$36","v":""},{"$f":"data!$NB$36","v":""},{"$f":"data!QO36","v":""},{"$f":"data!QP36","v":""},{"$f":"data!QQ36","v":""},{"$f":"data!QR36","v":""},null,{"$f":"data!$NA$36","v":""},{"$f":"data!$NB$36","v":""},{"$f":"data!QS36","v":""},{"$f":"data!QT36","v":""},{"$f":"data!QU36","v":""},{"$f":"data!QV36","v":""},{"$f":"data!QW36","v":""},{"$f":"data!QX36","v":""},{"$f":"data!QY36","v":""},{"$f":"data!QZ36","v":""},{"$f":"data!RA36","v":""},{"$f":"data!RB36","v":""}]
[{"$f":"data!$NA$37","v":""},{"$f":"data!$NB$37","v":""},{"$f":"data!RC37","v":""},{"$f":"data!RD37","v":""},{"$f":"data!RE37","v":""},{"$f":"data!RF37","v":""},{"$f":"data!RG37","v":""},{"$f":"data!RH37","v":""},{"$f":"data!RI37","v":""},null,{"$f":"data!$NA$37","v":""},{"$f":"data!$NB$37","v":""},{"$f":"data!QO37","v":""},{"$f":"data!QP37","v":""},{"$f":"data!QQ37","v":""},{"$f":"data!QR37","v":""},null,{"$f":"data!$NA$37","v":""},{"$f":"data!$NB$37","v":""},{"$f":"data!QS37","v":""},{"$f":"data!QT37","v":""},{"$f":"data!QU37","v":""},{"$f":"data!QV37","v":""},{"$f":"data!QW37","v":""},{"$f":"data!QX37","v":""},{"$f":"data!QY37","v":""},{"$f":"data!QZ37","v":""},{"$f":"data!RA37","v":""},{"$f":"data!RB37","v":""}]
[{"$f":"data!$NA$38","v":""},{"$f":"data!$NB$38","v":""},{"$f":"data!RC38","v":""},{"$f":"data!RD38","v":""},{"$f":"data!RE38","v":""},{"$f":"data!RF38","v":""},{"$f":"data!RG38","v":""},{"$f":"data!RH38","v":""},{"$f":"data!RI38","v":""},null,{"$f":"data!$NA$38","v":""},{"$f":"data!$NB$38","v":""},{"$f":"data!QO38","v":""},{"$f":"data!QP38","v":""},{"$f":"data!QQ38","v":""},{"$f":"data!QR38","v":""},null,{"$f":"data!$NA$38","v":""},{"$f":"data!$NB$38","v":""},{"$f":"data!QS38","v":""},{"$f":"data!QT38","v":""},{"$f":"data!QU38","v":""},{"$f":"data!QV38","v":""},{"$f":"data!QW38","v":""},{"$f":"data!QX38","v":""},{"$f":"data!QY38","v":""},{"$f":"data!QZ38","v":""},{"$f":"data!RA38","v":""},{"$f":"data!RB38","v":""}]
[{"$f":"data!$NA$39","v":""},{"$f":"data!$NB$39","v":""},{"$f":"data!RC39","v":""},{"$f":"data!RD39","v":""},{"$f":"data!RE39","v":""},{"$f":"data!RF39","v":""},{"$f":"data!RG39","v":""},{"$f":"data!RH39","v":""},{"$f":"data!RI39","v":""},null,{"$f":"data!$NA$39","v":""},{"$f":"data!$NB$39","v":""},{"$f":"data!QO39","v":""},{"$f":"data!QP39","v":""},{"$f":"data!QQ39","v":""},{"$f":"data!QR39","v":""},null,{"$f":"data!$NA$39","v":""},{"$f":"data!$NB$39","v":""},{"$f":"data!QS39","v":""},{"$f":"data!QT39","v":""},{"$f":"data!QU39","v":""},{"$f":"data!QV39","v":""},{"$f":"data!QW39","v":""},{"$f":"data!QX39","v":""},{"$f":"data!QY39","v":""},{"$f":"data!QZ39","v":""},{"$f":"data!RA39","v":""},{"$f":"data!RB39","v":""}]
[{"$f":"data!$NA$40","v":""},{"$f":"data!$NB$40","v":""},{"$f":"data!RC40","v":""},{"$f":"data!RD40","v":""},{"$f":"data!RE40","v":""},{"$f":"data!RF40","v":""},{"$f":"data!RG40","v":""},{"$f":"data!RH40","v":""},{"$f":"data!RI40","v":""},null,{"$f":"data!$NA$40","v":""},{"$f":"data!$NB$40","v":""},{"$f":"data!QO40","v":""},{"$f":"data!QP40","v":""},{"$f":"data!QQ40","v":""},{"$f":"data!QR40","v":""},null,{"$f":"data!$NA$40","v":""},{"$f":"data!$NB$40","v":""},{"$f":"data!QS40","v":""},{"$f":"data!QT40","v":""},{"$f":"data!QU40","v":""},{"$f":"data!QV40","v":""},{"$f":"data!QW40","v":""},{"$f":"data!QX40","v":""},{"$f":"data!QY40","v":""},{"$f":"data!QZ40","v":""},{"$f":"data!RA40","v":""},{"$f":"data!RB40","v":""}]
[{"$f":"data!$NA$41","v":""},{"$f":"data!$NB$41","v":""},{"$f":"data!RC41","v":""},{"$f":"data!RD41","v":""},{"$f":"data!RE41","v":""},{"$f":"data!RF41","v":""},{"$f":"data!RG41","v":""},{"$f":"data!RH41","v":""},{"$f":"data!RI41","v":""},null,{"$f":"data!$NA$41","v":""},{"$f":"data!$NB$41","v":""},{"$f":"data!QO41","v":""},{"$f":"data!QP41","v":""},{"$f":"data!QQ41","v":""},{"$f":"data!QR41","v":""},null,{"$f":"data!$NA$41","v":""},{"$f":"data!$NB$41","v":""},{"$f":"data!QS41","v":""},{"$f":"data!QT41","v":""},{"$f":"data!QU41","v":""},{"$f":"data!QV41","v":""},{"$f":"data!QW41","v":""},{"$f":"data!QX41","v":""},{"$f":"data!QY41","v":""},{"$f":"data!QZ41","v":""},{"$f":"data!RA41","v":""},{"$f":"data!RB41","v":""}]
[{"$f":"data!$NB$42","v":""},null,{"$f":"data!RC42","v":""},{"$f":"data!RD42","v":""},{"$f":"data!RE42","v":""},{"$f":"data!RF42","v":""},{"$f":"data!RG42","v":""},{"$f":"data!RH42","v":""},{"$f":"data!RI42","v":""},null,{"$f":"data!$NB$42","v":""},null,{"$f":"data!QO42","v":""},{"$f":"data!QP42","v":""},{"$f":"data!QQ42","v":""},{"$f":"data!QR42","v":""},null,{"$f":"data!$NB$42","v":""},null,{"$f":"data!QS42","v":""},{"$f":"data!QT42","v":""},{"$f":"data!QU42","v":""},{"$f":"data!QV42","v":""},{"$f":"data!QW42","v":""},{"$f":"data!QX42","v":""},{"$f":"data!QY42","v":""},{"$f":"data!QZ42","v":""},{"$f":"data!RA42","v":""},{"$f":"data!RB42","v":""}]
[null,null,null,null,null,null,null,null,null,null,null,null,null,null,null,null,null,null,null,{"$f":"data!QS43","v":""},null,null,{"$f":"data!QV43","v":""},{"$f":"data!QW43","v":""},null,{"$f":"data!QY43","v":""},{"$f":"data!QZ43","v":""},{"$f":"data!RA43","v":""},{"$f":"data!RB43","v":""}]
[{"$f":"data!RJ25","v":"Data Transfer CMGs"},null,{"$f":"data!RK26","v":"Destination (GB/s)"}]
[null,null,{"$f":"data!RK28","v":"Own memory"},{"$f":"data!RL28","v":"Other memory"},{"$f":"data!RP28","v":"Tofu"},{"$f":"data!RQ28","v":"PCI"}]
[]
[{"$f":"data!$NB$42","v":""},"read",{"$f":"data!RK30","v":""},{"$f":"data!RL30","v":""},{"$f":"data!RP30","v":""},{"$f":"data!RQ30","v":""}]
[null,"write",{"$f":"data!RK31","v":""},{"$f":"data!RL31","v":""},{"$f":"data!RP31","v":""},{"$f":"data!RQ31","v":""}]

{"sheet":"data","index":1,"n_rows":56,"n_cols":617,"rows_kept":56,"cut":false,"hidden":true,"merged":[[37,568,38,568],[37,562,38,562],[37,558,38,558],[37,559,38,559],[37,563,38,563],[37,564,38,564],[37,538,38,538],[37,554,38,554],[37,551,38,551],[37,553,38,553],[37,542,38,542],[37,544,38,544],[37,546,38,546],[37,569,38,569],[37,567,38,567],[37,545,38,545],[37,550,38,550],[37,539,38,539],[37,540,38,540],[37,543,38,543],[37,541,38,541],[37,557,38,557],[37,555,38,555],[37,556,38,556],[37,552,38,552],[37,565,38,565],[37,566,38,566],[37,560,38,560],[37,561,38,561],[10,16,11,16],[13,16,14,16],[17,16,18,16],[25,478,26,484],[42,427,42,440],[42,441,42,443],[42,445,42,447],[42,448,42,449],[42,464,42,465],[42,460,42,462]]}
["◆Common data zone",null,null,"Creation date: 20200803",null,null,null,null,null,null,null,null,null,null,null,null,null,null,null,null,null,null,null,null,null,null,null,"◆ES data zone",null,null,null,null,null,null,null,null,null,null,null,null,null,null,null,null,null,null,null,null,null,null,null,null,null,null,null,null,null,null,null,null,null,null,null,null,null,null,null,null,null,null,null,null,null,null,null,null,null,null,null,null,null,null,null,null,null,null,null,null,null,null,null,null,null,null,null,null,null,null,null,null,null,null,null,null,null,null,null,null,null,null,null,null,null,null,null,null,null,null,null,null,null,null,null,null,null,null,null,null,null,null,null,null,null,null,null,null,null,null,null,null,null,null,null,null,null,null,null,null,null,null,null,null,null,null,null,null,null,null,null,null,null,null,null,null,null,null,null,null,null,null,null,null,null,null,null,null,null,null,null,null,null,null,null,null,null,null,null,null,null,null,null,null,null,null,null,null,null,null,null,null,null,null,null,null,null,null,null,null,null,null,null,null,null,null,null,null,null,null,null,null,null,null,null,null,null,null,null,null,null,null,null,null,null,null,null,null,null,null,null,null,null,null,null,null,null,null,null,null,null,null,null,null,null,null,null,null,null,null,null,null,null,null,null,null,null,null,null,null,null,null,null,null,null,null,null,null,null,null,null,null,null,null,null,null,null,null,null,null,null,null,null,null,null,null,null,null,null,null,null,null,null,null,null,null,null,null,null,null,null,null,null,null,null,null,null,null,null,null,null,null,null,null,null,null,null,null,null,null,null,null,null,null,null,null,null,null,null,null,null,null,"◆INFO data zone",null,null,null,null,null,null,null,null,null,null,null,null,null,null,null,null,null,null,null,null,null,null,"◆Calculate data zone",null,null,null,null,null,null,null,null,null,null,null,null,null,null,null,null,null,null,null,null,null,null,null,null,null,null,null,null,null,null,null,null,null,null,null,null,null,null,null,null,null,null,null,null,null,null,null,null,null,null,null,null,null,null,null,null,null,null,null,null,null,null,null,null,null,null,null,null,null,null,null,null,null,null,null,null,null,null,null,null,null,null,null,null,null,null,null,null,null,null,null,null,null,null,null,null,null,null,null,null,null,null,null,null,null,null,null,null,null,null,null,null,null,null,null,null,null,null,null,null,null,null,null,null,null,null,null,null,null,null,null,null,null,null,null,null,null,null,null,null,null,null,null,null,null,null,null,null,null,null,null,null,null,null,null,null,null,null,null,null,null,null,null,null,null,null,"◆Graph zone",null,null,null,null,null,null,null,null,null,null,null,null,null,null,null,null,null,null,null,null,null,null,null,null,null,null,null,null,null,null,null,null,null,null,null,null,null,null,null,null,null,null,null,null,null,null,null,null,null,null,null,null,null,null,null,null,null,null,null,null,null,null,null,null,null,null,null,null,"◆Temporary data zone"]
[null,"Hardware constant list",null,null,null,"Information",null,null,null,"Navigation",null,null,null,"Level",null,null,"Threshold",null,null,null,"Lang",null,null,"Correction flag",null,null,null,"注意点：これ以降のゾーンは共通データゾーンと重ならない行から開始することとした"]
[null,"Item name","Value","Comment",null,"Item Name","Value",null,null,"ES No.","ES name","Measured",null,"Table","Level",null,"No.","Item","Value",null,"Lang","Value",null,"Correction flag","Value","Comment",null,null,"ES data zone、INFO data zoneおよびCalculate data zoneのヘッダ部の高さが固定でないためINFO data zone と合わせるとお互いにセルの高さがまちまちにならないようにした。"]
[null,"Counter-timer Frequency(Hz)",null,"CNTFRQの値",null,{"$f":"label!C5","v":"Measured time"},{"$f":"\"\"","v":""},null,null,"pa1",null,{"$f":"IF(COUNT(AC30:CB41)=0,\"\",\"True\")","v":""},null,"Statistics",{"$f":"IF($L$20=\"True\",\"Lv4\",IF($L$14=\"True\",\"Lv3\",IF($L$8=\"True\",\"Lv2\",IF($L$4=\"True\",\"Lv1\",\"\"))))","v":""},null,"A03","A03",0.3,null,"default",1,null,"data_GuardLimitFlag",0,"上下限ガードフラグ",null,null,"これ以降のzone data のデータ入力部および出力部は30行目から開始するように位置配置を決めた。"]
[null,"CLOCKFREQ",null,"CPU clock周波数 (例: 1.8*10^9[Hz])",null,{"$f":"label!C6","v":"Node name"},{"$f":"\"\"","v":""},null,null,"pa2",null,{"$f":"IF(COUNT(AU30:BK41)=0,\"\",\"True\")","v":""},null,"Cycle Accounting",{"$f":"IF($L$20=\"True\",\"Lv4\",IF($L$14=\"True\",\"Lv3\",IF($L$8=\"True\",\"Lv2\",\"\")))","v":""},null,"C03","C03",0.7,null,"ItemNo",0,null,"※マクロの編集は[Alt+F11]"]
[null,"Memory band width(GB/s)",256,"1CMG性能",null,"Command",null,null,null,"pa3",null,{"$f":"IF(COUNT(BM30:CD41)=0,\"\",\"True\")","v":""},null,"Busy",{"$f":"IF($L$20=\"True\",\"Lv4\",IF($L$14=\"True\",\"Lv3\",IF($L$8=\"True\",\"Lv2\",\"\")))","v":""},null,"C04","C04",0.8,null,"ENG",1,null,"下限ガード関数: GuardLimitLower()"]
[null,"Line size of cache",256,"Cacheのラインサイズ",null,"Job-ID",null,null,null,"pa4",null,{"$f":"IF(COUNT(CE30:DN41)=0,\"\",\"True\")","v":""},null,"Cache","",null,"C05","C05",0.75,null,"JPN",2,null,"    0       :ガードする"]
[null,"Line size of BUS",256,"BUSのラインサイズ",null,"Item Name","Value",null,null,"pa5",null,{"$f":"IF(COUNT(CW30:DM41)=0,\"\",\"True\")","v":""},null,"Instruction","",null,"C17","C17",0.1,null,"LANG",1,null,"    0以外:ガードしない"]
[null,"Data size",3,"1: Half precision (2 byte)\n2: Single precision (4 byte)\n3: Double precision (8 byte)",null,{"$f":"label!C8","v":"Spawn no."},0,null,null,"pa6",null,{"$f":"IF(COUNT(DO30:EF41)=0,\"\",\"True\")","v":""},null,"FLOPS","",null,"D01","D01",5.0000000000000001E-3,null,null,null,null,"上限ガード関数: GuardLimitUpper()"]
[null,"Vector length (bit)",null,"VL",null,{"$f":"label!C9","v":"Process no."},{"$f":"\"\"","v":""},null,null,"pa7",null,{"$f":"IF(COUNT(EG30:KK41)=0,\"\",\"True\")","v":""},null,"Extra",null,null,"D04","D04",0.56000000000000005,null,null,null,null,"    0       :ガードする"]
[null,"Vector length",{"$f":"C10/128","v":0},"VL/128 (SIMD演算のSIMD計算用係数)",null,{"$f":"label!C10","v":"CMG no."},{"$f":"\"\"","v":""},null,null,"pa8",null,{"$f":"IF(COUNT(EY30:FP41)=0,\"\",\"True\")","v":""},null,"Hardware Prefetch",null,null,"D05","D05",0.2,null,null,null,null,"    0以外:ガードしない"]
[null,"Vector length",{"$f":"C10/64","v":0},"VL/64",null,{"$f":"label!C11","v":"Measured region"},{"$f":"\"\"","v":""},null,null,"pa9",null,{"$f":"IF(COUNT(FQ30:GH41)=0,\"\",\"True\")","v":""},null,"CMG",null,null,null,"D04",0.04]
[null,"EFCTFRQ(Hz)",{"$f":"IF(OR(COUNT(AL30:AL41)=0,COUNT(AK30:AK41)=0),\"\",AL30/AK30*$C$4)","v":""},"実効clock周波数(core0の実測値から算出)",null,"Item Name","Value",null,null,"pa10",null,{"$f":"IF(COUNT(GI30:GZ41)=0,\"\",\"True\")","v":""},null,"Power Consumption",null,null,"D09","D09",0.56000000000000005]
[null,"The number of core(/NODE)",48,"1NODEあたりのCore数",null,{"$f":"label!C12","v":"Vector length (bit)"},{"$f":"IF(C10=\"\",\"\",C10)","v":""},null,null,"pa11",null,{"$f":"IF(COUNT(HA30:JS41)=0,\"\",\"True\")","v":""},null,null,null,null,"D10","D10",0.2]
[null,"The number of core(/CMG)",12,"1CMGあたりのCore数",null,{"$f":"label!C13","v":"CPU frequency (GHz)"},{"$f":"IF(C13=\"\",\"\",C13/10^9)","v":""},null,null,"pa12",null,{"$f":"IF(COUNT(HS30:JT41)=0,\"\",\"True\")","v":""},null,null,null,null,null,"D09",8.0000000000000002E-3]
[null,"The number of calc[/core/cycle]",32,"1cycle当たりの1coreの最大演算数(8byte演算時)",null,null,null,null,null,"pa13",null,{"$f":"IF(COUNT(JC30:JS41)=0,\"\",\"True\")","v":""},null,null,null,null,"D13","D13",0.01]
[null,"Predicate coefficient",16,"Predicate係数",null,null,null,null,null,"pa14",null,{"$f":"IF(COUNT(IK30:KL41)=0,\"\",\"True\")","v":""},null,null,null,null,"D14","D14",5.0000000000000002E-5]
[null,"CPU PA report ver.","4.2.1","CPU性能解析レポート版数",null,null,null,null,null,"pa15",null,{"$f":"IF(COUNT(JU30:KL41)=0,\"\",\"True\")","v":""},null,null,null,null,"L02~L18","L02-L18_low",0.95]
[null,"CSV ver. upper limit",2,"CSVバージョン上限",null,null,null,null,null,"pa16",null,{"$f":"IF(COUNT(KM30:LD41)=0,\"\",\"True\")","v":""},null,null,null,null,null,"L02-L18_upper",1.05]
[null,"CSV ver. lower limit",1,"CSVバージョン下限",null,null,null,null,null,"pa17",null,{"$f":"IF(COUNT(LE30:LT41)=0,\"\",\"True\")","v":""},null,null,null,null,"MeanTime","M02",1.4999999999999999E-4]
[null,"CSV ver.",null,"CSVバージョン"]
[]
[]
[null,null,null,"注意点："]
[null,null,null,"csvデータのコピーエリア",null,null,null,null,null,null,null,null,null,null,null,null,null,null,null,null,null,null,null,null,null,null,null,null,null,null,null,null,null,null,null,null,null,null,null,null,null,null,null,null,null,null,null,null,null,null,null,null,null,null,null,null,null,null,null,null,null,null,null,null,null,null,null,null,null,null,null,null,null,null,null,null,null,null,null,null,null,null,null,null,null,null,null,null,null,null,null,null,null,null,null,null,null,null,null,null,null,null,null,null,null,null,null,null,null,null,null,null,null,null,null,null,null,null,null,null,null,null,null,null,null,null,null,null,null,null,null,null,null,null,null,null,null,null,null,null,null,null,null,null,null,null,null,null,null,null,null,null,null,null,null,null,null,null,null,null,null,null,null,null,null,null,null,null,null,null,null,null,null,null,null,null,null,null,null,null,null,null,null,null,null,null,null,null,null,null,null,null,null,null,null,null,null,null,null,null,null,null,null,null,null,null,null,null,null,null,null,null,null,null,null,null,null,null,null,null,null,null,null,null,null,null,null,null,null,null,null,null,null,null,null,null,null,null,null,null,null,null,null,null,null,null,null,null,null,null,null,null,null,null,null,null,null,null,null,null,null,null,null,null,null,null,null,null,null,null,null,null,null,null,null,null,null,null,null,null,null,null,null,null,null,null,null,null,null,null,null,null,null,null,null,null,null,null,null,null,null,null,null,null,null,null,null,null,null,null,null,"dummyで任意のPMU番号を設定",null,null,null,null,null,null,null,null,null,null,null,null,null,null,null,null,null,null,null,null,null,null,null,null,null,null,null,null,null,null,null,null,null,null,null,null,null,null,null,null,null,null,null,null,null,null,null,null,null,null,null,null,null,null,{"$f":"label!C23","v":"Statistics"},{"$f":"IF($L$20=\"True\",\"Lv4\",IF($L$14=\"True\",\"Lv3\",IF($L$8=\"True\",\"Lv2\",IF($L$4=\"True\",\"Lv1\",\"\"))))","v":""},null,null,null,null,null,null,null,null,null,null,{"$f":"label!C40","v":"Cycle Accounting"},null,{"$f":"IF($L$20=\"True\",\"Lv4\",IF($L$14=\"True\",\"Lv3\",IF($L$8=\"True\",\"Lv2\",\"\")))","v":""},null,null,null,null,null,null,null,null,null,null,null,null,null,null,null,null,null,null,{"$f":"label!C79","v":"Busy"},{"$f":"IF($L$20=\"True\",\"Lv4\",IF($L$14=\"True\",\"Lv3\",IF($L$8=\"True\",\"Lv2\",\"\")))","v":""},null,null,null,null,null,null,null,null,null,null,null,null,{"$f":"label!C98","v":"Cache"},{"$f":"IF($L$20=\"True\",\"Lv4\",IF($L$14=\"True\",\"Lv3\",IF($L$8=\"True\",\"Lv2\",\"\")))","v":""},null,null,null,null,null,null,null,null,null,null,null,null,{"$f":"label!C121","v":"Instruction"},{"$f":"IF($L$20=\"True\",\"Lv4\",IF($L$14=\"True\",\"Lv3\",IF($L$8=\"True\",\"Lv2\",\"\")))","v":""},{"$f":"INDEX(Label_Instruction_Above,1,data_Lang_LangValue+1)","v":"Load-store instruction"},null,null,null,null,null,null,null,null,null,null,null,null,null,null,null,null,null,null,null,null,null,null,null,null,null,null,{"$f":"label!C182","v":"FLOPS"},null,null,null,{"$f":"label!C190","v":"Extra"},null,null,null,null,null,null,null,null,null,{"$f":"label!C226","v":"Hardware Prefetch Rate (%) (/Hardware Prefetch) "},null,null,null,null,null,null,{"$f":"label!C241","v":"Data Transfer CMGs"},null,null,null,null,null,null,null,{"$f":"label!C268","v":"Power Consumption (W)"},null,null,{"$f":"label!C276","v":"Variation of Time"},null,null,null,null,null,null,null,null,null,null,null,null,null,null,null,null,null,{"$f":"label!C318","v":"Mean Time"},null,{"$f":"label!C324","v":"Balance"},null,{"$f":"label!C332","v":"Cycle Count"},null,null,null,null,null,null,null,null,null,null,null,null,null,null,null,null,null,null,null,"Graph. Statistics",null,null,null,null,null,"Graph. Cycle accounting execution time (s) Lv2",null,null,null,null,null,null,null,null,null,null,null,"Graph. Cycle accounting execution time (s) Lv3",null,null,null,null,null,null,null,null,null,null,null,null,null,null,null,null,null,null,null,null,null,null,null,"Graph. Busy rate",null,null,null,null,null,null,null,"Graph. Cache L1D,L2 miss rate (/Load-store instructions)",null,null,null,null,null,null,null,null,null,null,null,null,"Graph. Breakdown of EP"]
[null,null,null,"編集可能データ",null,null,null,null,null,null,null,null,null,null,null,null,null,null,null,null,null,null,null,null,null,null,null,null,"Event Set 01",null,null,null,null,null,null,"Es01-A","Es01-B","Es01-C","Es01-1","Es01-2","Es01-3","Es01-4","Es01-5","Es01-6","Es01-7","Es01-8","Event Set 02",null,null,null,null,null,null,"Es02-A","Es02-B","Es02-C","Es02-1","Es02-2","Es02-3","Es02-4","Es02-5","Es02-6","Es02-7","Es02-8","Event Set 03",null,null,null,null,null,null,"Es03-A","Es03-B","Es03-C","Es03-1","Es03-2","Es03-3","Es03-4","Es03-5","Es03-6","Es03-7","Es03-8","Event Set 04",null,null,null,null,null,null,"Es04-A","Es04-B","Es04-C","Es04-1","Es04-2","Es04-3","Es04-4","Es04-5","Es04-6","Es04-7","Es04-8","Event Set 05",null,null,null,null,null,null,"Es05-A","Es05-B","Es05-C","Es05-1","Es05-2","Es05-3","Es05-4","Es05-5","Es05-6","Es05-7","Es05-8","Event Set 06",null,null,null,null,null,null,"Es06-A","Es06-B","Es06-C","Es06-1","Es06-2","Es06-3","Es06-4","Es06-5","Es06-6","Es06-7","Es06-8","Event Set 07",null,null,null,null,null,null,"Es07-A","Es07-B","Es07-C","Es07-１","Es07-２","Es07-３","Es07-４","Es07-５","Es07-６","Es07-７","Es07-８","Event Set 08",null,null,null,null,null,null,"Es08-A","Es08-B","Es08-C","Es8-1","Es8-2","Es8-3","Es8-4","Es08-5","Es08-6","Es08-7","Es08-8","Event Set 09",null,null,null,null,null,null,"Es09-A","Es09-B","Es09-C","Es09-1","Es09-2","Es09-3","Es09-4","Es09-5","Es09-6","Es09-7","Es09-8","Event Set 10",null,null,null,null,null,null,"Es10-A","Es10-B","Es10-C","Es10-1","Es10-2","Es10-3","Es10-4","Es10-5","Es10-6","Es10-7","Es10-8","Event Set 11",null,null,null,null,null,null,"Es11-A","Es11-B","Es11-C","Es11-1","Es11-2","Es11-3","Es11-4","Es11-5","Es11-6","Es11-7","Es11-8","Event Set 12",null,null,null,null,null,null,"Es12-A","Es12-B","Es12-C","Es12-1","Es12-2","Es12-3","Es12-4","Es12-5","Es12-6","Es12-7","Es12-8","Event Set 13",null,null,null,null,null,null,"Es13-A","Es13-B","Es13-C","Es13-1","Es13-2","Es13-3","Es13-4","Es13-5","Es13-6","Es13-7","Es13-8","Event Set 14",null,null,null,null,null,null,"Es14-A","Es14-B","Es14-C","Es14-1","Es14-2","Es14-3","Es14-4","Es14-5","Es14-6","Es14-7","Es14-8","Event Set 15",null,null,null,null,null,null,"Es15-A","Es15-B","Es15-Ｃ","Es15-1","Es15-2","Es15-3","Es15-4","Es15-5","Es15-6","Es15-7","Es15-8","Event Set 16",null,null,null,null,null,null,"Es16-A","Es16-B","Es16-C","Es16-1","Es16-2","Es16-3","Es16-4","Es16-5","Es16-6","Es16-7","Es16-8","Event Set 17",null,null,null,null,null,null,"Es17-Ａ","Es17-Ｂ","Es17-C","Es17-1","Es17-2","Es17-3","Es17-4","Es17-5","Es17-6","Es17-7","Es17-8",null,null,null,null,null,null,null,null,null,null,null,null,null,null,null,null,null,null,null,null,null,null,null,null,null,null,null,null,null,null,null,null,null,null,null,null,null,null,null,null,null,null,null,null,null,null,null,null,null,null,null,null,null,null,null,null,null,null,null,null,null,null,null,null,null,null,null,null,null,null,null,null,null,null,null,null,null,null,null,null,null,null,null,null,null,null,null,null,null,null,null,null,null,{"$f":"INDEX(Label_Instruction_Middle,1,data_Lang_LangValue+1)","v":"Load instruction"},null,null,null,null,null,null,null,{"$f":"INDEX(Label_Instruction_Middle,2,data_Lang_LangValue+1)","v":"Store instruction"},null,null,null,null,null,"Prefetch instruction",null,null,null,"Floating-point instruction",null,null,"Floating-point move and conversion instruction",null,null,null,null,null,null,null,null,null,null,null,{"$f":"INDEX(Label_Extra_Above,1,data_Lang_LangValue+1)","v":"Gather instruction rate (%)"},null,null,{"$f":"INDEX(Label_Extra_Above,2,data_Lang_LangValue+1)","v":"Instruction"},null,null,null,null,null,null,null,null,null,null,null,null,null,null,{"$f":"INDEX(Label_CMG_Above,1,data_Lang_LangValue+1)","v":"Destination (GB/s)"}]
[null,null,null,"ユーザフォームからの入力データ",null,null,null,null,null,null,null,null,null,null,null,null,null,null,null,null,null,null,null,null,null,null,null,"Event Set \nname",null,null,null,null,null,null,null,null,null,null,"FP_SCALE_OPS_SPEC","FP_FIXED_OPS_SPEC","L2D_CACHE_REFILL","L2D_CACHE_WB","L2D_SWAP_DM","L2D_CACHE_MIBMCH_PRF","EFFECTIVE_INST_SPEC","SIMD_INST_RETIRED",null,null,null,null,null,null,null,null,null,null,"0INST_COMMIT","1INST_COMMIT","LD_COMP_WAIT","LD_COMP_WAIT_PFP_BUSY","EU_COMP_WAIT","ROB_EMPTY","ROB_EMPTY_STQ_BUSY","WFE_WFI_CYCLE",null,null,null,null,null,null,null,null,null,null,"L1_PIPE0_VAL","L1_PIPE1_VAL","L2_PIPE_VAL","L1_PIPE_ABORT_STLD_INTLK","FLA_VAL","FLA_VAL_PRD_CNT","FLB_VAL","FLB_VAL_PRD_CNT",null,null,null,null,null,null,null,null,null,null,"L2D_SWAP_DM","L1D_CACHE_REFILL","L1D_CACHE_REFILL_PRF","L2D_CACHE_REFILL","L2D_CACHE_REFILL_DM","SVE_LD_GATHER_SPEC","SVE_ST_SCATTER_SPEC","L2D_CACHE_MIBMCH_PRF",null,null,null,null,null,null,null,null,null,null,"FP_SPEC","FP_FMA_SPEC","FP_RECPE_SPEC","LD_SPEC","ST_SPEC","ASE_SVE_LD_SPEC","ASE_SVE_ST_SPEC","PRF_SPEC",null,null,null,null,null,null,null,null,null,null,"LD_COMP_WAIT_EX","LD_COMP_WAIT_L1_MISS","LD_COMP_WAIT_L1_MISS_EX","LD_COMP_WAIT_L2_MISS","LD_COMP_WAIT_L2_MISS_EX","LD_COMP_WAIT_PFP_BUSY_EX","LD_COMP_WAIT_PFP_BUSY_SWPF","FL_COMP_WAIT",null,null,null,null,null,null,null,null,null,null,"2INST_COMMIT","3INST_COMMIT","4INST_COMMIT","BR_COMP_WAIT","FP_DP_SCALE_OPS_SPEC","FP_SP_SCALE_OPS_SPEC","FP_DP_FIXED_OPS_SPEC","FP_SP_FIXED_OPS_SPEC",null,null,null,null,null,null,null,null,null,null,"PRX_VAL","EA_CORE","EA_L2","EA_MEMORY","EAGA_VAL","EAGB_VAL","EXA_VAL","EXB_VAL",null,null,null,null,null,null,null,null,null,null,"L1D_CACHE_REFILL_PRF","L1D_CACHE_REFILL_HWPRF","L2D_CACHE_REFILL_PRF","L2D_CACHE_REFILL_HWPRF","L1D_TLB_REFILL","L2D_TLB_REFILL","L1I_CACHE_REFILL","L2D_CACHE_MIBMCH_PRF",null,null,null,null,null,null,null,null,null,null,"SVE_LDR_REG_SPEC","SVE_STR_REG_SPEC","SVE_LDFF_SPEC","SVE_PRF_GATHER_SPEC","SVE_PRF_CONTIG_SPEC","DCZVA_SPEC","ASE_SVE_INT_SPEC","BR_PRED",null,null,null,null,null,null,null,null,null,null,"ASE_SVE_LD_MULTI_SPEC","ASE_SVE_ST_MULTI_SPEC","FP_CVT_SPEC","FP_MV_SPEC","FP_ST_SPEC","PRD_SPEC","FP_LD_SPEC","BC_LD_SPEC",null,null,null,null,null,null,null,null,null,null,"UOP_SPEC","UOP_ONLY_COMMIT","SINGLE_MOVPRFX_COMMIT","UOP_SPLIT","BR_MIS_PRED","BR_PRED",null,null,null,null,null,null,null,null,null,null,null,null,"SVE_LDR_PREG_SPEC","SVE_STR_PREG_SPEC","SVE_MOVPRFX_SPEC","SVE_MATH_SPEC","IEL_SPEC","IREG_SPEC","CRYPTO_SPEC",null,null,null,null,null,null,null,null,null,null,null,"L1HWPF_STREAM_PF","L1HWPF_INJ_ALLOC_PF","L1HWPF_INJ_NOALLOC_PF","L2HWPF_STREAM_PF","L2HWPF_INJ_ALLOC_PF","L2HWPF_INJ_NOALLOC_PF","L2HWPF_OTHER",null,null,null,null,null,null,null,null,null,null,null,"L1_PIPE_COMP_GATHER_0FLOW","L1_PIPE_COMP_GATHER_1FLOW","L1_PIPE_COMP_GATHER_2FLOW","L1_PIPE0_COMP_PRD_CNT","L1_PIPE1_COMP_PRD_CNT","L1_PIPE0_COMP","L1_PIPE1_COMP",null,null,null,null,null,null,null,null,null,null,null,"L2_MISS_COUNT","L2D_CACHE_SWAP_LOCAL","L2_PIPE_COMP_PF_L2MIB_MCH","EFFECTIVE_INST_SPEC","BUS_WRITE_TOTAL_CMG0","BUS_WRITE_TOTAL_CMG1","BUS_WRITE_TOTAL_CMG2","BUS_WRITE_TOTAL_CMG3",null,null,null,null,null,null,null,null,null,null,"BUS_READ_TOTAL_MEM","BUS_READ_TOTAL_TOFU","BUS_READ_TOTAL_PCI","BUS_WRITE_TOTAL_MEM","BUS_WRITE_TOTAL_TOFU","BUS_WRITE_TOTAL_PCI","L2D_CACHE_REFILL_LOCAL_MEM","L2D_CACHE_WB_REMOTE",null,null,null,null,null,null,null,null,null,null,null,null,null,null,null,null,null,null,null,null,null,null,null,null,null,null,null,null,null,null,null,null,null,null,null,null,null,null,null,null,null,null,null,null,{"$f":"INDEX(Label_CycleAccounting_Above,1,data_Lang_LangValue+1)","v":"Prefetch port busy wait"},null,{"$f":"INDEX(Label_CycleAccounting_Above,2,data_Lang_LangValue+1)","v":"Memory access wait & Cache access wait"},null,null,null,null,null,{"$f":"INDEX(Label_CycleAccounting_Above,3,data_Lang_LangValue+1)","v":"Operation wait"},null,{"$f":"INDEX(Label_CycleAccounting_Above,4,data_Lang_LangValue+1)","v":"Other wait"},null,null,null,null,{"$f":"INDEX(Label_CycleAccounting_Above,9,data_Lang_LangValue+1)","v":"Other instruction commit"},null,null,null,null,null,null,null,null,null,null,null,null,null,null,null,null,null,null,null,null,null,null,null,null,null,null,null,null,null,null,null,null,null,{"$f":"INDEX(Label_Instruction_Middle2,1,data_Lang_LangValue+1)","v":"SIMD"},null,null,null,null,null,null,{"$f":"INDEX(Label_Instruction_Middle2,2,data_Lang_LangValue+1)","v":"Non-SIMD"},{"$f":"INDEX(Label_Instruction_Middle2,3,data_Lang_LangValue+1)","v":"SIMD"},null,null,null,null,{"$f":"INDEX(Label_Instruction_Middle2,4,data_Lang_LangValue+1)","v":"Non-SIMD"},null,null,null,null,null,null,null,null,null,null,null,null,null,null,null,null,null,null,null,null,null,null,null,null,null,null,null,null,null,{"$f":"INDEX(Label_HardwarePrefetch_Above,1,data_Lang_LangValue+1)","v":"L1"},null,null,{"$f":"INDEX(Label_HardwarePrefetch_Above,2,data_Lang_LangValue+1)","v":"L2"},null,null,{"$f":"INDEX(Label_HardwarePrefetch_Above,3,data_Lang_LangValue+1)","v":"L1/L2"},null,null,null,null,null,null,null,null,null,null,null,{"$f":"INDEX(Label_Time,1+COLUMN(RU$27)-COLUMN($RU$27),data_Lang_LangValue+1)","v":"Base Time (s)"},"statistics","cycleaccounting1","busy1","cache1","instruction1","cycleaccounting2","cycleaccounting3","busy2","cache2","instruction2","instruction3","cycleaccountingex","hardwareprefetch","extra1","extra2","CMG1","CMG2",null,null,null,null,null,null,null,null,null,null,null,null,null,null,null,null,null,null,null,null,null,null,null,null,null,null,null,null,null,null,"(a) Reference of 集合縦棒グラフ(通称: ヒゲグラフ)",null,null,null,null,null,null,null,null,null,null,null,"(a) Reference of 集合縦棒棒グラフ(通称: ヒゲグラフ)の元データ",null,null,null,null,null,null,null,null,null,null,null,null,null,null,null,null,null,null,null,null,null,null,null,"Reference data of horizontal bar graph",null,null,null,null,null,null,null,"(a) Reference data of horizontal bar graph",null,null,null,"(a) Reference data of horizontal bar graph",null,null,null,"(a) Reference data of horizontal bar graph"]
[null,null,null,null,null,null,null,null,null,null,null,null,null,null,null,null,null,null,null,null,null,null,null,null,null,null,null,"Label","LABEL-FAPP-cpupa","Level","Spawn","Process","Thread","Region_name","Region_number","Call","CNTVCT","PMCCNTR","0x80c0","0x80c1","0x0017","0x0018","0x0325","0x0326","0x0121","0x8000","LABEL-FAPP-cpupa","Level","Spawn","Process","Thread","Region_name","Region_number","Call","CNTVCT","PMCCNTR","0x0190","0x0191","0x0184","0x0186","0x0189","0x018c","0x018d","0x018e","LABEL-FAPP-cpupa","Level","Spawn","Process","Thread","Region_name","Region_number","Call","CNTVCT","PMCCNTR","0x0240","0x0241","0x0330","0x0274","0x01a4","0x01b4","0x01a5","0x01b5","LABEL-FAPP-cpupa","Level","Spawn","Process","Thread","Region_name","Region_number","Call","CNTVCT","PMCCNTR","0x0325","0x0003","0x0049","0x0017","0x0300","0x80ad","0x80ae","0x0326","LABEL-FAPP-cpupa","Level","Spawn","Process","Thread","Region_name","Region_number","Call","CNTVCT","PMCCNTR","0x8010","0x8028","0x8034","0x0070","0x0071","0x8085","0x8086","0x8087","LABEL-FAPP-cpupa","Level","Spawn","Process","Thread","Region_name","Region_number","Call","CNTVCT","PMCCNTR","0x0185","0x0182","0x0183","0x0180","0x0181","0x0187","0x0188","0x018a","LABEL-FAPP-cpupa","Level","Spawn","Process","Thread","Region_name","Region_number","Call","CNTVCT","PMCCNTR","0x0192","0x0193","0x0194","0x018b","0x80c6","0x80c4","0x80c7","0x80c5","LABEL-FAPP-cpupa","Level","Spawn","Process","Thread","Region_name","Region_number","Call","CNTVCT","PMCCNTR","0x01a6","0x01e0","0x03e0","0x03e8","0x01a0","0x01a1","0x01a2","0x01a3","LABEL-FAPP-cpupa","Level","Spawn","Process","Thread","Region_name","Region_number","Call","CNTVCT","PMCCNTR","0x0049","0x0202","0x0059","0x0302","0x0005","0x002d","0x0001","0x0326","LABEL-FAPP-cpupa","Level","Spawn","Process","Thread","Region_name","Region_number","Call","CNTVCT","PMCCNTR","0x8091","0x8092","0x80bc","0x80af","0x809f","0x009f","0x8043","0x0012","LABEL-FAPP-cpupa","Level","Spawn","Process","Thread","Region_name","Region_number","Call","CNTVCT","PMCCNTR","0x80a5","0x80a6","0x8038","0x0105","0x0113","0x0108","0x0112","0x011a","LABEL-FAPP-cpupa","Level","Spawn","Process","Thread","Region_name","Region_number","Call","CNTVCT","PMCCNTR","0x8008","0x0198","0x0199","0x0139","0x0010","0x0012","-","-","LABEL-FAPP-cpupa","Level","Spawn","Process","Thread","Region_name","Region_number","Call","CNTVCT","PMCCNTR","0x8095","0x8096","0x807c","0x800e","0x0109","0x010a","0x0077","-","LABEL-FAPP-cpupa","Level","Spawn","Process","Thread","Region_name","Region_number","Call","CNTVCT","PMCCNTR","0x0230","0x0231","0x0232","0x0233","0x0234","0x0235","0x0236","-","LABEL-FAPP-cpupa","Level","Spawn","Process","Thread","Region_name","Region_number","Call","CNTVCT","PMCCNTR","0x02b2","0x02b1","0x02b0","0x02b8","0x02b9","0x0260","0x0261","-","LABEL-FAPP-cpupa","Level","Spawn","Process","Thread","Region_name","Region_number","Call","CNTVCT","PMCCNTR","0x0309","0x0396","0x0370","0x0121","0x0318","0x0319","0x031a","0x031b","LABEL-FAPP-cpupa","Level","Spawn","Process","Thread","Region_name","Region_number","Call","CNTVCT","PMCCNTR","0x0316","0x0314","0x0315","0x031e","0x031c","0x031d","0x0391","0x03ae",null,null,null,null,null,null,null,"Mode State",null,null,null,null,null,null,null,null,null,null,null,null,null,null,null,null,null,null,null,null,null,null,null,null,{"$f":"INDEX(Label_Statistics,1+COLUMN(NC$28)-COLUMN($NC$28),data_Lang_LangValue+1)","v":"Execution time (s)"},"GFLOPS","Floating-point operation peak ratio (%)","Memory throughput (GB/s)","Memory throughput peak ratio (%)","Effective instruction","Floating-point operation","SIMD instruction rate (%) (/Effective instruction)","SVE operation rate (%)","Floating-point pipeline Active element rate (%)","IPC","GIPS",{"$f":"IF($NQ$25=\"Lv2\",INDEX(Label_CycleAccounting_Above,1,data_Lang_LangValue+1),\n                                  INDEX(Label_CycleAccounting,1+COLUMN(NO$28)-COLUMN($NO$28),data_Lang_LangValue+1) )","v":"Prefetch port busy wait by hardware prefetch"},{"$f":"INDEX(Label_CycleAccounting,1+COLUMN(NP$28)-COLUMN($NO$28),data_Lang_LangValue+1)","v":"Prefetch port busy wait by software prefetch"},"Integer load memory access wait","Floating-point load memory access wait","Integer load L2 cache access wait","Integer load L1D cache access wait",{"$f":"IF($NQ$25=\"Lv2\",INDEX(Label_CycleAccounting_Above,2,data_Lang_LangValue+1),\n                 INDEX(Label_CycleAccounting,1+COLUMN(NU$28)-COLUMN($NO$28),data_Lang_LangValue+1))","v":"Floating-point load L2 cache access wait"},{"$f":"INDEX(Label_CycleAccounting,1+COLUMN(NV$28)-COLUMN($NO$28),data_Lang_LangValue+1)","v":"Floating-point load L1D cache access wait (*)"},"Integer operation wait",{"$f":"IF($NQ$25=\"Lv2\",INDEX(Label_CycleAccounting_Above,3,data_Lang_LangValue+1),\n                                  INDEX(Label_CycleAccounting,1+COLUMN(NX$28)-COLUMN($NO$28),data_Lang_LangValue+1))","v":"Floating-point operation wait"},"Branch instruction wait",{"$f":"IF($NQ$25=\"Lv2\",INDEX(Label_CycleAccounting_Above,4,data_Lang_LangValue+1),\n  INDEX(Label_CycleAccounting,1+COLUMN(NZ$28)-COLUMN($NO$28),data_Lang_LangValue+1))","v":"Other wait"},"Store port busy wait","Instruction fetch wait","Barrier synchronization wait","1 instruction commit","2 instruction commit","3 instruction commit","4 instruction commit",{"$f":"IF($NQ$25=\"Lv2\",INDEX(Label_CycleAccounting_Above,9,data_Lang_LangValue+1),\n  INDEX(Label_CycleAccounting,1+COLUMN(OH$28)-COLUMN($NO$28),data_Lang_LangValue+1))","v":"Other instruction commit"},{"$f":"INDEX(Label_CycleAccounting,1+COLUMN(OI$28)-COLUMN($NO$28),data_Lang_LangValue+1)","v":"Total"},{"$f":"INDEX(Label_Busy,1+COLUMN(OJ$48)-COLUMN($OJ$48),data_Lang_LangValue+1)","v":"Floating-point operation pipeline A busy rate (%)"},"Floating-point operation pipeline B busy rate (%)","Integer operation pipeline A busy rate (%)","Integer operation pipeline B busy rate (%)","L1 busy rate (%)","L2 busy rate (%)","Memory busy rate (%)","Address calculation operation pipeline A busy rate (%)","Address calculation operation pipeline B busy rate (%)","Floating-point pipeline A Active element rate (%)","Floating-point pipeline B Active element rate (%)","L1 pipeline 0 Active element rate (%)","L1 pipeline 1 Active element rate (%)","SFI(Store Fetch Interlock) rate",{"$f":"INDEX(Label_Cache,1+COLUMN(OX$28)-COLUMN($OX$28),data_Lang_LangValue+1)","v":"L1I miss rate (/Effective instruction)"},"Load-store instruction","L1D miss",{"$f":"INDEX(Label_Cache,1+COLUMN(PA$28)-COLUMN($OX$28),data_Lang_LangValue+1)","v":"L1D miss rate (/Load-store instruction)"},"L1D miss demand rate (%) (/L1D miss)","L1D miss hardware prefetch rate (%) (/L1D miss)","L1D miss software prefetch rate (%) (/L1D miss)",{"$f":"INDEX(Label_Cache,1+COLUMN(PE$28)-COLUMN($OX$28),data_Lang_LangValue+1)","v":"L2 miss"},"L2 miss rate (/Load-store instruction)","L2 miss demand rate (%) (/L2 miss)","L2 miss hardware prefetch rate (%) (/L2 miss)","L2 miss software prefetch rate (%) (/L2 miss)","L1D TLB miss rate (/Load-store instruction)","L2D TLB miss rate (/Load-store instruction)",{"$f":"IF($PM$25=\"Lv2\",INDEX(Label_Instruction,30,data_Lang_LangValue+1),\n                                  INDEX(Label_Instruction,1+COLUMN(PL$28)-COLUMN($PL$28),data_Lang_LangValue+1))","v":"Single vector contiguous load instruction"},{"$f":"INDEX(Label_Instruction,1+COLUMN(PM$28)-COLUMN($PL$28),data_Lang_LangValue+1)","v":"Multiple vector contiguous structure load instruction"},{"$f":"INDEX(Label_Instruction,1+COLUMN(PN$28)-COLUMN($PL$28),data_Lang_LangValue+1)","v":"Non-contiguous gather load instruction"},{"$f":"INDEX(Label_Instruction,1+COLUMN(PO$28)-COLUMN($PL$28),data_Lang_LangValue+1)","v":"Broadcast load instruction"},{"$f":"IF($PM$25=\"Lv3\",INDEX(Label_Instruction,32,data_Lang_LangValue+1),\n  INDEX(Label_Instruction,1+COLUMN(PP$28)-COLUMN($PL$28),data_Lang_LangValue+1))","v":"Floating-point register fill instruction"},{"$f":"INDEX(Label_Instruction,1+COLUMN(PQ$28)-COLUMN($PL$28),data_Lang_LangValue+1)","v":"Predicate register fill instruction"},"First-fault load instruction","Non-SIMD load instruction",{"$f":"IF($PM$25=\"Lv2\",INDEX(Label_Instruction,31,data_Lang_LangValue+1),\n  INDEX(Label_Instruction,1+COLUMN(PT$28)-COLUMN($PL$28),data_Lang_LangValue+1))","v":"Single vector contiguous store instruction"},"Multiple vector contiguous structure store instruction","Non-contiguous scatter store instruction",{"$f":"IF($PM$25=\"Lv3\",INDEX(Label_Instruction,33,data_Lang_LangValue+1),\n   INDEX(Label_Instruction,1+COLUMN(PW$28)-COLUMN($PL$28),data_Lang_LangValue+1))","v":"Floating-point register spill instruction"},"Predicate register spill instruction","Non-SIMD store instruction","Contiguous prefetch instruction","Gathering prefetch instruction","Scalar prefetch instruction","DCZVA instruction","Floating-point instruction except FMA and reciprocal","FMA instruction","Floating-point reciprocal instruction","Floating-point conversion instruction","Floating-point move instruction","Integer instruction","Branch instruction","Predicate instruction","Crypto-graphic instruction","Other instruction","Total",{"$f":"INDEX(Label_Flops,1+COLUMN(QO$28)-COLUMN($QO$28),data_Lang_LangValue+1)","v":"Double precision floating-point operation"},"Single precision floating-point operation","Half precision floating-point operation","GFLOPS by Active element rate",{"$f":"INDEX(Label_Extra,1+COLUMN(QS$28)-COLUMN($QS$46),data_Lang_LangValue+1)","v":"0 flow rate (%)"},"1 flow rate (%)","2 flows rate (%)","Micro-operation instruction","Element manipulated instruction","Register manipulated instruction","MOVPRFX instruction","Math functional instruction","Micro decomposition instruction rate (%)","Branch prediction miss rate (%)",{"$f":"INDEX(Label_HardwarePrefetch,1+COLUMN(RC$28)-COLUMN($RC$28),data_Lang_LangValue+1)","v":"Stream mode prefetch rate"},{"$f":"INDEX(Label_HardwarePrefetch,1+COLUMN(RD$28)-COLUMN($RC$28),data_Lang_LangValue+1)","v":"Injection mode allocate prefetch rate"},"Injection mode unallocate prefetch rate","Stream mode prefetch rate","Injection mode allocate prefetch rate","Injection mode unallocate prefetch rate","Other hardware prefetch",null,{"$f":"INDEX(Label_CMG_READ,1+COLUMN(RK$28)-COLUMN($RK$28),data_Lang_LangValue+1)","v":"Own memory"},"Other memory",null,null,null,{"$f":"INDEX(Label_CMG_READ,1+COLUMN(RP$28)-COLUMN($RK$28),data_Lang_LangValue+1)","v":"Tofu"},"PCI",{"$f":"INDEX(Label_PowerConsumption,1+COLUMN(RR$28)-COLUMN($RR$28),data_Lang_LangValue+1)","v":"Power consumption used by core"},{"$f":"INDEX(Label_PowerConsumption,1+COLUMN(RS$28)-COLUMN($RR$28),data_Lang_LangValue+1)","v":"Power consumption used by L2 cache"},{"$f":"INDEX(Label_PowerConsumption,1+COLUMN(RT$28)-COLUMN($RR$28),data_Lang_LangValue+1)","v":"Power consumption used by memory"},{"$f":"INDEX(Label_Time_Short,1+COLUMN(RU$27)-COLUMN($RU$27),data_Lang_LangValue+1)","v":"-"},"pa1","pa2","pa3","pa4","pa5","pa6","pa7","pa8","pa9","pa10","pa11","pa12","pa13","pa14","pa15","pa16","pa17",{"$f":"INDEX(Label_MeanTime,1+COLUMN(SM$28)-COLUMN($SM$28),data_Lang_LangValue+1)","v":"Count"},{"$f":"INDEX(Label_MeanTime,1+COLUMN(SN$28)-COLUMN($SM$28),data_Lang_LangValue+1)","v":"Mean time (s)"},{"$f":"INDEX(Label_Balance,1+COLUMN(SO$28)-COLUMN($SO$28),data_Lang_LangValue+1)","v":"Load balance"},{"$f":"INDEX(Label_Balance,1+COLUMN(SP$28)-COLUMN($SO$28),data_Lang_LangValue+1)","v":"Instruction balance"},"pa1","pa2","pa3","pa4","pa5","pa6","pa7","pa8","pa9","pa10","pa11","pa12","pa13","pa14","pa15","pa16","pa17",null,null,null,null,"SIMD instruction ratio\n(/Effective instruction)","Floating-point  operation peak ratio","Memory throughput peak ratio",null,null,null,"Floating-point busy rate execution time","Integer busy rate execution time","L1 busy rate execution time","L2 busy rate execution time","Memory busy rate execution time",null,null,null,null,null,null,null,"Floating-point busy rate execution time","Integer busy rate execution time","L1 busy rate execution time","L2 busy rate execution time","Memory busy rate execution time",null,null,null,null,null,null,null,null,null,null,null,null,null,null,null,null,null,null,null,"Floating-point busy rate","Integer busy rate","L1 busy rate","L2 busy rate","Memory busy rate",null,null,null,"L1D miss rate(/Load store instruction)","L2 miss rate (/Load store instruction)",null,null,"demand rate(L1D,L2 miss)","hardware prefetch rate and software prefetch rate(L1D,L2 miss)",null,null,"demand rate(L1D,L2 miss)","hardware prefetch rate(L1D,L2 miss)","software prefetch rate(L1D,L2 miss)",null,null,"used by core","used by L2 cache","used by memory",null,null,null,"Used core"]
[null,null,null,null,null,null,null,null,null,null,null,null,null,null,null,null,null,null,null,null,null,null,null,null,null,null,null,"CSV Label",null,null,null,null,null,null,null,null,null,null,null,null,null,null,null,null,null,null,null,null,null,null,null,null,null,null,null,null,null,null,null,null,null,null,null,null,null,null,null,null,null,null,null,null,null,null,null,null,null,null,null,null,null,null,null,null,null,null,null,null,null,null,null,null,null,null,null,null,null,null,null,null,null,null,null,null,null,null,null,null,null,null,null,null,null,null,null,null,null,null,null,null,null,null,null,null,null,null,null,null,null,null,null,null,null,null,null,null,null,null,null,null,null,null,null,null,null,null,null,null,null,null,null,null,null,null,null,null,null,null,null,null,null,null,null,null,null,null,null,null,null,null,null,null,null,null,null,null,null,null,null,null,null,null,null,null,null,null,null,null,null,null,null,null,null,null,null,null,null,null,null,null,null,null,null,null,null,null,null,null,null,null,null,null,null,null,null,null,null,null,null,null,null,null,null,null,null,null,null,null,null,null,null,null,null,null,null,null,null,null,null,null,null,null,null,null,null,null,null,null,null,null,null,null,null,null,null,null,null,null,null,null,null,null,null,null,null,null,null,null,null,null,null,null,null,null,null,null,null,null,null,null,null,null,null,null,null,null,null,null,null,null,null,null,null,null,null,null,null,null,null,null,null,null,null,null,null,null,null,null,null,null,null,null,null,null,null,null,null,null,null,null,null,null,null,null,null,null,null,null,null,null,null,null,null,null,null,null,null,null,null,null,null,"ES01","ES02","ES03","ES04","ES05","ES06","ES07","ES08","ES09","ES10","ES11","ES12","ES13","ES14","ES15","ES16","ES17",null,null,null,null,null,null,"Process No.","Thread No.＼ID","A01","A02","A03","A04","A05","A06","A07","A08","A09","A10","A11","A12","B01","B02","B03","B04","B05","B06","B07","B08","B09","B10","B11","B12","B13","B14","B15","B16","B17","B18","B19","B20","B21","C01","C02","C03","C04","C05","C06","C07","C08","C09","C10","C11","C12","C13","C14","D01","D02","D03","D04","D05","D06","D07","D08","D09","D10","D11","D12","D13","D14","E01","E02","E03","E04","E05","E06","E07","E08","E09","E10","E11","E12","E13","E14","E15","E16","E17","E18","E19","E20","E21","E22","E23","E24","E25","E26","E27","E28","E29","F01","F02","F03","F04","G01","G02","G03","G04","G05","G06","G07","G08","G09","G10","I01","I02","I03","I04","I05","I06","I07",null,"J01","J02",null,null,null,"J03","J04","K01","K02","K03","L01","L02","L03","L04","L05","L06","L07","L08","L09","L10","L11","L12","L13","L14","L15","L16","L17","L18","M01","M02","N01","N02","O01","O02","O03","O04","O05","O06","O07","O08","O09","O10","O11","O12","O13","O14","O15","O16","O17",null,null,null,null,"(0, 204, 255)","(0, 112, 192)","(255, 0, 0)",null,null,null,"(0, 112, 192)","(102, 204, 255)","(255, 204, 0)","(255, 153, 153)","(255, 0, 0)",null,null,null,null,null,null,null,"(0, 112, 192)","(102, 204, 255)","(255, 204, 0)","(255, 153, 153)","(255, 0, 0)",null,null,null,null,null,null,null,null,null,null,null,null,null,null,null,null,null,null,null,"(0, 112, 192)","(102, 204, 255)","(255, 204, 0)","(255, 153, 153)","(255, 0, 0)",null,null,null,null,null,null,null,"(102, 0, 51)","(204, 204, 255)",null,null,"(102, 0, 51)","(204, 204, 255)","(153, 102, 255)",null,null,"(0, 0, 255)","(255, 153, 153)","(255, 0, 0)",null,null,null,"T_A01","T_A02","T_A03","T_A04","T_A05","T_A06","T_A07","T_A08","T_A09","T_A10","T_A11","T_A12","T_A13","T_A14","T_A15","T_A16","T_A17"]
[null,null,null,null,null,null,null,null,null,null,null,null,null,null,null,null,null,null,null,null,null,null,null,null,null,null,null,0,null,null,null,null,null,null,null,null,null,null,null,null,null,null,null,null,null,null,null,null,null,null,null,null,null,null,null,null,null,null,null,null,null,null,null,null,null,null,null,null,null,null,null,null,null,null,null,null,null,null,null,null,null,null,null,null,null,null,null,null,null,null,null,null,null,null,null,null,null,null,null,null,null,null,null,null,null,null,null,null,null,null,null,null,null,null,null,null,null,null,null,null,null,null,null,null,null,null,null,null,null,null,null,null,null,null,null,null,null,null,null,null,null,null,null,null,null,null,null,null,null,null,null,null,null,null,null,null,null,null,null,null,null,null,null,null,null,null,null,null,null,null,null,null,null,null,null,null,null,null,null,null,null,null,null,null,null,null,null,null,null,null,null,null,null,null,null,null,null,null,null,null,null,null,null,null,null,null,null,null,null,null,null,null,null,null,null,null,null,null,null,null,null,null,null,null,null,null,null,null,null,null,null,null,null,null,null,null,null,null,null,null,null,null,null,null,null,null,null,null,null,null,null,null,null,null,null,null,null,null,null,null,null,null,null,null,null,null,null,null,null,null,null,null,null,null,null,null,null,null,null,null,null,null,null,null,null,null,null,null,null,null,null,null,null,null,null,null,null,null,null,null,null,null,null,null,null,null,null,null,null,null,null,null,null,null,null,null,null,null,null,null,null,null,null,null,null,null,null,null,null,null,null,null,null,null,null,null,null,null,null,null,"Used Core",null,null,null,null,null,null,null,null,null,null,null,null,null,null,null,null,null,null,null,null,null,null,null,{"$f":"IF(AF30=\"\",\"\",$AF30)","v":""},{"$f":"IF($AG30=\"\",\"\",$AG30)","v":""},{"$f":"IF(OR($AK30=\"\",$C$4=\"\"),\"\",IF($C$4=0,0,$AK30/$C$4))","v":""},{"$f":"IF(OR($NI30=\"\",$NC30=\"\"),\"\",IF($NC30=0,0,$NI30/10^9/$NC30))","v":""},{"$f":"IF(OR($ND30=\"\",$C$13=\"\",$C$16=\"\"),\"\",IF($C$13=0,0,$ND30/($C$13*$C$16/10^9)))","v":""},{"$f":"IF(OR($AO30=\"\",$AQ30=\"\",$AR30=\"\",$AP30=\"\",$C$7=\"\",$NC30=\"\"),\"\",IF($NC30=0,0,(($AO30-$AQ30-$AR30+$AP30)*$C$7/10^9)/$NC30))","v":""},null,{"$f":"IF($AS30=\"\",\"\",$AS30)","v":""},{"$f":"IF(OR($AM30=\"\",$C$11=\"\",$AN30=\"\"),\"\",$AM30*$C$11+$AN30)","v":""},{"$f":"IF(OR($AT30=\"\",$AS30=\"\"),\"\",IF($AS30=0,0,$AT30/$AS30))","v":""},{"$f":"IF(OR($AM30=\"\",$C$11=\"\",$AN30=\"\"),\"\",IF($AM30*$C$11+$AN30=0,0,$AM30*$C$11/($AM30*$C$11+$AN30)))","v":""},{"$f":"IF(OR($CB30=\"\",$CD30=\"\",$CA30=\"\",$CC30=\"\"),\"\",IF(($CA30+$CC30)=0,0,\nGuardLimitUpper(\n  ($CB30+$CD30) / ( ($CA30+$CC30)*16),\n  data_GuardLimitFlag,\n  1)\n ))","v":""},{"$f":"IF(OR($AS30=\"\",$AL30=\"\"),\"\",IF($AL30=0,0,$AS30/$AL30))","v":""},{"$f":"IF(OR($AS30=\"\",$NC30=\"\"),\"\",IF($NC30=0,0,$AS30/10^9/$NC30))","v":""},{"$f":"IF($O$5=\"Lv2\",IF(OR($BH30=\"\",$BD30=\"\",$NC30=\"\"),\"\",IF($BD30=0,0,$BH30/$BD30*$NC30)),\n                             IF(OR($BH30=\"\",$EE30=\"\",$BD30=\"\",$NC30=\"\"),\"\",IF($BD30=0,0,\nGuardLimitLower(\n  ($BH30-$EE30)/$BD30*$NC30,\n  data_GuardLimitFlag,\n  0)\n)))","v":""},{"$f":"IF($O$5=\"Lv2\",\"\",IF(OR($EE30=\"\",$BD30=\"\",$NC30=\"\"),\"\",IF($BD30=0,0,($EE30)/$BD30*$NC30)))","v":""},{"$f":"IF($O$5=\"Lv2\",\"\",IF(OR($EC30=\"\",$BD30=\"\",$NC30=\"\"),\"\",IF($BD30=0,0,$EC30/$BD30*$NC30)))","v":""},{"$f":"IF($O$5=\"Lv2\",\"\",IF(OR($EB30=\"\",$EC30=\"\",$BD30=\"\",$NC30=\"\"),\"\",IF($BD30=0,0,($EB30-$EC30)/$BD30*$NC30)))","v":""},{"$f":"IF($O$5=\"Lv2\",\"\",IF(OR($EA30=\"\",$BD30=\"\",$NC30=\"\"),\"\",IF($BD30=0,0,$EA30/$BD30*$NC30)))","v":""},{"$f":"IF($O$5=\"Lv2\",\"\",IF(OR($DY30=\"\",$EC30=\"\",$EA30=\"\",$ED30=\"\",$BD30=\"\",$NC30=\"\"),\"\",IF($BD30=0,0,($DY30-($EC30+$EA30+$ED30))/$BD30*$NC30)))","v":""},{"$f":"IF($O$5=\"Lv2\",  IF(OR($BG30=\"\",$BH30=\"\",$BD30=\"\",$NC30=\"\"),\"\",IF($BD30=0,0,($BG30-$BH30)/$BD30*$NC30)),\n                               IF(OR($DZ30=\"\",$EA30=\"\",$BD30=\"\",$NC30=\"\"),\"\",IF($BD30=0,0,($DZ30-$EA30)/$BD30*$NC30)))","v":""},{"$f":"IF($O$5=\"Lv2\",\"\",IF(OR($BG30=\"\",$EB30=\"\",$DZ30=\"\",$BH30=\"\",$NT30=\"\",$BD30=\"\",$NC30=\"\"),\"\",IF(OR($BD30=0,$NC30=0),0,\nGuardLimitLower(\n  ($BG30-($EB30+$DZ30+$BH30+$NT30*$BD30/$NC30))/$BD30*$NC30,\n  data_GuardLimitFlag,\n  0)\n)))","v":""},{"$f":"IF($O$5=\"Lv2\",\"\",IF(OR($BI30=\"\",$EF30=\"\",$BD30=\"\",$NC30=\"\"),\"\",IF($BD30=0,0,\nGuardLimitLower(\n  ($BI30-$EF30)/$BD30*$NC30,\n  data_GuardLimitFlag,\n  0)\n)))","v":""},{"$f":"IF($O$5=\"Lv2\",  IF(OR($BI30=\"\",$BD30=\"\",$NC30=\"\"),\"\",IF($BD30=0,0,($BI30)/$BD30*$NC30)),\n                               IF(OR($EF30=\"\",$BD30=\"\",$NC30=\"\"),\"\",IF($BD30=0,0,($EF30)/$BD30*$NC30)))","v":""},{"$f":"IF($O$5=\"Lv2\",\"\",IF(OR($ET30=\"\",$BD30=\"\",$NC30=\"\"),\"\",IF($BD30=0,0,($ET30/$BD30*$NC30))))","v":""},{"$f":"IF($O$5=\"Lv2\",  IF(OR($BE30=\"\",$BG30=\"\",$BI30=\"\",$BJ30=\"\",$BD30=\"\",$NC30=\"\"),\"\",                 IF($BD30=0,0,($BE30-($BG30+$BI30+$BJ30))/$BD30*$NC30)),\n                               IF(OR($BE30=\"\",$BG30=\"\",$BI30=\"\",$BJ30=\"\",$ET30=\"\",$BD30=\"\",$NC30=\"\"),\"\",IF($BD30=0,0,\nGuardLimitLower(\n  ($BE30-($BG30+$BI30+$BJ30+$ET30))/$BD30*$NC30,\n  data_GuardLimitFlag,\n  0)\n)))","v":""},{"$f":"IF(OR($BK30=\"\",$BD30=\"\",$NC30=\"\"),\"\",IF($BD30=0,0,$BK30/$BD30*$NC30))","v":""},{"$f":"IF(OR($BJ30=\"\",$BK30=\"\",$BL30=\"\",$BD30=\"\",$NC30=\"\"),\"\",IF($BD30=0,0,($BJ30-($BK30+$BL30))/$BD30*$NC30))","v":""},{"$f":"IF(OR($BL30=\"\",$BD30=\"\",$NC30=\"\"),\"\",IF($BD30=0,0,$BL30/$BD30*$NC30))","v":""},{"$f":"IF(OR($BF30=\"\",$BD30=\"\",$NC30=\"\"),\"\",IF($BD30=0,0,$BF30/$BD30*$NC30))","v":""},{"$f":"IF($O$5=\"Lv2\",\"\",IF(OR($EQ30=\"\",$BD30=\"\",$NC30=\"\"),\"\",IF($BD30=0,0,$EQ30/$BD30*$NC30)))","v":""},{"$f":"IF($O$5=\"Lv2\",\"\",IF(OR($ER30=\"\",$BD30=\"\",$NC30=\"\"),\"\",IF($BD30=0,0,$ER30/$BD30*$NC30)))","v":""},{"$f":"IF($O$5=\"Lv2\",\"\",IF(OR($ES30=\"\",$BD30=\"\",$NC30=\"\"),\"\",IF($BD30=0,0,$ES30/$BD30*$NC30)))","v":""},{"$f":"IF($O$5=\"Lv2\",  IF(OR($BD30=\"\",$BE30=\"\",$BF30=\"\",$BD30=\"\",$NC30=\"\"),\"\",                                                     IF($BD30=0,0,($BD30-($BE30+$BF30))/$BD30*$NC30)),\n                               IF(OR($BD30=\"\",$BE30=\"\",$BF30=\"\",$EQ30=\"\",$ER30=\"\",$ES30=\"\",$BD30=\"\",$NC30=\"\"),\"\",IF($BD30=0,0,\nGuardLimitLower(\n  ($BD30-($BE30+$BF30+$EQ30+$ER30+$ES30))/$BD30*$NC30,\n  data_GuardLimitFlag,\n  0)\n)))","v":""},{"$f":"IF($NQ$25=\"\",\"\",IF($NC30=0,\"\",$NC30))","v":""},{"$f":"IF(OR($CA30=\"\",$BV30=\"\"),\"\",IF($BV30=0,0,$CA30/$BV30))","v":""},{"$f":"IF(OR($CC30=\"\",$BV30=\"\"),\"\",IF($BV30=0,0,$CC30/$BV30))","v":""},{"$f":"IF(OR($FO30=\"\",$FH30=\"\"),\"\",IF($FH30=0,0,$FO30/$FH30))","v":""},{"$f":"IF(OR($FP30=\"\",$FH30=\"\"),\"\",IF($FH30=0,0,$FP30/$FH30))","v":""},{"$f":"IF(OR($BW30=\"\",$BX30=\"\",$BV30=\"\"),\"\",IF($BV30=0,0,AVERAGE($BW30,$BX30)/$BV30))","v":""},null,null,{"$f":"IF(OR($FM30=\"\",$FH30=\"\"),\"\",IF($FH30=0,0,$FM30/$FH30))","v":""},{"$f":"IF(OR($FN30=\"\",$FH30=\"\"),\"\",IF($FH30=0,0,$FN30/$FH30))","v":""},{"$f":"IF(OR($CB30=\"\",$CA30=\"\"),\"\",IF($CA30=0,0,\nGuardLimitUpper(\n  $CB30/($CA30*16),\n  data_GuardLimitFlag,\n  1)\n))","v":""},{"$f":"IF(OR($CD30=\"\",$CC30=\"\"),\"\",IF($CC30=0,0,\nGuardLimitUpper(\n  $CD30/($CC30*16),\n  data_GuardLimitFlag,\n  1)\n))","v":""},{"$f":"IF(OR($KH30=\"\",$KJ30=\"\"),\"\",IF($KJ30=0,0,$KH30/($KJ30*16)))","v":""},{"$f":"IF(OR($KI30=\"\",$KK30=\"\"),\"\",IF($KK30=0,0,$KI30/($KK30*16)))","v":""},{"$f":"IF(OR($BZ30=\"\",$BV30=\"\"),\"\",IF($BV30=0,0,$BZ30/$BV30))","v":""},{"$f":"IF(OR($GG30=\"\",$AS30=\"\"),\"\",IF($AS30=0,0,$GG30/$AS30))","v":""},{"$f":"IF(OR($DJ30=\"\",$DK30=\"\"),\"\",$DJ30+$DK30)","v":""},{"$f":"IF($CP30=\"\",\"\",$CP30)","v":""},{"$f":"IF(OR($OZ30=\"\",$OY30=\"\"),\"\",IF($OY30=0,0,$OZ30/$OY30))","v":""},{"$f":"IF(OR($CQ30=\"\",$OZ30=\"\"),\"\",IF($OZ30=0,0,\nGuardLimitUpper(\n  ($OZ30-$CQ30)/$OZ30,\n  data_GuardLimitFlag,\n  1)\n))","v":""},{"$f":"IF(OR($GB30=\"\",$OZ30=\"\"),\"\",IF($OZ30=0,0,\nGuardLimitUpper(\n  $GB30/($OZ30),\n  data_GuardLimitFlag,\n  1)\n))","v":""},{"$f":"IF(OR($CQ30=\"\",$GB30=\"\",$OZ30=\"\"),\"\",IF($OZ30=0,0,\nGuardLimitUpper(\n  ($CQ30-$GB30)/$OZ30,\n  data_GuardLimitFlag,\n  1)\n))","v":""},{"$f":"IF($OY$25=\"\",\"\",IF(OR($AO30=\"\",$AQ30=\"\",$AR30=\"\"),\"\",$AO30-$AQ30-$AR30))","v":""},{"$f":"IF(OR($PE30=\"\",$OY30=\"\"),\"\",IF($OY30=0,0,$PE30/$OY30))","v":""},{"$f":"IF($O$7=\"Lv2\",IF(OR($CS30=\"\",$CO30=\"\",$PE30=\"\"),\"\",IF($PE30=0,0,($CS30-$CO30)/$PE30)),\n                             IF(OR($CS30=\"\",$CO30=\"\",$GH30=\"\",$GC30=\"\"),\"\",IF($CS30-$CO30+$GC30-$GH30=0,0,\nGuardLimitUpper(\n  GuardLimitLower(\n  ($CS30-$CO30)/($CS30-$CO30+$GC30-$GH30),\n    data_GuardLimitFlag,\n    0),\n  data_GuardLimitFlag,\n  1)\n)))","v":""},{"$f":"IF(OR($GD30=\"\",$CS30=\"\",$CO30=\"\",$GC30=\"\",$GH30=\"\"),\"\",IF($CS30-$CO30+$GC30-$GH30=0,0,\nGuardLimitUpper(\n  $GD30/($CS30-$CO30+$GC30-$GH30),\n  data_GuardLimitFlag,\n  1)\n))","v":""},{"$f":"IF(OR($GC30=\"\",$GH30=\"\",$GD30=\"\",$CS30=\"\",$CO30=\"\"),\"\",IF($CS30-$CO30+$GC30-$GH30=0,0,\nGuardLimitUpper(\n  GuardLimitLower(\n  ($GC30-$GH30-$GD30)/($CS30-$CO30+$GC30-$GH30),\n    data_GuardLimitFlag,\n    0),\n  data_GuardLimitFlag,\n  1)\n))","v":""},{"$f":"IF(OR($GE30=\"\",$OY30=\"\"),\"\",IF($OY30=0,0,$GE30/$OY30))","v":""},{"$f":"IF(OR($GF30=\"\",$OY30=\"\"),\"\",IF($OY30=0,0,$GF30/$OY30))","v":""},{"$f":"IF($O$8=\"Lv2\",  IF($DL30=\"\",\"\",IF($CT30=\"\",$DL30,\nGuardLimitLower(\n  $DL30-$CT30,\n  data_GuardLimitFlag,\n  0)\n)),\n                               IF(OR($DL30=\"\",$HQ30=\"\",$GS30=\"\",$HR30=\"\",$HK30=\"\",$CT30=\"\",$GU30=\"\"),\"\",\nGuardLimitLower(\n  ($DL30-$HQ30)-($GS30+$HR30+$HK30+$CT30+$GU30),\n  data_GuardLimitFlag,\n  0)\n))","v":""},{"$f":"IF($O$8=\"Lv2\", \"\",IF($HK30=\"\",\"\",$HK30))","v":""},{"$f":"IF($CT30=\"\",\"\",$CT30)","v":""},{"$f":"IF($O$8=\"Lv2\", \"\",IF($HR30=\"\",\"\",$HR30))","v":""},{"$f":"IF($O$8=\"Lv2\",\"\",IF($GS30=\"\",\"\",IF($IU30=\"\",$GS30,\nGuardLimitLower(\n  $GS30-$IU30,\n  data_GuardLimitFlag,\n  0)\n)))","v":""},{"$f":"IF($O$8=\"Lv2\",\"\",IF($IU30=\"\",\"\",$IU30))","v":""},{"$f":"IF($O$8=\"Lv2\", \"\",IF($GU30=\"\",\"\",$GU30))","v":""},{"$f":"IF($O$8=\"Lv2\",IF(OR($DJ30=\"\",$DL30=\"\"),\"\",$DJ30-$DL30),\n                             IF(OR($DJ30=\"\",$DL30=\"\",$HQ30=\"\"),\"\",$DJ30-($DL30-$HQ30)))","v":""},{"$f":"IF($O$8=\"Lv2\",  IF($DM30=\"\",\"\",IF($CU30=\"\",$DM30,\nGuardLimitLower(\n  $DM30-$CU30,\n  data_GuardLimitFlag,\n  0)\n)),\n                               IF(OR($DM30=\"\",$HO30=\"\",$GT30=\"\",$HL30=\"\",$CU30=\"\"),\"\",\nGuardLimitLower(\n  ($DM30-$HO30)-($GT30+$HL30+$CU30),\n  data_GuardLimitFlag,\n  0)\n\n))","v":""},{"$f":"IF($O$8=\"Lv2\", \"\",IF($HL30=\"\",\"\",$HL30))","v":""},{"$f":"IF($CU30=\"\",\"\",$CU30)","v":""},{"$f":"IF($O$8=\"Lv2\",\"\",IF($GT30=\"\",\"\",IF($IV30=\"\",$GT30,\nGuardLimitLower(\n  $GT30-$IV30,\n  data_GuardLimitFlag,\n  0)\n)))","v":""},{"$f":"IF($O$8=\"Lv2\",\"\",IF($IV30=\"\",\"\",$IV30))","v":""},{"$f":"IF($O$8=\"Lv2\",IF(OR($DK30=\"\",$DM30=\"\"),\"\",$DK30-$DM30),\n                             IF(OR($DK30=\"\",$DM30=\"\",$HO30=\"\"),\"\",$DK30-($DM30-$HO30)))","v":""},{"$f":"IF($O$8=\"Lv2\",\"\",IF($GW30=\"\",\"\",$GW30))","v":""},{"$f":"IF($O$8=\"Lv2\",\"\",IF($GV30=\"\",\"\",$GV30))","v":""},{"$f":"IF($O$8=\"Lv2\",\"\",IF(OR($DN30=\"\",$GV30=\"\",$GW30=\"\"),\"\",\nGuardLimitLower(\n  $DN30-($GV30+$GW30),\n  data_GuardLimitFlag,\n  0)\n))","v":""},{"$f":"IF($O$8=\"Lv2\",\"\",IF($GX30=\"\",\"\",$GX30))","v":""},{"$f":"IF(OR($DG30=\"\",$DH30=\"\",$DI30=\"\"),\"\",$DG30-($DH30+$DI30))","v":""},{"$f":"IF($DH30=\"\",\"\",$DH30)","v":""},{"$f":"IF($DI30=\"\",\"\",$DI30)","v":""},{"$f":"IF($O$8=\"Lv2\",\"\",IF($HM30=\"\",\"\",$HM30))","v":""},{"$f":"IF($O$8=\"Lv2\",\"\",IF($HN30=\"\",\"\",$HN30))","v":""},{"$f":"IF($O$8=\"Lv2\",\"\",IF($GY30=\"\",\"\",$GY30))","v":""},{"$f":"IF($O$8=\"Lv2\",\"\",IF($GZ30=\"\",\"\",$GZ30))","v":""},{"$f":"IF($O$8=\"Lv2\",\"\",IF($HP30=\"\",\"\",$HP30))","v":""},{"$f":"IF($O$8=\"Lv2\",\"\",IF($JA30=\"\",\"\",$JA30))","v":""},{"$f":"IF(OR($O$8=\"Lv2\",$O$8=\"Lv3\",$O$8=\"Lv4\"),IF(OR($AS30=\"\",COUNT($PL30:$QL30)=0),\"\",\nGuardLimitLower(\n  $AS30-SUM($PL30:$QL30),\n  data_GuardLimitFlag,\n  0)\n),\"\")","v":""},{"$f":"IF(OR($O$8=\"Lv2\",$O$8=\"Lv3\",$O$8=\"Lv4\"),IF($AS30=\"\",\"\",$AS30),\"\")","v":""},{"$f":"IF(OR($EU30=\"\",$C$11=\"\",$EW30=\"\",$AM30=\"\",$AN30=\"\"),\"\",$EU30*$C$11+$EW30)","v":""},{"$f":"IF(OR($EV30=\"\",$C$11=\"\",$EX30=\"\",$AM30=\"\",$AN30=\"\"),\"\",$EV30*$C$11+$EX30)","v":""},{"$f":"IF(OR($AM30=\"\",$EV30=\"\",$EU30=\"\",$C$11=\"\",$AN30=\"\",$EX30=\"\",$EW30=\"\"),\"\",($AM30-$EV30-$EU30)*$C$11+($AN30-$EX30-$EW30))","v":""},{"$f":"IF(OR($AM30=\"\",$C$11=\"\",$AN30=\"\",$CA30=\"\",$CC30=\"\",$CB30=\"\",$CD30=\"\",$C$17=\"\",$NC30=\"\"),\"\",IF(OR($CA30+$CC30=0,$C$17=0,$NC30=0),0,\n($AM30*$C$11+$AN30)*\nGuardLimitUpper(\n  ($CB30+$CD30)/(($CA30+$CC30)*$C$17),\n  data_GuardLimitFlag,\n  1)\n/10^9/$NC30)\n)","v":""},{"$f":"IF(OR($KG30=\"\",$KF30=\"\",$KE30=\"\"),\"\",IF($KG30+$KF30+$KE30=0,0,$KE30/($KG30+$KF30+$KE30)))","v":""},{"$f":"IF(OR($KG30=\"\",$KF30=\"\",$KE30=\"\"),\"\",IF($KG30+$KF30+$KE30=0,0,$KF30/($KG30+$KF30+$KE30)))","v":""},{"$f":"IF(OR($KG30=\"\",$KF30=\"\",$KE30=\"\"),\"\",IF($KG30+$KF30+$KE30=0,0,$KG30/($KG30+$KF30+$KE30)))","v":""},{"$f":"IF($IC30=\"\",\"\",$IC30)","v":""},{"$f":"IF($IY30=\"\",\"\",$IY30)","v":""},{"$f":"IF($IZ30=\"\",\"\",$IZ30)","v":""},{"$f":"IF($IW30=\"\",\"\",$IW30)","v":""},{"$f":"IF($IX30=\"\",\"\",$IX30)","v":""},{"$f":"IF(OR($IF30=\"\",$IC30=\"\"),\"\",IF($IC30=0,0,\nGuardLimitUpper(\n  $IF30/$IC30,\n  data_GuardLimitFlag,\n  1)\n))","v":""},{"$f":"IF(OR($IG30=\"\",$GZ30=\"\"),\"\",IF($GZ30=0,0,$IG30/$GZ30))","v":""},{"$f":"IF(OR($JM30=\"\",$JN30=\"\",$JO30=\"\",$JP30=\"\",$JQ30=\"\",$JR30=\"\",$JS30=\"\"),\"\",IF($JM30+$JN30+$JO30+$JP30+$JQ30+$JR30+$JS30=0,0,$JM30/($JM30+$JN30+$JO30+$JP30+$JQ30+$JR30+$JS30)))","v":""},{"$f":"IF(OR($JM30=\"\",$JN30=\"\",$JO30=\"\",$JP30=\"\",$JQ30=\"\",$JR30=\"\",$JS30=\"\"),\"\",IF($JM30+$JN30+$JO30+$JP30+$JQ30+$JR30+$JS30=0,0,$JN30/($JM30+$JN30+$JO30+$JP30+$JQ30+$JR30+$JS30)))","v":""},{"$f":"IF(OR($JM30=\"\",$JN30=\"\",$JO30=\"\",$JP30=\"\",$JQ30=\"\",$JR30=\"\",$JS30=\"\"),\"\",IF($JM30+$JN30+$JO30+$JP30+$JQ30+$JR30+$JS30=0,0,$JO30/($JM30+$JN30+$JO30+$JP30+$JQ30+$JR30+$JS30)))","v":""},{"$f":"IF(OR($JM30=\"\",$JN30=\"\",$JO30=\"\",$JP30=\"\",$JQ30=\"\",$JR30=\"\",$JS30=\"\"),\"\",IF($JM30+$JN30+$JO30+$JP30+$JQ30+$JR30+$JS30=0,0,$JP30/($JM30+$JN30+$JO30+$JP30+$JQ30+$JR30+$JS30)))","v":""},{"$f":"IF(OR($JM30=\"\",$JN30=\"\",$JO30=\"\",$JP30=\"\",$JQ30=\"\",$JR30=\"\",$JS30=\"\"),\"\",IF($JM30+$JN30+$JO30+$JP30+$JQ30+$JR30+$JS30=0,0,$JQ30/($JM30+$JN30+$JO30+$JP30+$JQ30+$JR30+$JS30)))","v":""},{"$f":"IF(OR($JM30=\"\",$JN30=\"\",$JO30=\"\",$JP30=\"\",$JQ30=\"\",$JR30=\"\",$JS30=\"\"),\"\",IF($JM30+$JN30+$JO30+$JP30+$JQ30+$JR30+$JS30=0,0,$JR30/($JM30+$JN30+$JO30+$JP30+$JQ30+$JR30+$JS30)))","v":""},{"$f":"IF(OR($JM30=\"\",$JN30=\"\",$JO30=\"\",$JP30=\"\",$JQ30=\"\",$JR30=\"\",$JS30=\"\"),\"\",IF($JM30+$JN30+$JO30+$JP30+$JQ30+$JR30+$JS30=0,0,$JS30/($JM30+$JN30+$JO30+$JP30+$JQ30+$JR30+$JS30)))","v":""},"read",{"$f":"IF(OR(COUNT($LO30:$LO41)=0,$C$8=\"\",$NC$42=\"\"),\"\",IF($NC$42=0,0,AVERAGE($LO30:$LO41)*$C$8/10^9/$NC$42))","v":""},{"$f":"IF(COUNT($RK45:$RK56)=0,\"\",AVERAGE($RK45:$RK56))","v":""},null,null,null,{"$f":"IF(OR(COUNT($LP30:$LP41)=0,$C$8=\"\",$NC$42=\"\"),\"\",IF($NC$42=0,0,AVERAGE($LP30:$LP41)*$C$8/10^9/$NC$42))","v":""},{"$f":"IF(OR(COUNT($LQ30:$LQ41)=0,$C$8=\"\",$NC$42=\"\"),\"\",IF($NC$42=0,0,AVERAGE($LQ30:$LQ41)*$C$8/10^9/$NC$42))","v":""},{"$f":"IF($FJ30=\"\",\"\",IF($NC30=0,0,$FJ30*8/10^9/$NC30))","v":""},null,null,{"$f":"IF(OR($AK30=\"\",$C$4=\"\"),\"\",$AK30/$C$4)","v":""},{"$f":"IF(OR($AL30=\"\",$AL30=\"\"),\"\",IF($AL30=0,0,$AL30/$AL30))","v":""},{"$f":"IF(OR($BD30=\"\",$AL30=\"\"),\"\",IF($AL30=0,0,$BD30/$AL30))","v":""},{"$f":"IF(OR($BV30=\"\",$AL30=\"\"),\"\",IF($AL30=0,0,$BV30/$AL30))","v":""},{"$f":"IF(OR($CN30=\"\",$AL30=\"\"),\"\",IF($AL30=0,0,$CN30/$AL30))","v":""},{"$f":"IF(OR($DF30=\"\",$AL30=\"\"),\"\",IF($AL30=0,0,$DF30/$AL30))","v":""},{"$f":"IF(OR($DX30=\"\",$AL30=\"\"),\"\",IF($AL30=0,0,$DX30/$AL30))","v":""},{"$f":"IF(OR($EP30=\"\",$AL30=\"\"),\"\",IF($AL30=0,0,$EP30/$AL30))","v":""},{"$f":"IF(OR($FH30=\"\",$AL30=\"\"),\"\",IF($AL30=0,0,$FH30/$AL30))","v":""},{"$f":"IF(OR($FZ30=\"\",$AL30=\"\"),\"\",IF($AL30=0,0,$FZ30/$AL30))","v":""},{"$f":"IF(OR($GR30=\"\",$AL30=\"\"),\"\",IF($AL30=0,0,$GR30/$AL30))","v":""},{"$f":"IF(OR($HJ30=\"\",$AL30=\"\"),\"\",IF($AL30=0,0,$HJ30/$AL30))","v":""},{"$f":"IF(OR($IB30=\"\",$AL30=\"\"),\"\",IF($AL30=0,0,$IB30/$AL30))","v":""},{"$f":"IF(OR($JL30=\"\",$AL30=\"\"),\"\",IF($AL30=0,0,$JL30/$AL30))","v":""},{"$f":"IF(OR($IT30=\"\",$AL30=\"\"),\"\",IF($AL30=0,0,$IT30/$AL30))","v":""},{"$f":"IF(OR($KD30=\"\",$AL30=\"\"),\"\",IF($AL30=0,0,$KD30/$AL30))","v":""},{"$f":"IF(OR($KV30=\"\",$AL30=\"\"),\"\",IF($AL30=0,0,$KV30/$AL30))","v":""},{"$f":"IF(OR($LN30=\"\",$AL30=\"\"),\"\",IF($AL30=0,0,$LN30/$AL30))","v":""},{"$f":"IF($AJ30=\"\",\"\",$AJ30)","v":""},{"$f":"IF(OR($NC30=\"\",$SM30=\"\"),\"\",IF($SM30=0,0,$NC30/$SM30))","v":""},{"$f":"IF(OR($OI30=\"\",$OC30=\"\",COUNT($OI$30:$OI$41)=0),\"\",IF(MAX($OI$30:$OI$41)=0,0,($OI30-$OC30)/MAX($OI$30:$OI$41)))","v":""},{"$f":"IF(OR($NH30=\"\",COUNT($NH$30:$NH$41)=0),\"\",IF(MAX($NH$30:$NH$41)=0,0,$NH30/MAX($NH$30:$NH$41)))","v":""},{"$f":"IF($AL30=\"\",\"\",$AL30)","v":""},{"$f":"IF($BD30=\"\",\"\",$BD30)","v":""},{"$f":"IF($BV30=\"\",\"\",$BV30)","v":""},{"$f":"IF($CN30=\"\",\"\",$CN30)","v":""},{"$f":"IF($DF30=\"\",\"\",$DF30)","v":""},{"$f":"IF($DX30=\"\",\"\",$DX30)","v":""},{"$f":"IF($EP30=\"\",\"\",$EP30)","v":""},{"$f":"IF($FH30=\"\",\"\",$FH30)","v":""},{"$f":"IF($FZ30=\"\",\"\",$FZ30)","v":""},{"$f":"IF($GR30=\"\",\"\",$GR30)","v":""},{"$f":"IF($HJ30=\"\",\"\",$HJ30)","v":""},{"$f":"IF($IB30=\"\",\"\",$IB30)","v":""},{"$f":"IF($JL30=\"\",\"\",$JL30)","v":""},{"$f":"IF($IT30=\"\",\"\",$IT30)","v":""},{"$f":"IF($KD30=\"\",\"\",$KD30)","v":""},{"$f":"IF($KV30=\"\",\"\",$KV30)","v":""},{"$f":"IF($LN30=\"\",\"\",$LN30)","v":""},null,null,null,null,"G_A01","G_A02","G_A03",null,null,"----------------------------------------","G_B13_v2","G_B14_v2","G_B10_v2","G_B11_v2","G_B12_v2",null,null,null,null,null,null,"----------------------------------------","G_B21_v3","G_B22_v3","G_B23_v3","G_B24_v3","G_B25_v3",null,null,null,null,null,null,null,null,null,null,null,null,null,null,null,null,null,null,null,"G_C01","G_C02","G_C03","G_C04","G_C05",null,null,null,"G_D101","G_D102",null,null,"G_D201_v2","G_D204_v2",null,null,"G_D201_v3","G_D202_v3","G_D203_v3",null,null,"G_K01","G_K02","G_K03"]
[null,null,null,null,null,null,null,null,null,null,null,null,null,null,null,null,null,null,null,null,null,null,null,null,null,null,null,1,null,null,null,null,null,null,null,null,null,null,null,null,null,null,null,null,null,null,null,null,null,null,null,null,null,null,null,null,null,null,null,null,null,null,null,null,null,null,null,null,null,null,null,null,null,null,null,null,null,null,null,null,null,null,null,null,null,null,null,null,null,null,null,null,null,null,null,null,null,null,null,null,null,null,null,null,null,null,null,null,null,null,null,null,null,null,null,null,null,null,null,null,null,null,null,null,null,null,null,null,null,null,null,null,null,null,null,null,null,null,null,null,null,null,null,null,null,null,null,null,null,null,null,null,null,null,null,null,null,null,null,null,null,null,null,null,null,null,null,null,null,null,null,null,null,null,null,null,null,null,null,null,null,null,null,null,null,null,null,null,null,null,null,null,null,null,null,null,null,null,null,null,null,null,null,null,null,null,null,null,null,null,null,null,null,null,null,null,null,null,null,null,null,null,null,null,null,null,null,null,null,null,null,null,null,null,null,null,null,null,null,null,null,null,null,null,null,null,null,null,null,null,null,null,null,null,null,null,null,null,null,null,null,null,null,null,null,null,null,null,null,null,null,null,null,null,null,null,null,null,null,null,null,null,null,null,null,null,null,null,null,null,null,null,null,null,null,null,null,null,null,null,null,null,null,null,null,null,null,null,null,null,null,null,null,null,null,null,null,null,null,null,null,null,null,null,null,null,null,null,null,null,null,null,null,null,null,null,null,null,null,null,"Eco Mode",null,null,null,null,null,null,null,null,null,null,null,null,null,null,null,null,null,null,null,null,null,null,null,{"$f":"IF(AF31=\"\",\"\",$AF31)","v":""},{"$f":"IF($AG31=\"\",\"\",$AG31)","v":""},{"$f":"IF(OR($AK31=\"\",$C$4=\"\"),\"\",$AK31/$C$4)","v":""},{"$f":"IF(OR($NI31=\"\",$NC31=\"\"),\"\",IF($NC31=0,0,$NI31/10^9/$NC31))","v":""},"","",null,{"$f":"IF($AS31=\"\",\"\",$AS31)","v":""},"",{"$f":"IF(OR($AT31=\"\",$AS31=\"\"),\"\",IF($AS31=0,0,$AT31/$AS31))","v":""},{"$f":"IF(OR($AM31=\"\",$C$11=\"\",$AN31=\"\"),\"\",IF($AM31*$C$11+$AN31=0,0,$AM31*$C$11/($AM31*$C$11+$AN31)))","v":""},"",{"$f":"IF(OR($AS31=\"\",$AL31=\"\"),\"\",IF($AL31=0,0,$AS31/$AL31))","v":""},"","",{"$f":"IF($O$5=\"Lv2\",\"\",IF(OR($EE31=\"\",$BD31=\"\",$NC31=\"\"),\"\",IF($BD31=0,0,($EE31)/$BD31*$NC31)))","v":""},{"$f":"IF($O$5=\"Lv2\",\"\",IF(OR($EC31=\"\",$BD31=\"\",$NC31=\"\"),\"\",IF($BD31=0,0,$EC31/$BD31*$NC31)))","v":""},{"$f":"IF($O$5=\"Lv2\",\"\",IF(OR($EB31=\"\",$EC31=\"\",$BD31=\"\",$NC31=\"\"),\"\",IF($BD31=0,0,($EB31-$EC31)/$BD31*$NC31)))","v":""},"","","",{"$f":"IF($O$5=\"Lv2\",\"\",IF(OR($BG31=\"\",$EB31=\"\",$DZ31=\"\",$BH31=\"\",$NT31=\"\",$BD31=\"\",$NC31=\"\"),\"\",IF(OR($BD31=0,$NC31=0),0,\nGuardLimitLower(\n  ($BG31-($EB31+$DZ31+$BH31+$NT31*$BD31/$NC31))/$BD31*$NC31,\n  data_GuardLimitFlag,\n  0)\n)))","v":""},"","","","","","","","","","","","",{"$f":"IF($NQ$25=\"\",\"\",IF($NC31=0,\"\",$NC31))","v":""},{"$f":"IF(OR($CA31=\"\",$BV31=\"\"),\"\",IF($BV31=0,0,$CA31/$BV31))","v":""},{"$f":"IF(OR($CC31=\"\",$BV31=\"\"),\"\",IF($BV31=0,0,$CC31/$BV31))","v":""},{"$f":"IF(OR($FO31=\"\",$FH31=\"\"),\"\",IF($FH31=0,0,$FO31/$FH31))","v":""},{"$f":"IF(OR($FP31=\"\",$FH31=\"\"),\"\",IF($FH31=0,0,$FP31/$FH31))","v":""},"",null,null,{"$f":"IF(OR($FM31=\"\",$FH31=\"\"),\"\",IF($FH31=0,0,$FM31/$FH31))","v":""},{"$f":"IF(OR($FN31=\"\",$FH31=\"\"),\"\",IF($FH31=0,0,$FN31/$FH31))","v":""},"","","","",{"$f":"IF(OR($BZ31=\"\",$BV31=\"\"),\"\",IF($BV31=0,0,$BZ31/$BV31))","v":""},"",{"$f":"IF(OR($DJ31=\"\",$DK31=\"\"),\"\",$DJ31+$DK31)","v":""},"",{"$f":"IF(OR($OZ31=\"\",$OY31=\"\"),\"\",IF($OY31=0,0,$OZ31/$OY31))","v":""},{"$f":"IF(OR($CQ31=\"\",$OZ31=\"\"),\"\",IF($OZ31=0,0,\nGuardLimitUpper(\n  ($OZ31-$CQ31)/$OZ31,\n  data_GuardLimitFlag,\n  1)\n))","v":""},"","",{"$f":"IF($OY$25=\"\",\"\",IF(OR($AO31=\"\",$AQ31=\"\",$AR31=\"\"),\"\",$AO31-$AQ31-$AR31))","v":""},{"$f":"IF(OR($PE31=\"\",$OY31=\"\"),\"\",IF($OY31=0,0,$PE31/$OY31))","v":""},"","","","","",{"$f":"IF($O$8=\"Lv2\",  IF($DL31=\"\",\"\",IF($CT31=\"\",$DL31,\nGuardLimitLower(\n  $DL31-$CT31,\n  data_GuardLimitFlag,\n  0)\n)),\n                               IF(OR($DL31=\"\",$HQ31=\"\",$GS31=\"\",$HR31=\"\",$HK31=\"\",$CT31=\"\",$GU31=\"\"),\"\",\nGuardLimitLower(\n  ($DL31-$HQ31)-($GS31+$HR31+$HK31+$CT31+$GU31),\n  data_GuardLimitFlag,\n  0)\n))","v":""},"",{"$f":"IF($CT31=\"\",\"\",$CT31)","v":""},"","",{"$f":"IF($O$8=\"Lv2\",\"\",IF($IU31=\"\",\"\",$IU31))","v":""},"","",{"$f":"IF($O$8=\"Lv2\",  IF($DM31=\"\",\"\",IF($CU31=\"\",$DM31,\nGuardLimitLower(\n  $DM31-$CU31,\n  data_GuardLimitFlag,\n  0)\n)),\n                               IF(OR($DM31=\"\",$HO31=\"\",$GT31=\"\",$HL31=\"\",$CU31=\"\"),\"\",\nGuardLimitLower(\n  ($DM31-$HO31)-($GT31+$HL31+$CU31),\n  data_GuardLimitFlag,\n  0)\n\n))","v":""},"",{"$f":"IF($CU31=\"\",\"\",$CU31)","v":""},"",{"$f":"IF($O$8=\"Lv2\",\"\",IF($IV31=\"\",\"\",$IV31))","v":""},"","","","","",{"$f":"IF(OR($DG31=\"\",$DH31=\"\",$DI31=\"\"),\"\",$DG31-($DH31+$DI31))","v":""},{"$f":"IF($DH31=\"\",\"\",$DH31)","v":""},{"$f":"IF($DI31=\"\",\"\",$DI31)","v":""},"","","","","",{"$f":"IF($O$8=\"Lv2\",\"\",IF($JA31=\"\",\"\",$JA31))","v":""},{"$f":"IF(OR($O$8=\"Lv2\",$O$8=\"Lv3\",$O$8=\"Lv4\"),IF(OR($AS31=\"\",COUNT($PL31:$QL31)=0),\"\",\nGuardLimitLower(\n  $AS31-SUM($PL31:$QL31),\n  data_GuardLimitFlag,\n  0)\n),\"\")","v":""},{"$f":"IF(OR($O$8=\"Lv2\",$O$8=\"Lv3\",$O$8=\"Lv4\"),IF($AS31=\"\",\"\",$AS31),\"\")","v":""},{"$f":"IF(OR($EU31=\"\",$C$11=\"\",$EW31=\"\",$AM31=\"\",$AN31=\"\"),\"\",$EU31*$C$11+$EW31)","v":""},{"$f":"IF(OR($EV31=\"\",$C$11=\"\",$EX31=\"\",$AM31=\"\",$AN31=\"\"),\"\",$EV31*$C$11+$EX31)","v":""},{"$f":"IF(OR($AM31=\"\",$EV31=\"\",$EU31=\"\",$C$11=\"\",$AN31=\"\",$EX31=\"\",$EW31=\"\"),\"\",($AM31-$EV31-$EU31)*$C$11+($AN31-$EX31-$EW31))","v":""},"","","","","","","","","",{"$f":"IF(OR($IF31=\"\",$IC31=\"\"),\"\",IF($IC31=0,0,\nGuardLimitUpper(\n  $IF31/$IC31,\n  data_GuardLimitFlag,\n  1)\n))","v":""},"","","","","","","","","write",{"$f":"IF(OR(COUNT(LR30:LR41)=0,$C$8=\"\",$NC$42=\"\"),\"\",IF($NC$42=0,0,AVERAGE(LR30:LR41)*$C$8/10^9/$NC$42))","v":""},{"$f":"IF(COUNT($RL45:$RL56)=0,\"\",AVERAGE($RL45:$RL56))","v":""},null,null,null,{"$f":"IF(OR(COUNT($LS30:$LS41)=0,$C$8=\"\",$NC$42=\"\"),\"\",IF($NC$42=0,0,AVERAGE($LS30:$LS41)*$C$8/10^9/$NC$42))","v":""},{"$f":"IF(OR(COUNT($LT30:$LT41)=0,$C$8=\"\",$NC$42=\"\"),\"\",IF($NC$42=0,0,AVERAGE($LT30:$LT41)*$C$8/10^9/$NC$42))","v":""},"",null,null,{"$f":"IF(OR($AK31=\"\",$C$4=\"\"),\"\",$AK31/$C$4)","v":""},{"$f":"IF(OR($AL31=\"\",$AL31=\"\"),\"\",IF($AL31=0,0,$AL31/$AL31))","v":""},{"$f":"IF(OR($BD31=\"\",$AL31=\"\"),\"\",IF($AL31=0,0,$BD31/$AL31))","v":""},{"$f":"IF(OR($BV31=\"\",$AL31=\"\"),\"\",IF($AL31=0,0,$BV31/$AL31))","v":""},{"$f":"IF(OR($CN31=\"\",$AL31=\"\"),\"\",IF($AL31=0,0,$CN31/$AL31))","v":""},"","","","","","","","","","","","","",{"$f":"IF($AJ31=\"\",\"\",$AJ31)","v":""},"",{"$f":"IF(OR($OI31=\"\",$OC31=\"\",COUNT($OI$30:$OI$41)=0),\"\",IF(MAX($OI$30:$OI$41)=0,0,($OI31-$OC31)/MAX($OI$30:$OI$41)))","v":""},{"$f":"IF(OR($NH31=\"\",COUNT($NH$30:$NH$41)=0),\"\",IF(MAX($NH$30:$NH$41)=0,0,$NH31/MAX($NH$30:$NH$41)))","v":""},{"$f":"IF($AL31=\"\",\"\",$AL31)","v":""},{"$f":"IF($BD31=\"\",\"\",$BD31)","v":""},{"$f":"IF($BV31=\"\",\"\",$BV31)","v":""},{"$f":"IF($CN31=\"\",\"\",$CN31)","v":""},{"$f":"IF($DF31=\"\",\"\",$DF31)","v":""},{"$f":"IF($DX31=\"\",\"\",$DX31)","v":""},{"$f":"IF($EP31=\"\",\"\",$EP31)","v":""},{"$f":"IF($FH31=\"\",\"\",$FH31)","v":""},{"$f":"IF($FZ31=\"\",\"\",$FZ31)","v":""},{"$f":"IF($GR31=\"\",\"\",$GR31)","v":""},{"$f":"IF($HJ31=\"\",\"\",$HJ31)","v":""},{"$f":"IF($IB31=\"\",\"\",$IB31)","v":""},"",{"$f":"IF($IT31=\"\",\"\",$IT31)","v":""},{"$f":"IF($KD31=\"\",\"\",$KD31)","v":""},{"$f":"IF($KV31=\"\",\"\",$KV31)","v":""},{"$f":"IF($LN31=\"\",\"\",$LN31)","v":""},null,null,null,"CMG",{"$f":"IF(NJ42=\"\",0,NJ42)","v":0},{"$f":"IF(NE42=\"\",0,NE42)","v":0},{"$f":"IF(NG42=\"\",0,NG42)","v":0},null,null,null,{"$f":"IF(OR($NC$42=\"\",VB31=\"\"),0,$NC$42*VB31)","v":0},{"$f":"IF(OR($NC$42=\"\",VC31=\"\"),0,$NC$42*VC31)","v":0},{"$f":"IF(OR($NC$42=\"\",VD31=\"\"),0,$NC$42*VD31)","v":0},{"$f":"IF(OR($NC$42=\"\",VE31=\"\"),0,$NC$42*VE31)","v":0},{"$f":"IF(OR($NC$42=\"\",VF31=\"\"),0,$NC$42*VF31)","v":0},null,null,null,null,null,null,null,{"$f":"IF(OR($NC$42=\"\",VB31=\"\"),0,$NC$42*VB31)","v":0},{"$f":"IF(OR($NC$42=\"\",VC31=\"\"),0,$NC$42*VC31)","v":0},{"$f":"IF(OR($NC$42=\"\",VD31=\"\"),0,$NC$42*VD31)","v":0},{"$f":"IF(OR($NC$42=\"\",VE31=\"\"),0,$NC$42*VE31)","v":0},{"$f":"IF(OR($NC$42=\"\",VF31=\"\"),0,$NC$42*VF31)","v":0},null,null,null,null,null,null,null,null,null,null,null,null,null,null,null,null,null,null,"CMG",{"$f":"IF(OR(OJ42=\"\",OK42=\"\"),0,(OJ42+OK42)/2)","v":0},{"$f":"IF(OR(OL42=\"\",OM42=\"\"),0,(OL42+OM42)/2)","v":0},{"$f":"IF(ON42=\"\",0,ON42)","v":0},{"$f":"IF(OO42=\"\",0,OO42)","v":0},{"$f":"IF(OP42=\"\",0,OP42)","v":0},null,null,"CMG",{"$f":"IF(PA42=\"\",0,PA42)","v":0},{"$f":"IF(PF42=\"\",0,PF42)","v":0},null,"L1D miss",{"$f":"IF(OR(PB42=\"\",VJ31=\"\"),0,PB42*VJ31)","v":0},{"$f":"IF(OR(PB42=\"\",VJ31=\"\"),0,(1-PB42)*VJ31)","v":0},null,"L1D miss",{"$f":"IF(OR(PB42=\"\",VJ31=\"\"),0,PB42*VJ31)","v":0},{"$f":"IF(OR(PC42=\"\",VJ31=\"\"),0,PC42*VJ31)","v":0},{"$f":"IF(OR(PD42=\"\",VJ31=\"\"),0,PD42*VJ31)","v":0},null,"1 CMG",{"$f":"IF(RR42=\"\",0,RR42)","v":0},{"$f":"IF(RS42=\"\",0,RS42)","v":0},{"$f":"IF(RT42=\"\",0,RT42)","v":0}]
[null,null,null,null,null,null,null,null,null,null,null,null,null,null,null,null,null,null,null,null,null,null,null,null,null,null,null,2,null,null,null,null,null,null,null,null,null,null,null,null,null,null,null,null,null,null,null,null,null,null,null,null,null,null,null,null,null,null,null,null,null,null,null,null,null,null,null,null,null,null,null,null,null,null,null,null,null,null,null,null,null,null,null,null,null,null,null,null,null,null,null,null,null,null,null,null,null,null,null,null,null,null,null,null,null,null,null,null,null,null,null,null,null,null,null,null,null,null,null,null,null,null,null,null,null,null,null,null,null,null,null,null,null,null,null,null,null,null,null,null,null,null,null,null,null,null,null,null,null,null,null,null,null,null,null,null,null,null,null,null,null,null,null,null,null,null,null,null,null,null,null,null,null,null,null,null,null,null,null,null,null,null,null,null,null,null,null,null,null,null,null,null,null,null,null,null,null,null,null,null,null,null,null,null,null,null,null,null,null,null,null,null,null,null,null,null,null,null,null,null,null,null,null,null,null,null,null,null,null,null,null,null,null,null,null,null,null,null,null,null,null,null,null,null,null,null,null,null,null,null,null,null,null,null,null,null,null,null,null,null,null,null,null,null,null,null,null,null,null,null,null,null,null,null,null,null,null,null,null,null,null,null,null,null,null,null,null,null,null,null,null,null,null,null,null,null,null,null,null,null,null,null,null,null,null,null,null,null,null,null,null,null,null,null,null,null,null,null,null,null,null,null,null,null,null,null,null,null,null,null,null,null,null,null,null,null,null,null,null,null,"FLA only mode",null,null,null,null,null,null,null,null,null,null,null,null,null,null,null,null,null,null,null,null,null,null,null,"","","","","","",null,"","","","","","","","","","","","","","","","","","","","","","","","","","","","","","","","","",null,null,"","","","","","","","","","","",{"$f":"IF(OR($CQ32=\"\",$OZ32=\"\"),\"\",IF($OZ32=0,0,\nGuardLimitUpper(\n  ($OZ32-$CQ32)/$OZ32,\n  data_GuardLimitFlag,\n  1)\n))","v":""},"","","","","","","","","","","","","","","","","","","","","",{"$f":"IF($O$8=\"Lv2\",\"\",IF($IV32=\"\",\"\",$IV32))","v":""},"","","","","","","","","","","","","","",{"$f":"IF(OR($O$8=\"Lv2\",$O$8=\"Lv3\",$O$8=\"Lv4\"),IF(OR($AS32=\"\",COUNT($PL32:$QL32)=0),\"\",\nGuardLimitLower(\n  $AS32-SUM($PL32:$QL32),\n  data_GuardLimitFlag,\n  0)\n),\"\")","v":""},"","","","","","","","","","","","","","","","","","","","","","",null,null,null,null,null,null,null,null,"",null,null,"","","","","","","","","","","","","","","","","","","","","","","","","","","","","","","","","","","","","","","",null,null,null,null,null,null,null,null,null,null,null,null,null,null,null,"←空欄は消さないこと。",null,null,null,null,null,null,null,null,null,null,null,"←空欄は消さないこと。",null,null,null,null,null,null,null,null,null,null,null,null,null,null,null,null,null,"↑この表は削除しないこと(CycleAccountingのヒゲグラフが参照)",null,null,null,null,null,null,null,"↑この表は削除しないこと(Cacheのグラフが参照)",null,null,null,"L2 miss",{"$f":"IF(OR(PG42=\"\",VK31=\"\"),0,PG42*VK31)","v":0},{"$f":"IF(OR(PG42=\"\",VK31=\"\"),0,(1-PG42)*VK31)","v":0},null,"L2 miss",{"$f":"IF(OR(PG42=\"\",VK31=\"\"),0,PG42*VK31)","v":0},{"$f":"IF(OR(PH42=\"\",VK31=\"\"),0,PH42*VK31)","v":0},{"$f":"IF(OR(PI42=\"\",VK31=\"\"),0,PI42*VK31)","v":0}]
[null,null,null,null,null,null,null,null,null,null,null,null,null,null,null,null,null,null,null,null,null,null,null,null,null,null,null,3,null,null,null,null,null,null,null,null,null,null,null,null,null,null,null,null,null,null,null,null,null,null,null,null,null,null,null,null,null,null,null,null,null,null,null,null,null,null,null,null,null,null,null,null,null,null,null,null,null,null,null,null,null,null,null,null,null,null,null,null,null,null,null,null,null,null,null,null,null,null,null,null,null,null,null,null,null,null,null,null,null,null,null,null,null,null,null,null,null,null,null,null,null,null,null,null,null,null,null,null,null,null,null,null,null,null,null,null,null,null,null,null,null,null,null,null,null,null,null,null,null,null,null,null,null,null,null,null,null,null,null,null,null,null,null,null,null,null,null,null,null,null,null,null,null,null,null,null,null,null,null,null,null,null,null,null,null,null,null,null,null,null,null,null,null,null,null,null,null,null,null,null,null,null,null,null,null,null,null,null,null,null,null,null,null,null,null,null,null,null,null,null,null,null,null,null,null,null,null,null,null,null,null,null,null,null,null,null,null,null,null,null,null,null,null,null,null,null,null,null,null,null,null,null,null,null,null,null,null,null,null,null,null,null,null,null,null,null,null,null,null,null,null,null,null,null,null,null,null,null,null,null,null,null,null,null,null,null,null,null,null,null,null,null,null,null,null,null,null,null,null,null,null,null,null,null,null,null,null,null,null,null,null,null,null,null,null,null,null,null,null,null,null,null,null,null,null,null,null,null,null,null,null,null,null,null,null,null,null,null,null,null,"EXA only mode",null,null,null,null,null,null,null,null,null,null,null,null,null,null,null,null,null,null,null,null,null,null,null,"","","","","","",null,"","","","","","","","","","","","","","","","","","","","","","","","","","","","","","","","","",null,null,"","","","","","","","","","","",{"$f":"IF(OR($CQ33=\"\",$OZ33=\"\"),\"\",IF($OZ33=0,0,\nGuardLimitUpper(\n  ($OZ33-$CQ33)/$OZ33,\n  data_GuardLimitFlag,\n  1)\n))","v":""},"","","","","","","","","","","","","","","","","","","","","","","","","","","","","","","","","","","","",{"$f":"IF(OR($O$8=\"Lv2\",$O$8=\"Lv3\",$O$8=\"Lv4\"),IF(OR($AS33=\"\",COUNT($PL33:$QL33)=0),\"\",\nGuardLimitLower(\n  $AS33-SUM($PL33:$QL33),\n  data_GuardLimitFlag,\n  0)\n),\"\")","v":""},"","","","","","","","","","","","","","","","","","","","","","",null,null,null,null,null,null,null,null,"",null,null,"","","","","","","","","","","","","","","","","","","","","","","","","","","","","","","","","","","","","","","",null,null,null,null,null,null,null,null,null,null,null,null,null,null,null,"　　ヒゲグラフを左寄せするための空白",null,null,null,null,null,null,null,null,null,null,null,"　　ヒゲグラフを左寄せするための空白"]
[null,null,null,null,null,null,null,null,null,null,null,null,null,null,null,null,null,null,null,null,null,null,null,null,null,null,null,4,null,null,null,null,null,null,null,null,null,null,null,null,null,null,null,null,null,null,null,null,null,null,null,null,null,null,null,null,null,null,null,null,null,null,null,null,null,null,null,null,null,null,null,null,null,null,null,null,null,null,null,null,null,null,null,null,null,null,null,null,null,null,null,null,null,null,null,null,null,null,null,null,null,null,null,null,null,null,null,null,null,null,null,null,null,null,null,null,null,null,null,null,null,null,null,null,null,null,null,null,null,null,null,null,null,null,null,null,null,null,null,null,null,null,null,null,null,null,null,null,null,null,null,null,null,null,null,null,null,null,null,null,null,null,null,null,null,null,null,null,null,null,null,null,null,null,null,null,null,null,null,null,null,null,null,null,null,null,null,null,null,null,null,null,null,null,null,null,null,null,null,null,null,null,null,null,null,null,null,null,null,null,null,null,null,null,null,null,null,null,null,null,null,null,null,null,null,null,null,null,null,null,null,null,null,null,null,null,null,null,null,null,null,null,null,null,null,null,null,null,null,null,null,null,null,null,null,null,null,null,null,null,null,null,null,null,null,null,null,null,null,null,null,null,null,null,null,null,null,null,null,null,null,null,null,null,null,null,null,null,null,null,null,null,null,null,null,null,null,null,null,null,null,null,null,null,null,null,null,null,null,null,null,null,null,null,null,null,null,null,null,null,null,null,null,null,null,null,null,null,null,null,null,null,null,null,null,null,null,null,null,null,"Throttling state 1",null,null,null,null,null,null,null,null,null,null,null,null,null,null,null,null,null,null,null,null,null,null,null,"","","","","","",null,"","","","","","","","","","","","","","","","","","","","","","","","","","","","","","","","","",null,null,"","","","","","","","","","","",{"$f":"IF(OR($CQ34=\"\",$OZ34=\"\"),\"\",IF($OZ34=0,0,\nGuardLimitUpper(\n  ($OZ34-$CQ34)/$OZ34,\n  data_GuardLimitFlag,\n  1)\n))","v":""},"","","","","","","","","","","","","","","","","","","","","","","","","","","","","","","","","","","","",{"$f":"IF(OR($O$8=\"Lv2\",$O$8=\"Lv3\",$O$8=\"Lv4\"),IF(OR($AS34=\"\",COUNT($PL34:$QL34)=0),\"\",\nGuardLimitLower(\n  $AS34-SUM($PL34:$QL34),\n  data_GuardLimitFlag,\n  0)\n),\"\")","v":""},"","","","","","","","","","","","","","","","","","","","","","",null,null,null,null,null,null,null,null,"",null,null,"","","","","","","","","","","","","","","","","","","","","","","","","","","","","","","","","","","","","","","",null,null,null,null,null,null,null,null,null,null,null,null,null,null,null,null,null,null,null,null,null,null,null,null,null,null,null,null,null,null,null,null,null,null,null,null,null,null,null,null,null,null,null,null,null,null,null,null,null,null,null,null,null,null,null,null,null,"Graph. L1D,L2 Cache miss",null,null,null,"Graph. L1D,L2 Cache miss"]
[null,null,null,null,null,null,null,null,null,null,null,null,null,null,null,null,null,null,null,null,null,null,null,null,null,null,null,5,null,null,null,null,null,null,null,null,null,null,null,null,null,null,null,null,null,null,null,null,null,null,null,null,null,null,null,null,null,null,null,null,null,null,null,null,null,null,null,null,null,null,null,null,null,null,null,null,null,null,null,null,null,null,null,null,null,null,null,null,null,null,null,null,null,null,null,null,null,null,null,null,null,null,null,null,null,null,null,null,null,null,null,null,null,null,null,null,null,null,null,null,null,null,null,null,null,null,null,null,null,null,null,null,null,null,null,null,null,null,null,null,null,null,null,null,null,null,null,null,null,null,null,null,null,null,null,null,null,null,null,null,null,null,null,null,null,null,null,null,null,null,null,null,null,null,null,null,null,null,null,null,null,null,null,null,null,null,null,null,null,null,null,null,null,null,null,null,null,null,null,null,null,null,null,null,null,null,null,null,null,null,null,null,null,null,null,null,null,null,null,null,null,null,null,null,null,null,null,null,null,null,null,null,null,null,null,null,null,null,null,null,null,null,null,null,null,null,null,null,null,null,null,null,null,null,null,null,null,null,null,null,null,null,null,null,null,null,null,null,null,null,null,null,null,null,null,null,null,null,null,null,null,null,null,null,null,null,null,null,null,null,null,null,null,null,null,null,null,null,null,null,null,null,null,null,null,null,null,null,null,null,null,null,null,null,null,null,null,null,null,null,null,null,null,null,null,null,null,null,null,null,null,null,null,null,null,null,null,null,null,null,"Throttling state 2",null,null,null,null,null,null,null,null,null,null,null,null,null,null,null,null,null,null,null,null,null,null,null,"","","","","","",null,"","","","","","","","","","","","","","","","","","","","","","","","","","","","","","","","","",null,null,"","","","","","","","","","","",{"$f":"IF(OR($CQ35=\"\",$OZ35=\"\"),\"\",IF($OZ35=0,0,\nGuardLimitUpper(\n  ($OZ35-$CQ35)/$OZ35,\n  data_GuardLimitFlag,\n  1)\n))","v":""},"","","","","","","","","","","","","","","","","","","","","","","","","","","","","","","","","","","","",{"$f":"IF(OR($O$8=\"Lv2\",$O$8=\"Lv3\",$O$8=\"Lv4\"),IF(OR($AS35=\"\",COUNT($PL35:$QL35)=0),\"\",\nGuardLimitLower(\n  $AS35-SUM($PL35:$QL35),\n  data_GuardLimitFlag,\n  0)\n),\"\")","v":""},"","","","","","","","","","","","","","","","","","","","","","",null,null,null,null,null,null,null,null,"",null,null,"","","","","","","","","","","","","","","","","","","","","","","","","","","","","","","","","","","","","","",""]
[null,null,null,null,null,null,null,null,null,null,null,null,null,null,null,null,null,null,null,null,null,null,null,null,null,null,null,6,null,null,null,null,null,null,null,null,null,null,null,null,null,null,null,null,null,null,null,null,null,null,null,null,null,null,null,null,null,null,null,null,null,null,null,null,null,null,null,null,null,null,null,null,null,null,null,null,null,null,null,null,null,null,null,null,null,null,null,null,null,null,null,null,null,null,null,null,null,null,null,null,null,null,null,null,null,null,null,null,null,null,null,null,null,null,null,null,null,null,null,null,null,null,null,null,null,null,null,null,null,null,null,null,null,null,null,null,null,null,null,null,null,null,null,null,null,null,null,null,null,null,null,null,null,null,null,null,null,null,null,null,null,null,null,null,null,null,null,null,null,null,null,null,null,null,null,null,null,null,null,null,null,null,null,null,null,null,null,null,null,null,null,null,null,null,null,null,null,null,null,null,null,null,null,null,null,null,null,null,null,null,null,null,null,null,null,null,null,null,null,null,null,null,null,null,null,null,null,null,null,null,null,null,null,null,null,null,null,null,null,null,null,null,null,null,null,null,null,null,null,null,null,null,null,null,null,null,null,null,null,null,null,null,null,null,null,null,null,null,null,null,null,null,null,null,null,null,null,null,null,null,null,null,null,null,null,null,null,null,null,null,null,null,null,null,null,null,null,null,null,null,null,null,null,null,null,null,null,null,null,null,null,null,null,null,null,null,null,null,null,null,null,null,null,null,null,null,null,null,null,null,null,null,null,null,null,null,null,null,null,null,"Throttling state 3",null,null,null,null,null,null,null,null,null,null,null,null,null,null,null,null,null,null,null,null,null,null,null,"","","","","","",null,"","","","","","","","","","","","","","","","","","","","","","","","","","","","","","","","","",null,null,"","","","","","","","","","","",{"$f":"IF(OR($CQ36=\"\",$OZ36=\"\"),\"\",IF($OZ36=0,0,\nGuardLimitUpper(\n  ($OZ36-$CQ36)/$OZ36,\n  data_GuardLimitFlag,\n  1)\n))","v":""},"","","","","","","","","","","","","","","","","","","","","","","","","","","","","","","","","","","","",{"$f":"IF(OR($O$8=\"Lv2\",$O$8=\"Lv3\",$O$8=\"Lv4\"),IF(OR($AS36=\"\",COUNT($PL36:$QL36)=0),\"\",\nGuardLimitLower(\n  $AS36-SUM($PL36:$QL36),\n  data_GuardLimitFlag,\n  0)\n),\"\")","v":""},"","","","","","","","","","","","","","","","","","","","","","",null,null,null,null,null,null,null,null,"",null,null,"","","","","","","","","","","","","","","","","","","","","","","","","","","","","","","","","","","","","","",""]
[null,null,null,null,null,null,null,null,null,null,null,null,null,null,null,null,null,null,null,null,null,null,null,null,null,null,null,7,null,null,null,null,null,null,null,null,null,null,null,null,null,null,null,null,null,null,null,null,null,null,null,null,null,null,null,null,null,null,null,null,null,null,null,null,null,null,null,null,null,null,null,null,null,null,null,null,null,null,null,null,null,null,null,null,null,null,null,null,null,null,null,null,null,null,null,null,null,null,null,null,null,null,null,null,null,null,null,null,null,null,null,null,null,null,null,null,null,null,null,null,null,null,null,null,null,null,null,null,null,null,null,null,null,null,null,null,null,null,null,null,null,null,null,null,null,null,null,null,null,null,null,null,null,null,null,null,null,null,null,null,null,null,null,null,null,null,null,null,null,null,null,null,null,null,null,null,null,null,null,null,null,null,null,null,null,null,null,null,null,null,null,null,null,null,null,null,null,null,null,null,null,null,null,null,null,null,null,null,null,null,null,null,null,null,null,null,null,null,null,null,null,null,null,null,null,null,null,null,null,null,null,null,null,null,null,null,null,null,null,null,null,null,null,null,null,null,null,null,null,null,null,null,null,null,null,null,null,null,null,null,null,null,null,null,null,null,null,null,null,null,null,null,null,null,null,null,null,null,null,null,null,null,null,null,null,null,null,null,null,null,null,null,null,null,null,null,null,null,null,null,null,null,null,null,null,null,null,null,null,null,null,null,null,null,null,null,null,null,null,null,null,null,null,null,null,null,null,null,null,null,null,null,null,null,null,null,null,null,null,null,"Issue state",null,null,null,null,null,null,null,null,null,null,null,null,null,null,null,null,null,null,null,null,null,null,null,"","","","","","",null,"","","","","","","","","","","","","","","","","","","","","","","","","","","","","","","","","",null,null,"","","","","","","","","","","",{"$f":"IF(OR($CQ37=\"\",$OZ37=\"\"),\"\",IF($OZ37=0,0,\nGuardLimitUpper(\n  ($OZ37-$CQ37)/$OZ37,\n  data_GuardLimitFlag,\n  1)\n))","v":""},"","","","","","","","","","","","","","","","","","","","","","","","","","","","","","","","","","","","",{"$f":"IF(OR($O$8=\"Lv2\",$O$8=\"Lv3\",$O$8=\"Lv4\"),IF(OR($AS37=\"\",COUNT($PL37:$QL37)=0),\"\",\nGuardLimitLower(\n  $AS37-SUM($PL37:$QL37),\n  data_GuardLimitFlag,\n  0)\n),\"\")","v":""},"","","","","","","","","","","","","","","","","","","","","","",null,null,null,null,null,null,null,null,"",null,null,"","","","","","","","","","","","","","","","","","","","","","","","","","","","","","","","","","","","","","","",null,null,null,null,null,null,null,null,null,"(b) Reference data of vertical stacked bar graph",null,null,null,null,null,null,null,null,null,null,null,"(b) Reference data of vertical stacked bar graph"]
[null,null,null,null,null,null,null,null,null,null,null,null,null,null,null,null,null,null,null,null,null,null,null,null,null,null,null,8,null,null,null,null,null,null,null,null,null,null,null,null,null,null,null,null,null,null,null,null,null,null,null,null,null,null,null,null,null,null,null,null,null,null,null,null,null,null,null,null,null,null,null,null,null,null,null,null,null,null,null,null,null,null,null,null,null,null,null,null,null,null,null,null,null,null,null,null,null,null,null,null,null,null,null,null,null,null,null,null,null,null,null,null,null,null,null,null,null,null,null,null,null,null,null,null,null,null,null,null,null,null,null,null,null,null,null,null,null,null,null,null,null,null,null,null,null,null,null,null,null,null,null,null,null,null,null,null,null,null,null,null,null,null,null,null,null,null,null,null,null,null,null,null,null,null,null,null,null,null,null,null,null,null,null,null,null,null,null,null,null,null,null,null,null,null,null,null,null,null,null,null,null,null,null,null,null,null,null,null,null,null,null,null,null,null,null,null,null,null,null,null,null,null,null,null,null,null,null,null,null,null,null,null,null,null,null,null,null,null,null,null,null,null,null,null,null,null,null,null,null,null,null,null,null,null,null,null,null,null,null,null,null,null,null,null,null,null,null,null,null,null,null,null,null,null,null,null,null,null,null,null,null,null,null,null,null,null,null,null,null,null,null,null,null,null,null,null,null,null,null,null,null,null,null,null,null,null,null,null,null,null,null,null,null,null,null,null,null,null,null,null,null,null,null,null,null,null,null,null,null,null,null,null,null,null,null,null,null,null,null,null,"L1 HWPF(L1_DIST)",null,null,null,null,null,null,null,null,null,null,null,null,null,null,null,null,null,null,null,null,null,null,null,"","","","","","",null,"","","","","","","","","","","","","","","","","","","","","","","","","","","","","","","","","",null,null,"","","","","","","","","","","",{"$f":"IF(OR($CQ38=\"\",$OZ38=\"\"),\"\",IF($OZ38=0,0,\nGuardLimitUpper(\n  ($OZ38-$CQ38)/$OZ38,\n  data_GuardLimitFlag,\n  1)\n))","v":""},"","","","","","","","","","","","","","","","","","","","","","","","","","","","","","","","","","","","",{"$f":"IF(OR($O$8=\"Lv2\",$O$8=\"Lv3\",$O$8=\"Lv4\"),IF(OR($AS38=\"\",COUNT($PL38:$QL38)=0),\"\",\nGuardLimitLower(\n  $AS38-SUM($PL38:$QL38),\n  data_GuardLimitFlag,\n  0)\n),\"\")","v":""},"","","","","","","","","","","","","","","","","","","","","","",null,null,null,null,null,null,null,null,"",null,null,"","","","","","","","","","","","","","","","","","","","","","","","","","","","","","","","","","","","","","","",null,null,null,null,null,null,null,null,null,null,null,"Prefetch port busy wait","Memory and Cache access wait","Operation wait","Other wait","Store port busy wait","Instruction fetch wait","Barrier synchronization wait","1 instruction commit","Other instruction commit",null,null,null,"Prefetch port busy wait by hardware prefetch","Prefetch port busy wait by software prefetch","Integer load memory access wait","Floating-point load memory access wait","Integer load L2 cache access wait","Integer load L1D cache access wait","Floating-point load L2 cache access wait","Floating-point load L1D cache access wait (*)","Integer operation wait","Floating-point operation wait","Branch instruction wait","Other wait","Store port busy wait","Instruction fetch wait","Barrier synchronization wait","1 instruction commit","2 instruction commit","3 instruction commit","4 instruction commit","Other instruction commit"]
[null,null,null,null,null,null,null,null,null,null,null,null,null,null,null,null,null,null,null,null,null,null,null,null,null,null,null,9,null,null,null,null,null,null,null,null,null,null,null,null,null,null,null,null,null,null,null,null,null,null,null,null,null,null,null,null,null,null,null,null,null,null,null,null,null,null,null,null,null,null,null,null,null,null,null,null,null,null,null,null,null,null,null,null,null,null,null,null,null,null,null,null,null,null,null,null,null,null,null,null,null,null,null,null,null,null,null,null,null,null,null,null,null,null,null,null,null,null,null,null,null,null,null,null,null,null,null,null,null,null,null,null,null,null,null,null,null,null,null,null,null,null,null,null,null,null,null,null,null,null,null,null,null,null,null,null,null,null,null,null,null,null,null,null,null,null,null,null,null,null,null,null,null,null,null,null,null,null,null,null,null,null,null,null,null,null,null,null,null,null,null,null,null,null,null,null,null,null,null,null,null,null,null,null,null,null,null,null,null,null,null,null,null,null,null,null,null,null,null,null,null,null,null,null,null,null,null,null,null,null,null,null,null,null,null,null,null,null,null,null,null,null,null,null,null,null,null,null,null,null,null,null,null,null,null,null,null,null,null,null,null,null,null,null,null,null,null,null,null,null,null,null,null,null,null,null,null,null,null,null,null,null,null,null,null,null,null,null,null,null,null,null,null,null,null,null,null,null,null,null,null,null,null,null,null,null,null,null,null,null,null,null,null,null,null,null,null,null,null,null,null,null,null,null,null,null,null,null,null,null,null,null,null,null,null,null,null,null,null,null,"L1 HWPF(L1W)",null,null,null,null,null,null,null,null,null,null,null,null,null,null,null,null,null,null,null,null,null,null,null,"","","","","","",null,"","","","","","","","","","","","","","","","","","","","","","","","","","","","","","","","","",null,null,"","","","","","","","","","","",{"$f":"IF(OR($CQ39=\"\",$OZ39=\"\"),\"\",IF($OZ39=0,0,\nGuardLimitUpper(\n  ($OZ39-$CQ39)/$OZ39,\n  data_GuardLimitFlag,\n  1)\n))","v":""},"","","","","","","","","","","","","","","","","","","","","","","","","","","","","","","","","","","","",{"$f":"IF(OR($O$8=\"Lv2\",$O$8=\"Lv3\",$O$8=\"Lv4\"),IF(OR($AS39=\"\",COUNT($PL39:$QL39)=0),\"\",\nGuardLimitLower(\n  $AS39-SUM($PL39:$QL39),\n  data_GuardLimitFlag,\n  0)\n),\"\")","v":""},"","","","","","","","","","","","","","","","","","","","","","",null,null,null,null,null,null,null,null,"",null,null,"","","","","","","","","","","","","","","","","","","","","","","","","","","","","","","","","","","","","","",""]
[null,null,null,null,null,null,null,null,null,null,null,null,null,null,null,null,null,null,null,null,null,null,null,null,null,null,null,10,null,null,null,null,null,null,null,null,null,null,null,null,null,null,null,null,null,null,null,null,null,null,null,null,null,null,null,null,null,null,null,null,null,null,null,null,null,null,null,null,null,null,null,null,null,null,null,null,null,null,null,null,null,null,null,null,null,null,null,null,null,null,null,null,null,null,null,null,null,null,null,null,null,null,null,null,null,null,null,null,null,null,null,null,null,null,null,null,null,null,null,null,null,null,null,null,null,null,null,null,null,null,null,null,null,null,null,null,null,null,null,null,null,null,null,null,null,null,null,null,null,null,null,null,null,null,null,null,null,null,null,null,null,null,null,null,null,null,null,null,null,null,null,null,null,null,null,null,null,null,null,null,null,null,null,null,null,null,null,null,null,null,null,null,null,null,null,null,null,null,null,null,null,null,null,null,null,null,null,null,null,null,null,null,null,null,null,null,null,null,null,null,null,null,null,null,null,null,null,null,null,null,null,null,null,null,null,null,null,null,null,null,null,null,null,null,null,null,null,null,null,null,null,null,null,null,null,null,null,null,null,null,null,null,null,null,null,null,null,null,null,null,null,null,null,null,null,null,null,null,null,null,null,null,null,null,null,null,null,null,null,null,null,null,null,null,null,null,null,null,null,null,null,null,null,null,null,null,null,null,null,null,null,null,null,null,null,null,null,null,null,null,null,null,null,null,null,null,null,null,null,null,null,null,null,null,null,null,null,null,null,null,"L2 HWPF(L2_DIST)",null,null,null,null,null,null,null,null,null,null,null,null,null,null,null,null,null,null,null,null,null,null,null,"","","","","","",null,"","","","","","","","","","","","","","","","","","","","","","","","","","","","","","","","","",null,null,"","","","","","","","","","","",{"$f":"IF(OR($CQ40=\"\",$OZ40=\"\"),\"\",IF($OZ40=0,0,\nGuardLimitUpper(\n  ($OZ40-$CQ40)/$OZ40,\n  data_GuardLimitFlag,\n  1)\n))","v":""},"","","","","","","","","","","","","","","","","","","","","","","","","","","","","","","","","","","","",{"$f":"IF(OR($O$8=\"Lv2\",$O$8=\"Lv3\",$O$8=\"Lv4\"),IF(OR($AS40=\"\",COUNT($PL40:$QL40)=0),\"\",\nGuardLimitLower(\n  $AS40-SUM($PL40:$QL40),\n  data_GuardLimitFlag,\n  0)\n),\"\")","v":""},"","","","","","","","","","","","","","","","","","","","","","",null,null,null,null,null,null,null,null,"",null,null,"","","","","","","","","","","","","","","","","","","","","","","","","","","","","","","","","","","","","","","",null,null,null,null,null,null,null,null,null,null,null,"(255, 153, 255)","(255, 128, 128)","(204, 204, 255)","(255, 153, 0)","(128, 0, 0)","(204, 153, 255)","(255, 0, 255)","(128, 0, 128)","(0, 255, 255)",null,null,null,"(255, 153, 255)","(255, 204, 255)","(0, 102, 0)","(255, 0, 0)","(0, 255, 0)","(204, 255, 153)","(255, 128, 128)","(255, 204, 204)","(0, 102, 204)","(204, 204, 255)","(0, 0, 128)","(255, 153, 0)","(128, 0, 0)","(204, 153, 255)","(255, 0, 255)","(128, 0, 128)","(0, 0, 255)","(0, 153, 255)","(0, 204, 255)","(0, 255, 255)"]
[null,null,null,null,null,null,null,null,null,null,null,null,null,null,null,null,null,null,null,null,null,null,null,null,null,null,null,11,null,null,null,null,null,null,null,null,null,null,null,null,null,null,null,null,null,null,null,null,null,null,null,null,null,null,null,null,null,null,null,null,null,null,null,null,null,null,null,null,null,null,null,null,null,null,null,null,null,null,null,null,null,null,null,null,null,null,null,null,null,null,null,null,null,null,null,null,null,null,null,null,null,null,null,null,null,null,null,null,null,null,null,null,null,null,null,null,null,null,null,null,null,null,null,null,null,null,null,null,null,null,null,null,null,null,null,null,null,null,null,null,null,null,null,null,null,null,null,null,null,null,null,null,null,null,null,null,null,null,null,null,null,null,null,null,null,null,null,null,null,null,null,null,null,null,null,null,null,null,null,null,null,null,null,null,null,null,null,null,null,null,null,null,null,null,null,null,null,null,null,null,null,null,null,null,null,null,null,null,null,null,null,null,null,null,null,null,null,null,null,null,null,null,null,null,null,null,null,null,null,null,null,null,null,null,null,null,null,null,null,null,null,null,null,null,null,null,null,null,null,null,null,null,null,null,null,null,null,null,null,null,null,null,null,null,null,null,null,null,null,null,null,null,null,null,null,null,null,null,null,null,null,null,null,null,null,null,null,null,null,null,null,null,null,null,null,null,null,null,null,null,null,null,null,null,null,null,null,null,null,null,null,null,null,null,null,null,null,null,null,null,null,null,null,null,null,null,null,null,null,null,null,null,null,null,null,null,null,null,null,null,"L2 HWPF(L2W)",null,null,null,null,null,null,null,null,null,null,null,null,null,null,null,null,null,null,null,null,null,null,null,"","","",{"$f":"IF(OR($NI41=\"\",$NC41=\"\"),\"\",IF($NC41=0,0,$NI41/10^9/$NC41))","v":""},"","",null,"","","","","","","","","","","","","","","","","","","","","","","","","","","","","","","","","",null,null,"","","","","","","","","","",{"$f":"IF(OR($OZ41=\"\",$OY41=\"\"),\"\",IF($OY41=0,0,$OZ41/$OY41))","v":""},{"$f":"IF(OR($CQ41=\"\",$OZ41=\"\"),\"\",IF($OZ41=0,0,\nGuardLimitUpper(\n  ($OZ41-$CQ41)/$OZ41,\n  data_GuardLimitFlag,\n  1)\n))","v":""},"","","","","","","","","","","","","","","","","","","","","","","","","","","","","","","","","","","","",{"$f":"IF(OR($O$8=\"Lv2\",$O$8=\"Lv3\",$O$8=\"Lv4\"),IF(OR($AS41=\"\",COUNT($PL41:$QL41)=0),\"\",\nGuardLimitLower(\n  $AS41-SUM($PL41:$QL41),\n  data_GuardLimitFlag,\n  0)\n),\"\")","v":""},"","","","","","","","","","","","","","","","","","","","","","",null,null,null,null,null,null,null,null,"",null,null,"","","","","","","","","","","","","","","","","","","","",{"$f":"IF(OR($OI41=\"\",$OC41=\"\",COUNT($OI$30:$OI$41)=0),\"\",IF(MAX($OI$30:$OI$41)=0,0,($OI41-$OC41)/MAX($OI$30:$OI$41)))","v":""},{"$f":"IF(OR($NH41=\"\",COUNT($NH$30:$NH$41)=0),\"\",IF(MAX($NH$30:$NH$41)=0,0,$NH41/MAX($NH$30:$NH$41)))","v":""},"","","","","","","","","","","","","","","","","",null,null,null,null,null,null,null,null,null,null,"[Lv2]","G_B01_v2","G_B02_v2","G_B03_v2","G_B04_v2","G_B05_v2","G_B06_v2","G_B07_v2","G_B08_v2","G_B09_v2",null,null,"[Lv3]","G_B01_v3","G_B02_v3","G_B03_v3","G_B04_v3","G_B05_v3","G_B06_v3","G_B07_v3","G_B08_v3","G_B09_v3","G_B10_v3","G_B11_v3","G_B12_v3","G_B13_v3","G_B14_v3","G_B15_v3","G_B16_v3","G_B17_v3","G_B18_v3","G_B19_v3","G_B20_v3"]
[null,null,null,null,null,null,null,null,null,null,null,null,null,null,null,null,null,null,null,null,null,null,null,null,null,null,null,null,null,null,null,null,null,null,null,null,null,null,null,null,null,null,null,null,null,null,null,null,null,null,null,null,null,null,null,null,null,null,null,null,null,null,null,null,null,null,null,null,null,null,null,null,null,null,null,null,null,null,null,null,null,null,null,null,null,null,null,null,null,null,null,null,null,null,null,null,null,null,null,null,null,null,null,null,null,null,null,null,null,null,null,null,null,null,null,null,null,null,null,null,null,null,null,null,null,null,null,null,null,null,null,null,null,null,null,null,null,null,null,null,null,null,null,null,null,null,null,null,null,null,null,null,null,null,null,null,null,null,null,null,null,null,null,null,null,null,null,null,null,null,null,null,null,null,null,null,null,null,null,null,null,null,null,null,null,null,null,null,null,null,null,null,null,null,null,null,null,null,null,null,null,null,null,null,null,null,null,null,null,null,null,null,null,null,null,null,null,null,null,null,null,null,null,null,null,null,null,null,null,null,null,null,null,null,null,null,null,null,null,null,null,null,null,null,null,null,null,null,null,null,null,null,null,null,null,null,null,null,null,null,null,null,null,null,null,null,null,null,null,null,null,null,null,null,null,null,null,null,null,null,null,null,null,null,null,null,null,null,null,null,null,null,null,null,null,null,null,null,null,null,null,null,null,null,null,null,null,null,null,null,null,null,null,null,null,null,null,null,null,null,null,null,null,null,null,null,null,null,null,null,null,null,null,null,null,null,null,null,null,null,"L1 sector cache(L1_sec0_max)",null,null,null,null,null,null,null,null,null,null,null,null,null,null,null,null,null,null,null,null,null,null,null,null,{"$f":"IF(OR(COUNTA($NA30:$NB41)=0,$G$11=\"\"),\"\",\"CMG \" & $G$11 & \" total\")","v":""},{"$f":"IF(COUNT(NC30:NC41)=0,\"\",AVERAGE(NC30:NC41))","v":""},{"$f":"IF(OR(COUNT(NI30:NI41)=0,,$NC$42=\"\"),\"\",IF($NC$42=0,0,SUM(NI30:NI41)/10^9/$NC$42))","v":""},{"$f":"IF(COUNT(NE30:NE41)=0,\"\",AVERAGE(NE30:NE41))","v":""},{"$f":"IF(OR(COUNT($AO30:$AO41)=0,COUNT($AQ30:$AQ41)=0,COUNT($AR30:$AR41)=0,COUNT($AP30:$AP41)=0,$C$7=\"\",$NC$42=\"\"),\"\",IF($NC$42=0,0,(SUM($AO30:$AO41)-SUM($AQ30:$AQ41)-SUM($AR30:$AR41)+SUM($AP30:$AP41))*$C$7/$NC$42/10^9))","v":""},{"$f":"IF(NF$42=\"\",\"\",NF$42/256)","v":""},{"$f":"IF(COUNT(NH30:NH41)=0,\"\",SUM(NH30:NH41))","v":""},{"$f":"IF(COUNT(NI30:NI41)=0,\"\",SUM(NI30:NI41))","v":""},{"$f":"IF(OR(COUNT($AT30:$AT41)=0,COUNT($AS30:$AS41)=0),\"\",IF(SUM($AS30:$AS41)=0,0,SUM($AT30:$AT41)/SUM($AS30:$AS41)))","v":""},{"$f":"IF(OR(COUNT($AM30:$AM41)=0,$C$11=\"\",COUNT($AN30:$AN41)=\"\"),\"\",IF(SUM($AM30:$AM41)*$C$11+SUM($AN30:$AN41)=0,0,SUM($AM30:$AM41)*$C$11/(SUM($AM30:$AM41)*$C$11+SUM($AN30:$AN41))))","v":""},{"$f":"IF(OR(COUNT($CB30:$CB41)=0,COUNT($CD30:$CD41)=0,COUNT($CA30:$CA41)=0,COUNT($CC30:$CC41)=0),\"\",IF(SUM($CA30:$CA41)+SUM($CC30:$CC41)=0,0,\nGuardLimitUpper(\n  (SUM($CB30:$CB41)+SUM($CD30:$CD41))/((SUM($CA30:$CA41)+SUM($CC30:$CC41))*16),\n  data_GuardLimitFlag,\n  1)\n))","v":""},{"$f":"IF(COUNT(NM30:NM41)=0,\"\",AVERAGE(NM30:NM41))","v":""},{"$f":"IF(OR(COUNT($AS30:$AS41)=0,$NC$42=\"\"),\"\",IF($NC$42=0,0,SUM($AS30:$AS41)/10^9/$NC$42))","v":""},{"$f":"IF(COUNT(NO30:NO41)=0,\"\",AVERAGE(NO30:NO41))","v":""},{"$f":"IF(COUNT(NP30:NP41)=0,\"\",AVERAGE(NP30:NP41))","v":""},{"$f":"IF(COUNT(NQ30:NQ41)=0,\"\",AVERAGE(NQ30:NQ41))","v":""},{"$f":"IF(COUNT(NR30:NR41)=0,\"\",AVERAGE(NR30:NR41))","v":""},"",{"$f":"IF(COUNT(NT30:NT41)=0,\"\",AVERAGE(NT30:NT41))","v":""},"","",{"$f":"IF(COUNT(NW30:NW41)=0,\"\",AVERAGE(NW30:NW41))","v":""},"",{"$f":"IF(COUNT(NY30:NY41)=0,\"\",AVERAGE(NY30:NY41))","v":""},{"$f":"IF(COUNT(NZ30:NZ41)=0,\"\",AVERAGE(NZ30:NZ41))","v":""},{"$f":"IF(COUNT(OA30:OA41)=0,\"\",AVERAGE(OA30:OA41))","v":""},{"$f":"IF(COUNT(OB30:OB41)=0,\"\",AVERAGE(OB30:OB41))","v":""},{"$f":"IF(COUNT(OC30:OC41)=0,\"\",AVERAGE(OC30:OC41))","v":""},"",{"$f":"IF(COUNT(OE30:OE41)=0,\"\",AVERAGE(OE30:OE41))","v":""},{"$f":"IF(COUNT(OF30:OF41)=0,\"\",AVERAGE(OF30:OF41))","v":""},{"$f":"IF(COUNT(OG30:OG41)=0,\"\",AVERAGE(OG30:OG41))","v":""},{"$f":"IF(COUNT(OH30:OH41)=0,\"\",AVERAGE(OH30:OH41))","v":""},{"$f":"IF(COUNT(OI30:OI41)=0,\"\",AVERAGE(OI30:OI41))","v":""},{"$f":"IF(OR(COUNT($CA30:$CA41)=0,COUNT($BV30:$BV41)=0),\"\",IF(SUM($BV30:$BV41)=0,0,SUM($CA30:$CA41)/SUM($BV30:$BV41)))","v":""},{"$f":"IF(OR(COUNT($CC30:$CC41)=0,COUNT($BV30:$BV41)=0),\"\",IF(SUM($BV30:$BV41)=0,0,SUM($CC30:$CC41)/SUM($BV30:$BV41)))","v":""},{"$f":"IF(OR(COUNT($FO30:$FO41)=0,COUNT($FH30:$FH41)=0),\"\",IF(SUM($FH30:$FH41)=0,0,SUM($FO30:$FO41)/SUM($FH30:$FH41)))","v":""},{"$f":"IF(OR(COUNT($FP30:$FP41)=0,COUNT($FH30:$FH41)=0),\"\",IF(SUM($FH30:$FH41)=0,0,SUM($FP30:$FP41)/SUM($FH30:$FH41)))","v":""},{"$f":"IF(OR(COUNT($BW30:$BW41)=0,COUNT($BX30:$BX41)=0,COUNT($BV30:$BV41)=0),\"\",IF(SUM($BV30:$BV41)=0,0,(SUM($BW30:$BW41)+SUM($BX30:$BX41))/2/SUM($BV30:$BV41)))","v":""},{"$f":"IF(OR(COUNT($BY$30:$BY$41)=0,COUNT($BV$30:$BV$41)=0),\"\",IF(SUM($BV$30:$BV$41)=0,0,SUM($BY$30:$BY$41)/2/SUM($BV$30:$BV$41)))","v":""},{"$f":"IF($OK$25=\"\",\"\",IF(NG42=\"\",\"\",NG$42))","v":""},{"$f":"IF(OR(COUNT($FM30:$FM41)=0,COUNT($FH30:$FH41)=0),\"\",IF(SUM($FH30:$FH41)=0,0,SUM($FM30:$FM41)/SUM($FH30:$FH41)))","v":""},{"$f":"IF(OR(COUNT($FN30:$FN41)=0,COUNT($FH30:$FH41)=0),\"\",IF(SUM($FH30:$FH41)=0,0,SUM($FN30:$FN41)/SUM($FH30:$FH41)))","v":""},{"$f":"IF(OR(COUNT(CB30:CB41)=0,COUNT(CA30:CA41)=0),\"\",IF(SUM($CA30:$CA41)=0,0,\nGuardLimitUpper(\n  SUM($CB30:$CB41)/(SUM($CA30:$CA41)*16),\n  data_GuardLimitFlag,\n  1)\n))","v":""},{"$f":"IF(OR(COUNT(CD30:CD41)=0,COUNT(CC30:CC41)=0),\"\",IF(SUM($CC30:$CC41)=0,0,\nGuardLimitUpper(\n  SUM($CD30:$CD41)/(SUM($CC30:$CC41)*16),\n  data_GuardLimitFlag,\n  1)\n))","v":""},{"$f":"IF(COUNT(OU30:OU41)=0,\"\",AVERAGE(OU30:OU41))","v":""},{"$f":"IF(COUNT(OV30:OV41)=0,\"\",AVERAGE(OV30:OV41))","v":""},{"$f":"IF(OR(COUNT($BZ30:$BZ41)=0,COUNT($BV30:$BV41)=0),\"\",IF(SUM($BV30:$BV41)=0,0,SUM($BZ30:$BZ41)/SUM($BV30:$BV41)))","v":""},{"$f":"IF(OR(COUNT($GG30:$GG41)=0,COUNT($AS30:$AS41)=0),\"\",IF(SUM($AS30:$AS41)=0,0,SUM($GG30:$GG41)/SUM($AS30:$AS41)))","v":""},{"$f":"IF(COUNT(OY30:OY41)=0,\"\",SUM(OY30:OY41))","v":""},{"$f":"IF(COUNT(OZ30:OZ41)=0,\"\",SUM(OZ30:OZ41))","v":""},{"$f":"IF(OR($OZ$42=\"\",$OY$42=\"\"),\"\",IF($OY$42=0,0,$OZ$42/$OY$42))","v":""},{"$f":"IF(OR(COUNT($OZ30:$OZ41)=0,COUNT($CQ30:$CQ41)=0,$OZ$42=\"\"),\"\",IF($OZ$42=0,0,\nGuardLimitUpper(\n  (SUM($OZ30:$OZ41)-SUM($CQ30:$CQ41))/$OZ$42,\n  data_GuardLimitFlag,\n  1)\n))","v":""},{"$f":"IF(OR(COUNT($GB30:$GB41)=0,$OZ$42=\"\"),\"\",IF($OZ$42=0,0,\nGuardLimitUpper(\n  SUM($GB30:$GB41)/$OZ$42,\n  data_GuardLimitFlag,\n  1)\n))","v":""},{"$f":"IF(OR(COUNT($CQ30:$CQ41)=0,COUNT($GB30:$GB41)=0,$OZ$42=\"\"),\"\",IF($OZ$42=0,0,\nGuardLimitUpper(\n  (SUM($CQ30:$CQ41)-SUM($GB30:$GB41))/$OZ$42,\n  data_GuardLimitFlag,\n  1)\n))","v":""},{"$f":"IF(COUNT(PE30:PE41)=0,\"\",SUM(PE30:PE41))","v":""},{"$f":"IF(OR($PE$42=\"\",$OY$42=\"\"),\"\",IF($OY$42=0,0,$PE$42/$OY$42))","v":""},{"$f":"IF($O$7=\"Lv2\",  IF(OR(COUNT($CS30:$CS41)=0,COUNT($CO30:$CO41)=0,$PE$42=\"\"),\"\",IF($PE$42=0,0,(SUM($CS30:$CS41)-SUM($CO30:$CO41))/$PE$42)),\n                               IF(OR(COUNT($CS30:$CS41)=0,COUNT($CO30:$CO41)=0,COUNT($GH30:$GH41)=0,COUNT($GC30:$GC41)=0),\"\",IF(SUM($CS30:$CS41)-SUM($CO30:$CO41)+SUM($GC30:$GC41)-SUM($GH30:$GH41)=0,0,\nGuardLimitUpper(\n  GuardLimitLower(\n  (SUM($CS30:$CS41)-SUM($CO30:$CO41))/(SUM($CS30:$CS41)-SUM($CO30:$CO41)+SUM($GC30:$GC41)-SUM($GH30:$GH41)),\n    data_GuardLimitFlag,\n    0),\n  data_GuardLimitFlag,\n  1)\n)))","v":""},{"$f":"IF(OR(COUNT($GD30:$GD41)=0,COUNT($CS30:$CS41)=0,COUNT($CO30:$CO41)=0,COUNT($GC30:$GC41)=0,COUNT($GH30:$GH41)=0),\"\",IF(SUM($CS30:$CS41)-SUM($CO30:$CO41)+SUM($GC30:$GC41)-SUM($GH30:$GH41)=0,0,\nGuardLimitUpper(\n  SUM($GD30:$GD41)/(SUM($CS30:$CS41)-SUM($CO30:$CO41)+SUM($GC30:$GC41)-SUM($GH30:$GH41)),\n  data_GuardLimitFlag,\n  1)\n))","v":""},{"$f":"IF(OR(COUNT($GD30:$GD41)=0,COUNT($CS30:$CS41)=0,COUNT($CO30:$CO41)=0,COUNT($GC30:$GC41)=0,COUNT($GH30:$GH41)=0),\"\",IF(SUM($CS30:$CS41)-SUM($CO30:$CO41)+SUM($GC30:$GC41)-SUM($GH30:$GH41)=0,0,\nGuardLimitUpper(\n  GuardLimitLower(\n  (SUM($GC30:$GC41)-SUM($GH30:$GH41)-SUM($GD30:$GD41))/(SUM($CS30:$CS41)-SUM($CO30:$CO41)+SUM($GC30:$GC41)-SUM($GH30:$GH41)),\n    data_GuardLimitFlag,\n    0),\n  data_GuardLimitFlag,\n  1)\n))","v":""},{"$f":"IF(OR(COUNT($GE30:$GE41)=0,$OY$42=\"\"),\"\",IF($OY$42=0,0,SUM($GE30:$GE41)/$OY$42))","v":""},{"$f":"IF(OR(COUNT($GF30:$GF41)=0,$OY$42=\"\"),\"\",IF($OY$42=0,0,SUM($GF30:$GF41)/$OY$42))","v":""},{"$f":"IF(COUNT(PL30:PL41)=0,\"\",SUM(PL30:PL41))","v":""},{"$f":"IF(COUNT(PM30:PM41)=0,\"\",SUM(PM30:PM41))","v":""},{"$f":"IF(COUNT(PN30:PN41)=0,\"\",SUM(PN30:PN41))","v":""},{"$f":"IF(COUNT(PO30:PO41)=0,\"\",SUM(PO30:PO41))","v":""},{"$f":"IF(COUNT(PP30:PP41)=0,\"\",SUM(PP30:PP41))","v":""},{"$f":"IF(COUNT(PQ30:PQ41)=0,\"\",SUM(PQ30:PQ41))","v":""},"",{"$f":"IF(COUNT(PS30:PS41)=0,\"\",SUM(PS30:PS41))","v":""},{"$f":"IF(COUNT(PT30:PT41)=0,\"\",SUM(PT30:PT41))","v":""},"",{"$f":"IF(COUNT(PV30:PV41)=0,\"\",SUM(PV30:PV41))","v":""},{"$f":"IF(COUNT(PW30:PW41)=0,\"\",SUM(PW30:PW41))","v":""},{"$f":"IF(COUNT(PX30:PX41)=0,\"\",SUM(PX30:PX41))","v":""},{"$f":"IF(COUNT(PY30:PY41)=0,\"\",SUM(PY30:PY41))","v":""},{"$f":"IF(COUNT(PZ30:PZ41)=0,\"\",SUM(PZ30:PZ41))","v":""},"",{"$f":"IF(COUNT(QB30:QB41)=0,\"\",SUM(QB30:QB41))","v":""},"","","",{"$f":"IF(COUNT(QF30:QF41)=0,\"\",SUM(QF30:QF41))","v":""},"",{"$f":"IF(COUNT(QH30:QH41)=0,\"\",SUM(QH30:QH41))","v":""},"","","","",{"$f":"IF(COUNT(QM30:QM41)=0,\"\",SUM(QM30:QM41))","v":""},{"$f":"IF(COUNT(QN30:QN41)=0,\"\",SUM(QN30:QN41))","v":""},{"$f":"IF(OR(COUNT($EU30:$EU41)=0,$C$11=\"\",COUNT($EW30:$EW41)=0,COUNT($AM30:$AM41)=0,COUNT($AN30:$AN41)=0),\"\",\n    SUM($EU30:$EU41)*$C$11+SUM($EW30:$EW41))","v":""},{"$f":"IF(OR(COUNT($EV30:$EV41)=0,$C$11=\"\",COUNT($EX30:$EX41)=0,COUNT($AM30:$AM41)=0,COUNT($AN30:$AN41)=0),\"\", SUM($EV30:$EV41)*$C$11+SUM($EX30:$EX41))","v":""},{"$f":"IF(OR(COUNT($AM30:$AM41)=0,COUNT($EV30:$EV41)=0,COUNT($EU30:$EU41)=0,$C$11=\"\",COUNT($AN30:$AN41)=0,COUNT($EX30:$EX41)=0,COUNT($EW30:$EW41)=0),\"\", (SUM($AM30:$AM41)-SUM($EV30:$EV41)-SUM($EU30:$EU41))*$C$11+(SUM($AN30:$AN41)-SUM($EX30:$EX41)-SUM($EW30:$EW41))\n     )","v":""},{"$f":"IF(OR(COUNT($AM30:$AM41)=0,$C$11=\"\",COUNT($AN30:$AN41)=0,COUNT($CB30:$CB41)=0,COUNT($CD30:$CD41)=0,COUNT($CA30:$CA41)=0,COUNT($CC30:$CC41)=0,$NC$42=\"\"),\"\",\n   IF(OR(SUM($CA30:$CA41)+SUM($CC30:$CC41)=0,$NC$42=0),0,\n     (SUM($AM30:$AM41)*$C$11+SUM($AN30:$AN41))*\nGuardLimitUpper(\n  (SUM($CB30:$CB41)+SUM($CD30:$CD41))/((SUM($CA30:$CA41)+SUM($CC30:$CC41))*$C$17),\n  data_GuardLimitFlag,\n  1)\n/10^9/$NC$42 ))","v":""},{"$f":"IF(COUNT(QS30:QS41)=0,\"\",AVERAGE(QS30:QS41))","v":""},{"$f":"IF(COUNT(QT30:QT41)=0,\"\",AVERAGE(QT30:QT41))","v":""},{"$f":"IF(COUNT(QU30:QU41)=0,\"\",AVERAGE(QU30:QU41))","v":""},{"$f":"IF(COUNT(QV30:QV41)=0,\"\",SUM(QV30:QV41))","v":""},{"$f":"IF(COUNT(QW30:QW41)=0,\"\",SUM(QW30:QW41))","v":""},{"$f":"IF(COUNT(QX30:QX41)=0,\"\",SUM(QX30:QX41))","v":""},{"$f":"IF(COUNT(QY30:QY41)=0,\"\",SUM(QY30:QY41))","v":""},{"$f":"IF(COUNT(QZ30:QZ41)=0,\"\",SUM(QZ30:QZ41))","v":""},{"$f":"IF(COUNT(RA30:RA41)=0,\"\",AVERAGE(RA30:RA41))","v":""},{"$f":"IF(COUNT(RB30:RB41)=0,\"\",AVERAGE(RB30:RB41))","v":""},{"$f":"IF(COUNT(RC30:RC41)=0,\"\",AVERAGE(RC30:RC41))","v":""},{"$f":"IF(COUNT(RD30:RD41)=0,\"\",AVERAGE(RD30:RD41))","v":""},"","","","","",null,null,null,null,null,null,null,null,{"$f":"IF(COUNT(RR30:RR41)=0,\"\",SUM(RR30:RR41))","v":""},{"$f":"IF(OR(COUNT($FK30:$FK41)=0,$NC$42=\"\"),\"\",IF($NC$42=0,0,AVERAGE($FK30:$FK41)*32/10^9/$NC$42))","v":""},{"$f":"IF(OR(COUNT($FL30:$FL41)=0,$NC$42=\"\"),\"\",IF($NC$42=0,0,AVERAGE($FL30:$FL41)*256/10^9/$NC$42))","v":""},null,null,null,null,null,null,null,null,null,null,null,null,null,null,null,null,null,null,null,null,null,null,null,null,null,null,null,null,null,null,null,null,null,null,null,null,null,null,null,null,null,null,null,null,null,null,null,null,null,null,null,null,null,null,null,null,null,null,null,"←空欄は消さないこと。",null,null,null,null,null,null,null,null,null,null,null,null,null,null,null,null,null,null,null,null,null,null,"←空欄は消さないこと。"]
[null,null,null,null,null,null,null,null,null,null,null,null,null,null,null,null,null,null,null,null,null,null,null,null,null,null,null,null,null,null,null,null,null,null,null,null,null,null,null,null,null,null,null,null,null,null,null,null,null,null,null,null,null,null,null,null,null,null,null,null,null,null,null,null,null,null,null,null,null,null,null,null,null,null,null,null,null,null,null,null,null,null,null,null,null,null,null,null,null,null,null,null,null,null,null,null,null,null,null,null,null,null,null,null,null,null,null,null,null,null,null,null,null,null,null,null,null,null,null,null,null,null,null,null,null,null,null,null,null,null,null,null,null,null,null,null,null,null,null,null,null,null,null,null,null,null,null,null,null,null,null,null,null,null,null,null,null,null,null,null,null,null,null,null,null,null,null,null,null,null,null,null,null,null,null,null,null,null,null,null,null,null,null,null,null,null,null,null,null,null,null,null,null,null,null,null,null,null,null,null,null,null,null,null,null,null,null,null,null,null,null,null,null,null,null,null,null,null,null,null,null,null,null,null,null,null,null,null,null,null,null,null,null,null,null,null,null,null,null,null,null,null,null,null,null,null,null,null,null,null,null,null,null,null,null,null,null,null,null,null,null,null,null,null,null,null,null,null,null,null,null,null,null,null,null,null,null,null,null,null,null,null,null,null,null,null,null,null,null,null,null,null,null,null,null,null,null,null,null,null,null,null,null,null,null,null,null,null,null,null,null,null,null,null,null,null,null,null,null,null,null,null,null,null,null,null,null,null,null,null,null,null,null,null,null,null,null,null,null,null,"L1 sector cache(L1_sec1_max)",null,null,null,null,null,null,null,null,null,null,null,null,null,null,null,null,null,null,null,null,null,null,null,null,null,null,null,null,null,null,null,null,null,null,null,null,null,null,null,null,null,null,null,null,null,null,null,null,null,null,null,null,null,null,null,null,null,null,null,null,null,null,null,null,null,null,null,null,null,null,null,null,null,null,null,null,null,null,null,null,null,null,null,null,null,null,{"$f":"IF(COUNT(PL42:PY42)=0,\"\",SUM(PL42:PY42))","v":""},null,null,null,null,null,null,null,null,null,null,null,null,null,{"$f":"IF(COUNT(PZ42:QB42)=0,\"\",SUM(PZ42:QB42))","v":""},null,null,{"$f":"IF(COUNT(QC42)=0,\"\",SUM(QC42))","v":""},{"$f":"IF(COUNT(QD42:QF42)=0,\"\",SUM(QD42:QF42))","v":""},null,null,{"$f":"IF(COUNT(QG42:QH42)=0,\"\",SUM(QG42:QH42))","v":""},null,{"$f":"IF(COUNT(QI42)=0,\"\",SUM(QI42))","v":""},{"$f":"IF(COUNT(QJ42)=0,\"\",SUM(QJ42))","v":""},{"$f":"IF(COUNT(QK42)=0,\"\",SUM(QK42))","v":""},{"$f":"IF(COUNT(QL42)=0,\"\",SUM(QL42))","v":""},{"$f":"IF(COUNT(QM42)=0,\"\",SUM(QM42))","v":""},{"$f":"IF(COUNT(PL43:QM43)=0,\"\",SUM(PL43:QM43))","v":""},null,null,null,null,{"$f":"IF(COUNT(QS42:QT42)=0,\"\",SUM(QS42:QT42))","v":""},null,null,{"$f":"IF(COUNT(QV42)=0,\"\",SUM(QV42))","v":""},{"$f":"IF(COUNT(QW42:$QX42)=0,\"\",SUM(QW42:$QX42))","v":""},null,{"$f":"IF(COUNT(QY42)=0,\"\",SUM(QY42))","v":""},{"$f":"IF(COUNT(QZ42)=0,\"\",SUM(QZ42))","v":""},{"$f":"IF(COUNT(RA42)=0,\"\",SUM(RA42))","v":""},{"$f":"IF(COUNT(RB42)=0,\"\",SUM(RB42))","v":""},null,null,null,null,null,null,null,null,null,null,null,null,null,null,null,null,null,null,null,null,null,null,null,null,null,null,null,null,null,null,null,null,null,null,null,null,null,null,null,null,null,null,null,null,null,null,null,null,null,null,null,null,null,null,null,null,null,null,null,null,null,null,null,null,null,null,{"$f":"IF($NA30=\"\",\"\",\"Process\" & CHAR(10) & $NA30)","v":""},{"$f":"IF($NB30=\"\",\"\",\"Thread \" & $NB30)","v":""},{"$f":"NO30","v":""},{"$f":"NU30","v":""},{"$f":"NX30","v":""},{"$f":"NZ30","v":""},{"$f":"OA30","v":""},{"$f":"OB30","v":""},{"$f":"OC30","v":""},{"$f":"OD30","v":""},{"$f":"OH30","v":""},"　　ヒゲグラフを左寄せするための空白",{"$f":"IF($NA30=\"\",\"\",\"Process\" & CHAR(10) & $NA30)","v":""},{"$f":"IF($NB30=\"\",\"\",\"Thread \" & $NB30)","v":""},{"$f":"NO30","v":""},{"$f":"NP30","v":""},{"$f":"NQ30","v":""},{"$f":"NR30","v":""},{"$f":"NS30","v":""},{"$f":"NT30","v":""},{"$f":"NU30","v":""},{"$f":"NV30","v":""},{"$f":"NW30","v":""},{"$f":"NX30","v":""},{"$f":"NY30","v":""},{"$f":"NZ30","v":""},{"$f":"OA30","v":""},{"$f":"OB30","v":""},{"$f":"OC30","v":""},{"$f":"OD30","v":""},{"$f":"OE30","v":""},{"$f":"OF30","v":""},{"$f":"OG30","v":""},{"$f":"OH30","v":""},"　　ヒゲグラフを左寄せするための空白"]
[null,null,null,null,null,null,null,null,null,null,null,null,null,null,null,null,null,null,null,null,null,null,null,null,null,null,null,null,null,null,null,null,null,null,null,null,null,null,null,null,null,null,null,null,null,null,null,null,null,null,null,null,null,null,null,null,null,null,null,null,null,null,null,null,null,null,null,null,null,null,null,null,null,null,null,null,null,null,null,null,null,null,null,null,null,null,null,null,null,null,null,null,null,null,null,null,null,null,null,null,null,null,null,null,null,null,null,null,null,null,null,null,null,null,null,null,null,null,null,null,null,null,null,null,null,null,null,null,null,null,null,null,null,null,null,null,null,null,null,null,null,null,null,null,null,null,null,null,null,null,null,null,null,null,null,null,null,null,null,null,null,null,null,null,null,null,null,null,null,null,null,null,null,null,null,null,null,null,null,null,null,null,null,null,null,null,null,null,null,null,null,null,null,null,null,null,null,null,null,null,null,null,null,null,null,null,null,null,null,null,null,null,null,null,null,null,null,null,null,null,null,null,null,null,null,null,null,null,null,null,null,null,null,null,null,null,null,null,null,null,null,null,null,null,null,null,null,null,null,null,null,null,null,null,null,null,null,null,null,null,null,null,null,null,null,null,null,null,null,null,null,null,null,null,null,null,null,null,null,null,null,null,null,null,null,null,null,null,null,null,null,null,null,null,null,null,null,null,null,null,null,null,null,null,null,null,null,null,null,null,null,null,null,null,null,null,null,null,null,null,null,null,null,null,null,null,null,null,null,null,null,null,null,null,null,null,null,null,null,null,"L2 sector cache(L2_sec0_max)",null,null,null,null,null,null,null,null,null,null,null,null,null,null,null,null,null,null,null,null,null,null,null,null,null,null,null,null,null,null,null,null,null,null,null,null,null,null,null,null,null,null,null,null,null,null,null,null,null,null,null,null,null,null,null,null,null,null,null,null,null,null,null,null,null,null,null,null,null,null,null,null,null,null,null,null,null,null,null,null,null,null,null,null,null,null,null,null,null,null,null,null,null,null,null,null,null,null,null,null,null,null,null,null,null,null,null,null,null,null,null,null,null,null,null,null,null,null,null,null,null,null,null,null,null,null,null,null,null,null,null,null,null,null,null,null,"CMG Other memory","read","write",null,null,null,null,null,null,null,null,null,null,null,null,null,null,null,null,null,null,null,null,null,null,null,null,null,null,null,null,null,null,null,null,null,null,null,null,null,null,null,null,null,null,null,null,null,null,null,null,null,null,null,null,null,null,null,null,{"$f":"IF($NA31=\"\",\"\",IF($NA31=$NA30,\"\",\"Process\" & CHAR(10) & $NA31))","v":""},"","","","","","",{"$f":"OB31","v":""},"","","",null,{"$f":"IF($NA31=\"\",\"\",IF($NA31=$NA30,\"\",\"Process\" & CHAR(10) & $NA31))","v":""},"","","","","","","","","","","","","","","","","","","","",""]
[null,null,null,null,null,null,null,null,null,null,null,null,null,null,null,null,null,null,null,null,null,null,null,null,null,null,null,null,null,null,null,null,null,null,null,null,null,null,null,null,null,null,null,null,null,null,null,null,null,null,null,null,null,null,null,null,null,null,null,null,null,null,null,null,null,null,null,null,null,null,null,null,null,null,null,null,null,null,null,null,null,null,null,null,null,null,null,null,null,null,null,null,null,null,null,null,null,null,null,null,null,null,null,null,null,null,null,null,null,null,null,null,null,null,null,null,null,null,null,null,null,null,null,null,null,null,null,null,null,null,null,null,null,null,null,null,null,null,null,null,null,null,null,null,null,null,null,null,null,null,null,null,null,null,null,null,null,null,null,null,null,null,null,null,null,null,null,null,null,null,null,null,null,null,null,null,null,null,null,null,null,null,null,null,null,null,null,null,null,null,null,null,null,null,null,null,null,null,null,null,null,null,null,null,null,null,null,null,null,null,null,null,null,null,null,null,null,null,null,null,null,null,null,null,null,null,null,null,null,null,null,null,null,null,null,null,null,null,null,null,null,null,null,null,null,null,null,null,null,null,null,null,null,null,null,null,null,null,null,null,null,null,null,null,null,null,null,null,null,null,null,null,null,null,null,null,null,null,null,null,null,null,null,null,null,null,null,null,null,null,null,null,null,null,null,null,null,null,null,null,null,null,null,null,null,null,null,null,null,null,null,null,null,null,null,null,null,null,null,null,null,null,null,null,null,null,null,null,null,null,null,null,null,null,null,null,null,null,null,null,"L2 sector cache(L2_sec1_max)",null,null,null,null,null,null,null,null,null,null,null,null,null,null,null,null,null,null,null,null,null,null,null,null,null,null,null,null,null,null,null,null,null,null,null,null,null,null,null,null,null,null,null,null,null,null,null,null,null,null,null,null,null,null,null,null,null,null,null,null,null,null,null,null,null,null,null,null,null,null,null,null,null,null,null,null,null,null,null,null,null,null,null,null,null,null,null,null,null,null,null,null,null,null,null,null,null,null,null,null,null,null,null,null,null,null,null,null,null,null,null,null,null,null,null,null,null,null,null,null,null,null,null,null,null,null,null,null,null,null,null,null,null,null,null,null,0,{"$f":"IF(OR(COUNT($KW30:$KW41)=0,COUNT($KX30:$KX41)=0,COUNT($KY30:$KY41)=0,COUNT($LU30:$LU41)=0,COUNT($LV30:$LV41)=0,$C$8=\"\",$NC$42=\"\"),\"\",IF($NC$42=0,0,\n  GuardLimitLower(\n    (($KW30 - $KX30 - $KY30)\n     - $LU30 + $LV30)*$C$8/10^9/$NC$42,\n    data_GuardLimitFlag,\n    0) ))","v":""},{"$f":"IF(OR(COUNT($LA30:$LA41)=0,COUNT($LB30:$LB41)=0,COUNT($LC30:$LC41)=0,COUNT($LD30:$LD41)=0,$C$8=\"\",$NC$42=\"\"),\"\",IF($NC$42=0,0,\nIF($G$11=0,($LB30+$LC30+$LD30)*$C$8/10^9/$NC$42,\nIF($G$11=1,($LA30+$LC30+$LD30)*$C$8/10^9/$NC$42,\nIF($G$11=2,($LA30+$LB30+$LD30)*$C$8/10^9/$NC$42,\nIF($G$11=3,($LA30+$LB30+$LC30)*$C$8/10^9/$NC$42))))))","v":""},null,null,null,null,null,null,null,null,null,null,null,null,null,null,null,null,null,null,null,null,null,null,null,null,null,null,null,null,null,null,null,null,null,null,null,null,null,null,null,null,null,null,null,null,null,null,null,null,null,null,null,"SIMD instruction ratio\n(/Effective instruction)","Memory throughput peak ratio","Floating-point  operation peak ratio",null,null,"","","","","","","","","","","",null,"","","","","","","","","","","","","","","","","","","","","",""]
[null,null,null,null,null,null,null,null,null,null,null,null,null,null,null,null,null,null,null,null,null,null,null,null,null,null,null,null,null,null,null,null,null,null,null,null,null,null,null,null,null,null,null,null,null,null,null,null,null,null,null,null,null,null,null,null,null,null,null,null,null,null,null,null,null,null,null,null,null,null,null,null,null,null,null,null,null,null,null,null,null,null,null,null,null,null,null,null,null,null,null,null,null,null,null,null,null,null,null,null,null,null,null,null,null,null,null,null,null,null,null,null,null,null,null,null,null,null,null,null,null,null,null,null,null,null,null,null,null,null,null,null,null,null,null,null,null,null,null,null,null,null,null,null,null,null,null,null,null,null,null,null,null,null,null,null,null,null,null,null,null,null,null,null,null,null,null,null,null,null,null,null,null,null,null,null,null,null,null,null,null,null,null,null,null,null,null,null,null,null,null,null,null,null,null,null,null,null,null,null,null,null,null,null,null,null,null,null,null,null,null,null,null,null,null,null,null,null,null,null,null,null,null,null,null,null,null,null,null,null,null,null,null,null,null,null,null,null,null,null,null,null,null,null,null,null,null,null,null,null,null,null,null,null,null,null,null,null,null,null,null,null,null,null,null,null,null,null,null,null,null,null,null,null,null,null,null,null,null,null,null,null,null,null,null,null,null,null,null,null,null,null,null,null,null,null,null,null,null,null,null,null,null,null,null,null,null,null,null,null,null,null,null,null,null,null,null,null,null,null,null,null,null,null,null,null,null,null,null,null,null,null,null,null,null,null,null,null,null,null,null,null,null,null,null,null,null,null,null,null,null,null,null,null,null,null,null,null,null,null,null,null,null,null,null,null,null,null,null,null,null,null,null,null,null,null,null,null,null,null,null,null,null,null,null,null,null,null,null,null,null,null,null,null,null,null,null,null,null,null,null,null,null,null,null,null,null,null,null,null,null,null,null,null,null,null,null,null,null,null,null,null,null,null,null,null,null,null,null,null,null,null,null,null,null,null,null,null,null,null,null,null,null,null,null,null,null,null,null,null,null,null,null,null,null,null,null,null,null,null,null,null,null,null,null,null,null,null,null,null,null,null,null,null,null,null,null,1,{"$f":"IF(OR(COUNT($KW31:$KW42)=0,COUNT($KX31:$KX42)=0,COUNT($KY31:$KY42)=0,COUNT($LU31:$LU42)=0,COUNT($LV31:$LV42)=0,$C$8=\"\",$NC$42=\"\"),\"\",IF($NC$42=0,0,\n  GuardLimitLower(\n    (($KW31 - $KX31 - $KY31)\n     - $LU31 + $LV31)*$C$8/10^9/$NC$42,\n    data_GuardLimitFlag,\n    0) ))","v":""},{"$f":"IF(OR(COUNT($LA31:$LA42)=0,COUNT($LB31:$LB42)=0,COUNT($LC31:$LC42)=0,COUNT($LD31:$LD42)=0,$C$8=\"\",$NC$42=\"\"),\"\",IF($NC$42=0,0,\nIF($G$11=0,($LB31+$LC31+$LD31)*$C$8/10^9/$NC$42,\nIF($G$11=1,($LA31+$LC31+$LD31)*$C$8/10^9/$NC$42,\nIF($G$11=2,($LA31+$LB31+$LD31)*$C$8/10^9/$NC$42,\nIF($G$11=3,($LA31+$LB31+$LC31)*$C$8/10^9/$NC$42))))))","v":""},null,null,null,null,null,null,null,null,null,null,null,null,null,null,null,null,null,null,null,null,null,null,null,null,null,null,null,null,null,null,null,null,null,null,null,null,null,null,null,null,null,null,null,null,null,null,null,null,null,null,null,"(0, 204, 255)","(255, 0, 0)","(0, 112, 192)",null,null,"","","","","","","","","","","",null,"","","","","","","","","","","","","","","","","","","","","",""]
[null,null,null,null,null,null,null,null,null,null,null,null,null,null,null,null,null,null,null,null,null,null,null,null,null,null,null,null,null,null,null,null,null,null,null,null,null,null,null,null,null,null,null,null,null,null,null,null,null,null,null,null,null,null,null,null,null,null,null,null,null,null,null,null,null,null,null,null,null,null,null,null,null,null,null,null,null,null,null,null,null,null,null,null,null,null,null,null,null,null,null,null,null,null,null,null,null,null,null,null,null,null,null,null,null,null,null,null,null,null,null,null,null,null,null,null,null,null,null,null,null,null,null,null,null,null,null,null,null,null,null,null,null,null,null,null,null,null,null,null,null,null,null,null,null,null,null,null,null,null,null,null,null,null,null,null,null,null,null,null,null,null,null,null,null,null,null,null,null,null,null,null,null,null,null,null,null,null,null,null,null,null,null,null,null,null,null,null,null,null,null,null,null,null,null,null,null,null,null,null,null,null,null,null,null,null,null,null,null,null,null,null,null,null,null,null,null,null,null,null,null,null,null,null,null,null,null,null,null,null,null,null,null,null,null,null,null,null,null,null,null,null,null,null,null,null,null,null,null,null,null,null,null,null,null,null,null,null,null,null,null,null,null,null,null,null,null,null,null,null,null,null,null,null,null,null,null,null,null,null,null,null,null,null,null,null,null,null,null,null,null,null,null,null,null,null,null,null,null,null,null,null,null,null,null,null,null,null,null,null,null,null,null,null,null,null,null,null,null,null,null,null,null,null,null,null,null,null,null,null,null,null,null,null,null,null,null,null,null,null,null,null,null,null,null,null,null,null,null,null,null,null,null,null,null,null,null,null,null,null,null,null,null,null,null,null,null,null,null,null,null,null,null,null,null,null,null,null,null,null,null,null,null,null,null,null,null,null,null,null,null,null,null,null,null,null,null,null,null,null,null,null,null,null,null,null,null,null,null,null,null,null,null,null,null,null,null,null,null,null,null,null,null,null,null,null,null,null,null,null,null,null,null,null,null,null,null,null,null,null,null,null,null,null,null,null,null,null,null,null,null,null,null,null,null,null,null,null,null,null,null,null,null,null,null,null,null,null,null,null,null,null,null,null,null,null,null,2,{"$f":"IF(OR(COUNT($KW32:$KW43)=0,COUNT($KX32:$KX43)=0,COUNT($KY32:$KY43)=0,COUNT($LU32:$LU43)=0,COUNT($LV32:$LV43)=0,$C$8=\"\",$NC$42=\"\"),\"\",IF($NC$42=0,0,\n  GuardLimitLower(\n    (($KW32 - $KX32 - $KY32)\n     - $LU32 + $LV32)*$C$8/10^9/$NC$42,\n    data_GuardLimitFlag,\n    0) ))","v":""},"",null,null,null,null,null,null,null,null,null,null,null,null,null,null,null,null,null,null,null,null,null,null,null,null,null,null,null,null,null,null,null,null,null,null,null,null,null,null,null,null,null,null,null,null,null,null,null,null,null,null,null,"G_A01","G_A02","G_A03",null,null,"","","","","","","","","","","",null,"","","","","","","","","","","","","","","","","","","","","",""]
[null,null,null,null,null,null,null,null,null,null,null,null,null,null,null,null,null,null,null,null,null,null,null,null,null,null,null,null,null,null,null,null,null,null,null,null,null,null,null,null,null,null,null,null,null,null,null,null,null,null,null,null,null,null,null,null,null,null,null,null,null,null,null,null,null,null,null,null,null,null,null,null,null,null,null,null,null,null,null,null,null,null,null,null,null,null,null,null,null,null,null,null,null,null,null,null,null,null,null,null,null,null,null,null,null,null,null,null,null,null,null,null,null,null,null,null,null,null,null,null,null,null,null,null,null,null,null,null,null,null,null,null,null,null,null,null,null,null,null,null,null,null,null,null,null,null,null,null,null,null,null,null,null,null,null,null,null,null,null,null,null,null,null,null,null,null,null,null,null,null,null,null,null,null,null,null,null,null,null,null,null,null,null,null,null,null,null,null,null,null,null,null,null,null,null,null,null,null,null,null,null,null,null,null,null,null,null,null,null,null,null,null,null,null,null,null,null,null,null,null,null,null,null,null,null,null,null,null,null,null,null,null,null,null,null,null,null,null,null,null,null,null,null,null,null,null,null,null,null,null,null,null,null,null,null,null,null,null,null,null,null,null,null,null,null,null,null,null,null,null,null,null,null,null,null,null,null,null,null,null,null,null,null,null,null,null,null,null,null,null,null,null,null,null,null,null,null,null,null,null,null,null,null,null,null,null,null,null,null,null,null,null,null,null,null,null,null,null,null,null,null,null,null,null,null,null,null,null,null,null,null,null,null,null,null,null,null,null,null,null,null,null,null,null,null,null,null,null,null,null,null,null,null,null,null,null,null,null,null,null,null,null,null,null,null,null,null,null,null,null,null,null,null,null,null,null,null,null,null,null,null,null,null,null,null,null,null,null,null,null,null,null,null,null,null,null,null,null,null,null,null,null,null,null,null,null,null,null,null,null,null,null,null,null,null,null,null,null,null,null,null,null,null,null,null,null,null,null,null,null,null,null,null,null,null,null,null,null,null,null,null,null,null,null,null,null,null,null,null,null,null,null,null,null,null,null,null,null,null,null,null,null,null,null,null,null,null,null,null,null,null,null,null,null,null,null,null,3,{"$f":"IF(OR(COUNT($KW33:$KW44)=0,COUNT($KX33:$KX44)=0,COUNT($KY33:$KY44)=0,COUNT($LU33:$LU44)=0,COUNT($LV33:$LV44)=0,$C$8=\"\",$NC$42=\"\"),\"\",IF($NC$42=0,0,\n  GuardLimitLower(\n    (($KW33 - $KX33 - $KY33)\n     - $LU33 + $LV33)*$C$8/10^9/$NC$42,\n    data_GuardLimitFlag,\n    0) ))","v":""},"",null,null,null,null,null,null,null,null,null,null,null,null,null,null,null,null,null,null,null,null,null,null,null,null,null,null,null,null,null,null,null,null,null,null,null,null,null,null,null,null,null,null,null,null,null,null,null,null,null,null,"CMG",{"$f":"IF(NJ59=\"\",0,NJ59)","v":0},{"$f":"IF(NG59=\"\",0,NG59)","v":0},{"$f":"IF(NE59=\"\",0,NE59)","v":0},null,null,"","","","","","","","","","","",null,"","","","","","","","","","","","","","","","","","","","","",""]
[null,null,null,null,null,null,null,null,null,null,null,null,null,null,null,null,null,null,null,null,null,null,null,null,null,null,null,null,null,null,null,null,null,null,null,null,null,null,null,null,null,null,null,null,null,null,null,null,null,null,null,null,null,null,null,null,null,null,null,null,null,null,null,null,null,null,null,null,null,null,null,null,null,null,null,null,null,null,null,null,null,null,null,null,null,null,null,null,null,null,null,null,null,null,null,null,null,null,null,null,null,null,null,null,null,null,null,null,null,null,null,null,null,null,null,null,null,null,null,null,null,null,null,null,null,null,null,null,null,null,null,null,null,null,null,null,null,null,null,null,null,null,null,null,null,null,null,null,null,null,null,null,null,null,null,null,null,null,null,null,null,null,null,null,null,null,null,null,null,null,null,null,null,null,null,null,null,null,null,null,null,null,null,null,null,null,null,null,null,null,null,null,null,null,null,null,null,null,null,null,null,null,null,null,null,null,null,null,null,null,null,null,null,null,null,null,null,null,null,null,null,null,null,null,null,null,null,null,null,null,null,null,null,null,null,null,null,null,null,null,null,null,null,null,null,null,null,null,null,null,null,null,null,null,null,null,null,null,null,null,null,null,null,null,null,null,null,null,null,null,null,null,null,null,null,null,null,null,null,null,null,null,null,null,null,null,null,null,null,null,null,null,null,null,null,null,null,null,null,null,null,null,null,null,null,null,null,null,null,null,null,null,null,null,null,null,null,null,null,null,null,null,null,null,null,null,null,null,null,null,null,null,null,null,null,null,null,null,null,null,null,null,null,null,null,null,null,null,null,null,null,null,null,null,null,null,null,null,null,null,null,null,null,null,null,null,null,null,null,null,null,null,null,null,null,null,null,null,null,null,null,null,null,null,null,null,null,null,null,null,null,null,null,null,null,null,null,null,null,null,null,null,null,null,null,null,null,null,null,null,null,null,null,null,null,null,null,null,null,null,null,null,null,null,null,null,null,null,null,null,null,null,null,null,null,null,null,null,null,null,null,null,null,null,null,null,null,null,null,null,null,null,null,null,null,null,null,null,null,null,null,null,null,null,null,null,null,null,null,null,null,null,null,null,null,null,null,4,{"$f":"IF(OR(COUNT($KW34:$KW45)=0,COUNT($KX34:$KX45)=0,COUNT($KY34:$KY45)=0,COUNT($LU34:$LU45)=0,COUNT($LV34:$LV45)=0,$C$8=\"\",$NC$42=\"\"),\"\",IF($NC$42=0,0,\n  GuardLimitLower(\n    (($KW34 - $KX34 - $KY34)\n     - $LU34 + $LV34)*$C$8/10^9/$NC$42,\n    data_GuardLimitFlag,\n    0) ))","v":""},"",null,null,null,null,null,null,null,null,null,null,null,null,null,null,null,null,null,null,null,null,null,null,null,null,null,null,null,null,null,null,null,null,null,null,null,null,null,null,null,null,null,null,null,null,null,null,null,null,null,null,null,null,null,null,null,null,"","","","","","","","","","","",null,"","","","","","","","","","","","","","","","","","","","","",""]
[null,null,null,null,null,null,null,null,null,null,null,null,null,null,null,null,null,null,null,null,null,null,null,null,null,null,null,null,null,null,null,null,null,null,null,null,null,null,null,null,null,null,null,null,null,null,null,null,null,null,null,null,null,null,null,null,null,null,null,null,null,null,null,null,null,null,null,null,null,null,null,null,null,null,null,null,null,null,null,null,null,null,null,null,null,null,null,null,null,null,null,null,null,null,null,null,null,null,null,null,null,null,null,null,null,null,null,null,null,null,null,null,null,null,null,null,null,null,null,null,null,null,null,null,null,null,null,null,null,null,null,null,null,null,null,null,null,null,null,null,null,null,null,null,null,null,null,null,null,null,null,null,null,null,null,null,null,null,null,null,null,null,null,null,null,null,null,null,null,null,null,null,null,null,null,null,null,null,null,null,null,null,null,null,null,null,null,null,null,null,null,null,null,null,null,null,null,null,null,null,null,null,null,null,null,null,null,null,null,null,null,null,null,null,null,null,null,null,null,null,null,null,null,null,null,null,null,null,null,null,null,null,null,null,null,null,null,null,null,null,null,null,null,null,null,null,null,null,null,null,null,null,null,null,null,null,null,null,null,null,null,null,null,null,null,null,null,null,null,null,null,null,null,null,null,null,null,null,null,null,null,null,null,null,null,null,null,null,null,null,null,null,null,null,null,null,null,null,null,null,null,null,null,null,null,null,null,null,null,null,null,null,null,null,null,null,null,null,null,null,null,null,null,null,null,null,null,null,null,null,null,null,null,null,null,null,null,null,null,null,null,null,null,null,null,null,null,null,null,null,null,null,null,null,null,null,null,null,null,null,null,null,null,null,null,null,null,null,null,null,null,null,null,null,null,null,null,null,null,null,null,null,null,null,null,null,null,null,null,null,null,null,null,null,null,null,null,null,null,null,null,null,null,null,null,null,null,null,null,null,null,null,null,null,null,null,null,null,null,null,null,null,null,null,null,null,null,null,null,null,null,null,null,null,null,null,null,null,null,null,null,null,null,null,null,null,null,null,null,null,null,null,null,null,null,null,null,null,null,null,null,null,null,null,null,null,null,null,null,null,null,null,null,null,null,null,null,5,{"$f":"IF(OR(COUNT($KW35:$KW46)=0,COUNT($KX35:$KX46)=0,COUNT($KY35:$KY46)=0,COUNT($LU35:$LU46)=0,COUNT($LV35:$LV46)=0,$C$8=\"\",$NC$42=\"\"),\"\",IF($NC$42=0,0,\n  GuardLimitLower(\n    (($KW35 - $KX35 - $KY35)\n     - $LU35 + $LV35)*$C$8/10^9/$NC$42,\n    data_GuardLimitFlag,\n    0) ))","v":""},"",null,null,null,null,null,null,null,null,null,null,null,null,null,null,null,null,null,null,null,null,null,null,null,null,null,null,null,null,null,null,null,null,null,null,null,null,null,null,null,null,null,null,null,null,null,null,null,null,null,null,null,null,null,null,null,null,"","","","","","","","","","","",null,"","","","","","","","","","","","","","","","","","","","","",""]
[null,null,null,null,null,null,null,null,null,null,null,null,null,null,null,null,null,null,null,null,null,null,null,null,null,null,null,null,null,null,null,null,null,null,null,null,null,null,null,null,null,null,null,null,null,null,null,null,null,null,null,null,null,null,null,null,null,null,null,null,null,null,null,null,null,null,null,null,null,null,null,null,null,null,null,null,null,null,null,null,null,null,null,null,null,null,null,null,null,null,null,null,null,null,null,null,null,null,null,null,null,null,null,null,null,null,null,null,null,null,null,null,null,null,null,null,null,null,null,null,null,null,null,null,null,null,null,null,null,null,null,null,null,null,null,null,null,null,null,null,null,null,null,null,null,null,null,null,null,null,null,null,null,null,null,null,null,null,null,null,null,null,null,null,null,null,null,null,null,null,null,null,null,null,null,null,null,null,null,null,null,null,null,null,null,null,null,null,null,null,null,null,null,null,null,null,null,null,null,null,null,null,null,null,null,null,null,null,null,null,null,null,null,null,null,null,null,null,null,null,null,null,null,null,null,null,null,null,null,null,null,null,null,null,null,null,null,null,null,null,null,null,null,null,null,null,null,null,null,null,null,null,null,null,null,null,null,null,null,null,null,null,null,null,null,null,null,null,null,null,null,null,null,null,null,null,null,null,null,null,null,null,null,null,null,null,null,null,null,null,null,null,null,null,null,null,null,null,null,null,null,null,null,null,null,null,null,null,null,null,null,null,null,null,null,null,null,null,null,null,null,null,null,null,null,null,null,null,null,null,null,null,null,null,null,null,null,null,null,null,null,null,null,null,null,null,null,null,null,null,null,null,null,null,null,null,null,null,null,null,null,null,null,null,null,null,null,null,null,null,null,null,null,null,null,null,null,null,null,null,null,null,null,null,null,null,null,null,null,null,null,null,null,null,null,null,null,null,null,null,null,null,null,null,null,null,null,null,null,null,null,null,null,null,null,null,null,null,null,null,null,null,null,null,null,null,null,null,null,null,null,null,null,null,null,null,null,null,null,null,null,null,null,null,null,null,null,null,null,null,null,null,null,null,null,null,null,null,null,null,null,null,null,null,null,null,null,null,null,null,null,null,null,null,null,null,null,6,{"$f":"IF(OR(COUNT($KW36:$KW47)=0,COUNT($KX36:$KX47)=0,COUNT($KY36:$KY47)=0,COUNT($LU36:$LU47)=0,COUNT($LV36:$LV47)=0,$C$8=\"\",$NC$42=\"\"),\"\",IF($NC$42=0,0,\n  GuardLimitLower(\n    (($KW36 - $KX36 - $KY36)\n     - $LU36 + $LV36)*$C$8/10^9/$NC$42,\n    data_GuardLimitFlag,\n    0) ))","v":""},"",null,null,null,null,null,null,null,null,null,null,null,null,null,null,null,null,null,null,null,null,null,null,null,null,null,null,null,null,null,null,null,null,null,null,null,null,null,null,null,null,null,null,null,null,null,null,null,null,null,null,null,null,null,null,null,null,"","","","","","","","","","","",null,"","","","","","","","","","","","","","","","","","","","","",""]
[null,null,null,null,null,null,null,null,null,null,null,null,null,null,null,null,null,null,null,null,null,null,null,null,null,null,null,null,null,null,null,null,null,null,null,null,null,null,null,null,null,null,null,null,null,null,null,null,null,null,null,null,null,null,null,null,null,null,null,null,null,null,null,null,null,null,null,null,null,null,null,null,null,null,null,null,null,null,null,null,null,null,null,null,null,null,null,null,null,null,null,null,null,null,null,null,null,null,null,null,null,null,null,null,null,null,null,null,null,null,null,null,null,null,null,null,null,null,null,null,null,null,null,null,null,null,null,null,null,null,null,null,null,null,null,null,null,null,null,null,null,null,null,null,null,null,null,null,null,null,null,null,null,null,null,null,null,null,null,null,null,null,null,null,null,null,null,null,null,null,null,null,null,null,null,null,null,null,null,null,null,null,null,null,null,null,null,null,null,null,null,null,null,null,null,null,null,null,null,null,null,null,null,null,null,null,null,null,null,null,null,null,null,null,null,null,null,null,null,null,null,null,null,null,null,null,null,null,null,null,null,null,null,null,null,null,null,null,null,null,null,null,null,null,null,null,null,null,null,null,null,null,null,null,null,null,null,null,null,null,null,null,null,null,null,null,null,null,null,null,null,null,null,null,null,null,null,null,null,null,null,null,null,null,null,null,null,null,null,null,null,null,null,null,null,null,null,null,null,null,null,null,null,null,null,null,null,null,null,null,null,null,null,null,null,null,null,null,null,null,null,null,null,null,null,null,null,null,null,null,null,null,null,null,null,null,null,null,null,null,null,null,null,null,null,null,null,null,null,null,null,null,null,null,null,null,null,null,null,null,null,null,null,null,null,null,null,null,null,null,null,null,null,null,null,null,null,null,null,null,null,null,null,null,null,null,null,null,null,null,null,null,null,null,null,null,null,null,null,null,null,null,null,null,null,null,null,null,null,null,null,null,null,null,null,null,null,null,null,null,null,null,null,null,null,null,null,null,null,null,null,null,null,null,null,null,null,null,null,null,null,null,null,null,null,null,null,null,null,null,null,null,null,null,null,null,null,null,null,null,null,null,null,null,null,null,null,null,null,null,null,null,null,null,null,null,null,7,{"$f":"IF(OR(COUNT($KW37:$KW48)=0,COUNT($KX37:$KX48)=0,COUNT($KY37:$KY48)=0,COUNT($LU37:$LU48)=0,COUNT($LV37:$LV48)=0,$C$8=\"\",$NC$42=\"\"),\"\",IF($NC$42=0,0,\n  GuardLimitLower(\n    (($KW37 - $KX37 - $KY37)\n     - $LU37 + $LV37)*$C$8/10^9/$NC$42,\n    data_GuardLimitFlag,\n    0) ))","v":""},"",null,null,null,null,null,null,null,null,null,null,null,null,null,null,null,null,null,null,null,null,null,null,null,null,null,null,null,null,null,null,null,null,null,null,null,null,null,null,null,null,null,null,null,null,null,null,null,null,null,null,null,null,null,null,null,null,"","","","","","","","","","","",null,"","","","","","","","","","","","","","","","","","","","","",""]
[null,null,null,null,null,null,null,null,null,null,null,null,null,null,null,null,null,null,null,null,null,null,null,null,null,null,null,null,null,null,null,null,null,null,null,null,null,null,null,null,null,null,null,null,null,null,null,null,null,null,null,null,null,null,null,null,null,null,null,null,null,null,null,null,null,null,null,null,null,null,null,null,null,null,null,null,null,null,null,null,null,null,null,null,null,null,null,null,null,null,null,null,null,null,null,null,null,null,null,null,null,null,null,null,null,null,null,null,null,null,null,null,null,null,null,null,null,null,null,null,null,null,null,null,null,null,null,null,null,null,null,null,null,null,null,null,null,null,null,null,null,null,null,null,null,null,null,null,null,null,null,null,null,null,null,null,null,null,null,null,null,null,null,null,null,null,null,null,null,null,null,null,null,null,null,null,null,null,null,null,null,null,null,null,null,null,null,null,null,null,null,null,null,null,null,null,null,null,null,null,null,null,null,null,null,null,null,null,null,null,null,null,null,null,null,null,null,null,null,null,null,null,null,null,null,null,null,null,null,null,null,null,null,null,null,null,null,null,null,null,null,null,null,null,null,null,null,null,null,null,null,null,null,null,null,null,null,null,null,null,null,null,null,null,null,null,null,null,null,null,null,null,null,null,null,null,null,null,null,null,null,null,null,null,null,null,null,null,null,null,null,null,null,null,null,null,null,null,null,null,null,null,null,null,null,null,null,null,null,null,null,null,null,null,null,null,null,null,null,null,null,null,null,null,null,null,null,null,null,null,null,null,null,null,null,null,null,null,null,null,null,null,null,null,null,null,null,null,null,null,null,null,null,null,null,null,null,null,null,null,null,null,null,null,null,null,null,null,null,null,null,null,null,null,null,null,null,null,null,null,null,null,null,null,null,null,null,null,null,null,null,null,null,null,null,null,null,null,null,null,null,null,null,null,null,null,null,null,null,null,null,null,null,null,null,null,null,null,null,null,null,null,null,null,null,null,null,null,null,null,null,null,null,null,null,null,null,null,null,null,null,null,null,null,null,null,null,null,null,null,null,null,null,null,null,null,null,null,null,null,null,null,null,null,null,null,null,null,null,null,null,null,null,null,null,null,null,8,{"$f":"IF(OR(COUNT($KW38:$KW49)=0,COUNT($KX38:$KX49)=0,COUNT($KY38:$KY49)=0,COUNT($LU38:$LU49)=0,COUNT($LV38:$LV49)=0,$C$8=\"\",$NC$42=\"\"),\"\",IF($NC$42=0,0,\n  GuardLimitLower(\n    (($KW38 - $KX38 - $KY38)\n     - $LU38 + $LV38)*$C$8/10^9/$NC$42,\n    data_GuardLimitFlag,\n    0) ))","v":""},"",null,null,null,null,null,null,null,null,null,null,null,null,null,null,null,null,null,null,null,null,null,null,null,null,null,null,null,null,null,null,null,null,null,null,null,null,null,null,null,null,null,null,null,null,null,null,null,null,null,null,null,null,null,null,null,null,"","","","","","","","","","","",null,"","","","","","","","","","","","","","","","","","","","","",""]
[null,null,null,null,null,null,null,null,null,null,null,null,null,null,null,null,null,null,null,null,null,null,null,null,null,null,null,null,null,null,null,null,null,null,null,null,null,null,null,null,null,null,null,null,null,null,null,null,null,null,null,null,null,null,null,null,null,null,null,null,null,null,null,null,null,null,null,null,null,null,null,null,null,null,null,null,null,null,null,null,null,null,null,null,null,null,null,null,null,null,null,null,null,null,null,null,null,null,null,null,null,null,null,null,null,null,null,null,null,null,null,null,null,null,null,null,null,null,null,null,null,null,null,null,null,null,null,null,null,null,null,null,null,null,null,null,null,null,null,null,null,null,null,null,null,null,null,null,null,null,null,null,null,null,null,null,null,null,null,null,null,null,null,null,null,null,null,null,null,null,null,null,null,null,null,null,null,null,null,null,null,null,null,null,null,null,null,null,null,null,null,null,null,null,null,null,null,null,null,null,null,null,null,null,null,null,null,null,null,null,null,null,null,null,null,null,null,null,null,null,null,null,null,null,null,null,null,null,null,null,null,null,null,null,null,null,null,null,null,null,null,null,null,null,null,null,null,null,null,null,null,null,null,null,null,null,null,null,null,null,null,null,null,null,null,null,null,null,null,null,null,null,null,null,null,null,null,null,null,null,null,null,null,null,null,null,null,null,null,null,null,null,null,null,null,null,null,null,null,null,null,null,null,null,null,null,null,null,null,null,null,null,null,null,null,null,null,null,null,null,null,null,null,null,null,null,null,null,null,null,null,null,null,null,null,null,null,null,null,null,null,null,null,null,null,null,null,null,null,null,null,null,null,null,null,null,null,null,null,null,null,null,null,null,null,null,null,null,null,null,null,null,null,null,null,null,null,null,null,null,null,null,null,null,null,null,null,null,null,null,null,null,null,null,null,null,null,null,null,null,null,null,null,null,null,null,null,null,null,null,null,null,null,null,null,null,null,null,null,null,null,null,null,null,null,null,null,null,null,null,null,null,null,null,null,null,null,null,null,null,null,null,null,null,null,null,null,null,null,null,null,null,null,null,null,null,null,null,null,null,null,null,null,null,null,null,null,null,null,null,null,null,null,null,null,null,null,9,{"$f":"IF(OR(COUNT($KW39:$KW50)=0,COUNT($KX39:$KX50)=0,COUNT($KY39:$KY50)=0,COUNT($LU39:$LU50)=0,COUNT($LV39:$LV50)=0,$C$8=\"\",$NC$42=\"\"),\"\",IF($NC$42=0,0,\n  GuardLimitLower(\n    (($KW39 - $KX39 - $KY39)\n     - $LU39 + $LV39)*$C$8/10^9/$NC$42,\n    data_GuardLimitFlag,\n    0) ))","v":""},"",null,null,null,null,null,null,null,null,null,null,null,null,null,null,null,null,null,null,null,null,null,null,null,null,null,null,null,null,null,null,null,null,null,null,null,null,null,null,null,null,null,null,null,null,null,null,null,null,null,null,null,null,null,null,null,null,"","","","","","","","","","","",null,"","","","","","","","","","","","","","","","","","","","","",""]
[null,null,null,null,null,null,null,null,null,null,null,null,null,null,null,null,null,null,null,null,null,null,null,null,null,null,null,null,null,null,null,null,null,null,null,null,null,null,null,null,null,null,null,null,null,null,null,null,null,null,null,null,null,null,null,null,null,null,null,null,null,null,null,null,null,null,null,null,null,null,null,null,null,null,null,null,null,null,null,null,null,null,null,null,null,null,null,null,null,null,null,null,null,null,null,null,null,null,null,null,null,null,null,null,null,null,null,null,null,null,null,null,null,null,null,null,null,null,null,null,null,null,null,null,null,null,null,null,null,null,null,null,null,null,null,null,null,null,null,null,null,null,null,null,null,null,null,null,null,null,null,null,null,null,null,null,null,null,null,null,null,null,null,null,null,null,null,null,null,null,null,null,null,null,null,null,null,null,null,null,null,null,null,null,null,null,null,null,null,null,null,null,null,null,null,null,null,null,null,null,null,null,null,null,null,null,null,null,null,null,null,null,null,null,null,null,null,null,null,null,null,null,null,null,null,null,null,null,null,null,null,null,null,null,null,null,null,null,null,null,null,null,null,null,null,null,null,null,null,null,null,null,null,null,null,null,null,null,null,null,null,null,null,null,null,null,null,null,null,null,null,null,null,null,null,null,null,null,null,null,null,null,null,null,null,null,null,null,null,null,null,null,null,null,null,null,null,null,null,null,null,null,null,null,null,null,null,null,null,null,null,null,null,null,null,null,null,null,null,null,null,null,null,null,null,null,null,null,null,null,null,null,null,null,null,null,null,null,null,null,null,null,null,null,null,null,null,null,null,null,null,null,null,null,null,null,null,null,null,null,null,null,null,null,null,null,null,null,null,null,null,null,null,null,null,null,null,null,null,null,null,null,null,null,null,null,null,null,null,null,null,null,null,null,null,null,null,null,null,null,null,null,null,null,null,null,null,null,null,null,null,null,null,null,null,null,null,null,null,null,null,null,null,null,null,null,null,null,null,null,null,null,null,null,null,null,null,null,null,null,null,null,null,null,null,null,null,null,null,null,null,null,null,null,null,null,null,null,null,null,null,null,null,null,null,null,null,null,null,null,null,null,null,null,null,null,null,10,{"$f":"IF(OR(COUNT($KW40:$KW51)=0,COUNT($KX40:$KX51)=0,COUNT($KY40:$KY51)=0,COUNT($LU40:$LU51)=0,COUNT($LV40:$LV51)=0,$C$8=\"\",$NC$42=\"\"),\"\",IF($NC$42=0,0,\n  GuardLimitLower(\n    (($KW40 - $KX40 - $KY40)\n     - $LU40 + $LV40)*$C$8/10^9/$NC$42,\n    data_GuardLimitFlag,\n    0) ))","v":""},""]
[null,null,null,null,null,null,null,null,null,null,null,null,null,null,null,null,null,null,null,null,null,null,null,null,null,null,null,null,null,null,null,null,null,null,null,null,null,null,null,null,null,null,null,null,null,null,null,null,null,null,null,null,null,null,null,null,null,null,null,null,null,null,null,null,null,null,null,null,null,null,null,null,null,null,null,null,null,null,null,null,null,null,null,null,null,null,null,null,null,null,null,null,null,null,null,null,null,null,null,null,null,null,null,null,null,null,null,null,null,null,null,null,null,null,null,null,null,null,null,null,null,null,null,null,null,null,null,null,null,null,null,null,null,null,null,null,null,null,null,null,null,null,null,null,null,null,null,null,null,null,null,null,null,null,null,null,null,null,null,null,null,null,null,null,null,null,null,null,null,null,null,null,null,null,null,null,null,null,null,null,null,null,null,null,null,null,null,null,null,null,null,null,null,null,null,null,null,null,null,null,null,null,null,null,null,null,null,null,null,null,null,null,null,null,null,null,null,null,null,null,null,null,null,null,null,null,null,null,null,null,null,null,null,null,null,null,null,null,null,null,null,null,null,null,null,null,null,null,null,null,null,null,null,null,null,null,null,null,null,null,null,null,null,null,null,null,null,null,null,null,null,null,null,null,null,null,null,null,null,null,null,null,null,null,null,null,null,null,null,null,null,null,null,null,null,null,null,null,null,null,null,null,null,null,null,null,null,null,null,null,null,null,null,null,null,null,null,null,null,null,null,null,null,null,null,null,null,null,null,null,null,null,null,null,null,null,null,null,null,null,null,null,null,null,null,null,null,null,null,null,null,null,null,null,null,null,null,null,null,null,null,null,null,null,null,null,null,null,null,null,null,null,null,null,null,null,null,null,null,null,null,null,null,null,null,null,null,null,null,null,null,null,null,null,null,null,null,null,null,null,null,null,null,null,null,null,null,null,null,null,null,null,null,null,null,null,null,null,null,null,null,null,null,null,null,null,null,null,null,null,null,null,null,null,null,null,null,null,null,null,null,null,null,null,null,null,null,null,null,null,null,null,null,null,null,null,null,null,null,null,null,null,null,null,null,null,null,null,null,null,null,null,null,null,null,null,null,11,{"$f":"IF(OR(COUNT($KW41:$KW52)=0,COUNT($KX41:$KX52)=0,COUNT($KY41:$KY52)=0,COUNT($LU41:$LU52)=0,COUNT($LV41:$LV52)=0,$C$8=\"\",$NC$42=\"\"),\"\",IF($NC$42=0,0,\n  GuardLimitLower(\n    (($KW41 - $KX41 - $KY41)\n     - $LU41 + $LV41)*$C$8/10^9/$NC$42,\n    data_GuardLimitFlag,\n    0) ))","v":""},"",null,null,null,null,null,null,null,null,null,null,null,null,null,null,null,null,null,null,null,null,null,null,null,null,null,null,null,null,null,null,null,null,null,null,null,null,null,null,null,null,null,null,null,null,null,null,null,null,null,null,null,null,null,null,null,null,"Graph. Cycle Accounting execution time (s)",null,null,null,null,null,null,null,null,null,null,null,"Graph. Cycle Accounting execution time (s)"]

{"sheet":"label","index":2,"n_rows":349,"n_cols":8,"rows_kept":349,"cut":false,"hidden":true,"merged":[]}
["Information"]
[null,"ID","Item name","説明(日本語)","参考(旧名称)","Formal name old"]
[null,null,"Information","情報","Information","Information"]
[null,"[V01]","CPU PA report ver.","CPUPAレポートバージョン","Fujitsu PA version","Fujitsu PA version"]
[null,"[V02]","Measured time","測定日時","Measured time","Measured time"]
[null,"[V03]","Node name","ノード名","Hostname","Hostname"]
[null,"[V04]","Command line","コマンドライン","Command line","Command line"]
[null,"[V05]","Spawn no.","スポーン番号","Spawn no.","Spawn no."]
[null,"[V06]","Process no.","プロセス番号","Process no.","Process no."]
[null,"[V07]","CMG no.","CMG番号","CMG no.","CMG no."]
[null,"[V08]","Measured region","計測区間名 ","Measured range","Measured range"]
[null,"[V09]","Vector length (bit)","ベクトル長 (bit)","Vector length (bit)","Vector length (bit)"]
[null,"[V10]","CPU frequency (GHz)","CPUクロック周波数 (GHz)","CPU frequency (Hz)","CPU frequency (Hz)"]
[null,"[V11]","[Power knob mode]","[パワーノブモード]","[Power knob mode]","[Power knob mode]"]
[null,"[V12]","Throttling state","HBM アクセスのスロットリング(mem)","Throttling state","Throttling state"]
[null,"[V13]","Issue state","命令発行制限(core)","Issue state","Issue state"]
[null,"[V14]","Eco state","Ecoモード","Eco state","Eco state"]
[null,"[V15]","FXA only mode","EXAのみのモード","FXA only mode","FXA only mode"]
[null,"[V16]"]
[]
["A Statistics"]
[null,"ID","Item name","説明(日本語)","参考(旧名称)","Formal name old"]
[null,null,"Statistics","統計情報","Statistics","Statistics"]
[null,"[A01]","Execution time (s)","計測対象区間の命令実行に要した時間(秒)","Execution time (s)","Execution time (s)"]
[null,"[A02]","GFLOPS","1秒あたりに実行された浮動小数点演算数","GFLOPS","GFLOPS\n(=Giga Floating-point operation per second)"]
[null,"[A03]","Floating-point operation peak ratio (%)","浮動小数点演算性能の理論値に対する実測値の比率 (%)","Floating-point operation peak ratio (%)","Floating-point operation peak ratio"]
[null,"[A04]","Memory throughput (GB/s)","メモリースループット (GB/s) ","Memory throughput (GB/s)","Memory throughput (GB/s)"]
[null,"[A05]","Memory throughput peak ratio (%)","メモリースループットの理論値に対する実測値の比率 (%)","Memory throughput peak ratio (%)","Memory throughput peak ratio (%)"]
[null,"[A06]","Effective instruction","実行された命令の総数 (MOVPRFX命令は含まない) ","Effective instruction"]
[null,"[A07]","Floating-point operation","実行された浮動小数点演算の総数","Floating-point operation","Floating-point operation"]
[null,"[A08]","SIMD instruction rate (%) (/Effective instruction)","実行された命令の総数に対するSIMD命令数の比率 (%)","SIMD instruction rate (%) (/Effective instruction)","SIMD instruction rate\n(/Effective instruction)"]
[null,"[A09]","SVE operation rate (%)","実行された浮動小数点演算の総数に対するSVE演算数の比率 (%)","SVE operation rate (%)"]
[null,"[A10]","Floating-point pipeline Active element rate (%)","浮動小数点演算におけるActive elementの比率 (%)","Floating-point pipeline Active element rate (%)"]
[null,"[A11]","IPC","1サイクルあたりに実行された命令数","IPC","IPC\n(=Instruction per cycle)"]
[null,"[A12]","GIPS","1秒あたりに実行された命令数","GIPS","GIPS\n(=Giga instruction per second)"]
[null,"Graph A.","Statistics","統計情報","Statistics","Statistics"]
[]
["B Cycle Accounting"]
[null,"ID","Item name","説明(日本語)","参考(旧名称)","Formal name old"]
[null,null,"Cycle Accounting","サイクルアカウンティング",null,"Cycle accounting"]
[null,"Lv2取り(★★)"]
[null,"[B01]","Prefetch port busy wait","プリフェッチポートがビジーであるために完了命令数が0であった時間","No instruction commit because PFP(prefetch port) is full","Memory cache busy wait"]
[null,"[B02-B08]","Memory access wait & Cache access wait","メモリーアクセス待ち、およびキャッシュアクセス待ちのために完了命令数が0であった時間","Memory access wait & Cache access wait","Memory access wait & \nCache access wait"]
[null,"[B09-B10]","Operation wait","実行中の命令の中で一番古い命令が、演算実行中のために完了命令数が0であった時間","Operation wait","Operation wait"]
[null,"[B11-B12]","Other wait","その他の要因によって完了命令数が0であった時間","Other wait","Other wait"]
[null,"[B13]","Store port busy wait","ストアポートがフルであるために完了命令数が0であった時間","Store port busy wait","Store wait"]
[null,"[B14]","Instruction fetch wait","命令の読み込み待ちのために完了命令数が0であった時間","Instruction fetch wait","Instruction fetch wait"]
[null,"[B15]","Barrier synchronization wait","WFE命令もしくはWFI命令により命令制御部が停止しているために完了命令数が0であった時間","Barrier synchronization wait","Barrier synchronization wait"]
[null,"[B16]","1 instruction commit","1サイクルに1命令実行した時間","1 instruction commit"]
[null,"[B17-B20]","Other instruction commit","1サイクルに2～8命令実行した時間","Other instruction commit","Other instruction commit\n(Other instruction commit without 4 instruction commit)"]
[null,"[B21]","Total","全体の時間","Total","Total"]
[null,"ID","Item name","説明(日本語)","参考(旧名称)","Formal name old"]
[null,"Lv3取り(★★★)"]
[null,"[B01]","Prefetch port busy wait by hardware prefetch","ハードウェアプリフェッチによるプリフェッチポートのビジー待ちのために完了命令数が0であった時間","No instruction commit because PFP(prefetch port) is full by hardware  prefetch","Memory cache busy wait"]
[null,"[B02]","Prefetch port busy wait by software prefetch","ソフトウェアプリフェッチによるプリフェッチポートのビジー待ちのために完了命令数が0であった時間","No instruction commit because PFP(prefetch port) is full by software  prefetch"]
[null,"[B03]","Integer load memory access wait","実行中の命令の中で一番古い命令が整数ロードのメモリーアクセスによるデータ待ちのために完了命令数が0であった時間","No instruction commit due to memory access for an integer load instruction","Integer load memory access wait"]
[null,"[B04]","Floating-point load memory access wait","実行中の命令の中で一番古い命令が浮動小数点ロードのメモリーアクセスによるデータ待ちのために完了命令数が0であった時間","No instruction commit due to memory access for a floating-point load instruction","Floating-point load memory access wait"]
[null,"[B05]","Integer load L2 cache access wait","実行中の命令の中で一番古い命令が整数ロードの2次キャッシュアクセスによるデータ待ちのために完了命令数が0であった時間","No instruction commit due to L2 cache access for an integer load instruction","Integer load L2 cache access wait"]
[null,"[B06]","Integer load L1D cache access wait","実行中の命令の中で一番古い命令が整数ロードの1次データキャッシュアクセスによるデータ待ちのために完了命令数が0であった時間","No instruction commit due to L1D cache access for an integer load instruction","Integer load L1D cache access wait"]
[null,"[B07]","Floating-point load L2 cache access wait","実行中の命令の中で一番古い命令が浮動小数点ロードの2次キャッシュアクセスによるデータ待ちのために完了命令数が0であった時間","No instruction commit due to L2 cache for a floating-point load instruction","Floating-point load L2 cache access wait"]
[null,"[B08]","Floating-point load L1D cache access wait (*)","実行中の命令の中で一番古い命令が浮動小数点ロードの1次データキャッシュアクセスによるデータ待ちのために完了命令数が0であった時間","No instruction commit due to L1D cache for a floating-point load instruction","Floating-point load L1D cache access wait"]
[null,"[B09]","Integer operation wait","実行中の命令の中で一番古い命令が整数演算実行中のために完了命令数が0であった時間","No instruction commit waiting for an integer operation to be completed","Integer operation wait"]
[null,"[B10]","Floating-point operation wait","実行中の命令の中で一番古い命令が浮動小数点演算実行中のために完了命令数が0であった時間","No instruction commit waiting for a floating-point operation to be completed","Floating-point operation wait"]
[null,"[B11]","Branch instruction wait","実行中の命令の中で一番古い命令が分岐実行中のために完了命令数が0であった時間","No instruction commit waiting for a branch instruction to be completed","Branch instruction wait"]
[null,"[B12]","Other wait","その他の要因によって完了命令数が0であった時間","No instruction commit for other reasons","Other waits"]
[null,"[B13]","Store port busy wait","ストアポートがフルであるために完了命令数が0であった時間","No instruction commit because SP(store port) is full","Store wait"]
[null,"[B14]","Instruction fetch wait","命令の読み込み待ちのために完了命令数が0であった時間","No instruction commit waiting for an instruction to be fetched","Instruction fetch wait"]
[null,"[B15]","Barrier synchronization wait","WFE命令もしくはWFI命令により命令制御部が停止しているために完了命令数が0であった時間","Synchronous waiting time between threads","Barrier synchronization wait"]
[null,"[B16]","1 instruction commit","1サイクルに1命令実行した時間","One instruction commit","1 instruction commit"]
[null,"[B17]","2 instruction commit","1サイクルに2命令実行した時間","Two instructions commit","2 instruction commit"]
[null,"[B18]","3 instruction commit","1サイクルに3命令実行した時間","Three instructions commit","3 instruction commit"]
[null,"[B19]","4 instruction commit","1サイクルに4命令実行した時間","Four  instructions commit","4 instruction commit"]
[null,"[B20]","Other instruction commit","1サイクルに5～8命令実行した時間","Other instruction commit","Other instruction commit\n(※5-8 instruction commit)"]
[null,"[B21]","Total","全体の時間","Total","Total"]
[null,"Graph B.","Execution time","実行時間の内訳","Execution time","Breakdown of execution time\n(※『of』が必要と思われる。もしくは、 「Execution time breakdown」)"]
[]
["C busy"]
[null,"ID","Item name","説明(日本語)","参考(旧名称)","Formal name old"]
[null,null,"Busy","ビジー率(%)",null,"Busy"]
[null,"[C01]","Floating-point operation pipeline A busy rate (%)","浮動小数点演算パイプラインAのビジー率 (%)","Floating-point operation pipeline A busy rate (%)","Floating-point A pipeline busy rate"]
[null,"[C02]","Floating-point operation pipeline B busy rate (%)","浮動小数点演算パイプラインBのビジー率 (%)","Floating-point operation pipeline B busy rate (%)","Floating-point B pipeline busy rate"]
[null,"[C03]","Integer operation pipeline A busy rate (%)","整数演算パイプラインAのビジー率 (%)","Integer operation pipeline A busy rate (%)","Fixed-point A pipeline busy rate"]
[null,"[C04]","Integer operation pipeline B busy rate (%)","整数演算パイプラインBのビジー率 (%)","Integer operation pipeline B busy rate (%)","Fixed-point B pipeline busy rate"]
[null,"[C05]","L1 busy rate (%)","1次キャッシュのビジー率 (%)","L1 busy rate (%)","L1 busy rate"]
[null,"[C06]","L2 busy rate (%)","2次キャッシュのビジー率 (%)","L2 busy rate (%)","L2 busy rate"]
[null,"[C07]","Memory busy rate (%)","メモリーのビジー率 (%)","Memory busy rate (%)","Memory busy rate"]
[null,"[C08]","Address calculation operation pipeline A busy rate (%)","アドレス計算用演算パイプラインAのビジー率 (%)","Address calculation operation pipeline A busy rate (%)","Virtual address A pipeline busy rate"]
[null,"[C09]","Address calculation operation pipeline B busy rate (%)","アドレス計算用演算パイプラインBのビジー率 (%)","Address calculation operation pipeline B busy rate (%)","Virtual address B pipeline busy rate"]
[null,"[C10]","Floating-point pipeline A Active element rate (%)","浮動小数点演算パイプラインAにおけるActive elementの比率 (%)","Floating-point pipeline A Active element rate (%)","True FLA predicate"]
[null,"[C11]","Floating-point pipeline B Active element rate (%)","浮動小数点演算パイプラインBにおけるActive elementの比率 (%)","Floating-point pipeline B Active element rate (%)","True FLB predicate"]
[null,"[C12]","L1 pipeline 0 Active element rate (%)","L1パイプライン0におけるActive elementの比率 (%)","L1 pipeline 0 Active element rate (%)","predicate true rate 1 of PIPE0 predicate"]
[null,"[C13]","L1 pipeline 1 Active element rate (%)","L1パイプライン1におけるActive elementの比率 (%)","L1 pipeline 1 Active element rate (%)","predicate true rate 1 of PIPE1 predicate"]
[null,"[C14]","SFI(Store Fetch Interlock) rate","SFI(Store Fetch Interlock)による待ち時間の比","SFI(Store Fetch Interlock) rate (%)(/Cycle Count)"]
[null,"Graph C","(/cycle)",null,null,"Busy rate"]
[]
["D Cache"]
[null,"ID","Item name","説明(日本語)","参考(旧名称)","Formal name old"]
[null,null,"Cache","キャッシュ情報","Cache","Cache"]
[null,"[D01]","L1I miss rate (/Effective instruction)","実行された命令の総数に対する1次命令キャッシュミスの比","L1I miss rate (%) (/Effective instruction)","L1I miss rate\n(/Effective instruction)"]
[null,"[D02]","Load-store instruction","ロード・ストア命令数","Load-store instruction","Load-store instruction"]
[null,"[D03]","L1D miss","1次データキャッシュミス数","L1D miss","L1D miss"]
[null,"[D04]","L1D miss rate (/Load-store instruction)","ロード・ストア命令数に対する、1次データキャッシュミスの比","L1D miss rate (%) (/Load-store instruction)","L1D miss rate\n(/Load-store instruction)"]
[null,"[D05]","L1D miss demand rate (%) (/L1D miss)","1次データキャッシュミスのうち、デマンドアクセスによる1次データキャッシュミスの比率 (%)","L1D miss demand rate (%) (/L1D miss)","L1D miss dm rate (/L1D miss)"]
[null,"[D06]","L1D miss hardware prefetch rate (%) (/L1D miss)","1次データキャッシュミスのうち、ハードウェアプリフェッチによる1次データキャッシュミスの比率 (%)","L1D miss hardware prefetch rate (%) (/L1D miss)","L1D miss hwpf rate (/L1D miss)"]
[null,"[D07]","L1D miss software prefetch rate (%) (/L1D miss)","1次データキャッシュミスのうち、ソフトウェアプリフェッチによる1次データキャッシュミスの比率 (%)","L1D miss software prefetch rate (%) (/L1D miss)","L1D miss swpf rate (/L1D miss)"]
[null,"[D08]","L2 miss","2次キャッシュミス数","L2 miss","L2 miss"]
[null,"[D09]","L2 miss rate (/Load-store instruction)","ロード・ストア命令数に対する、2次キャッシュミスの比","L2 miss rate (%) (/Load-store instruction)","L2 miss rate\n(/Load-store instruction)"]
[null,"[D10]","L2 miss demand rate (%) (/L2 miss)","2次キャッシュミスのうち、デマンドアクセスによる2次キャッシュミスの比率 (%)","L2 miss demand rate (%) (/L2 miss)","L2 miss dm rate (/L2 miss)"]
[null,"[D11]","L2 miss hardware prefetch rate (%) (/L2 miss)","2次キャッシュミスのうち、ハードウェアプリフェッチによる2次キャッシュミスの比率 (%)","L2 miss hardware prefetch rate (%) (/L2 miss)","L2 miss hwpf rate (/L2 miss)"]
[null,"[D12]","L2 miss software prefetch rate (%) (/L2 miss)","2次キャッシュミスのうち、ソフトウェアプリフェッチによる2次キャッシュミスの比率 (%)","L2 miss software prefetch rate (%) (/L2 miss)","L2 miss swpf rate (/L2 miss)"]
[null,"[D13]","L1D TLB miss rate (/Load-store instruction)","ロード・ストア命令数に対する、L1D TLBミスの比","L1D TLB miss rate (%) (/Load-store instruction)","L1D TLB miss rate\n（/Load-store instruction）"]
[null,"[D14]","L2D TLB miss rate (/Load-store instruction)","ロード・ストア命令数に対する、L2D TLBミスの比","L2D TLB miss rate (%) (/Load-store instruction)","L2D TLB miss rate\n（/Load-store instruction）"]
[null,"[D??]","Non-contiguous gather load instruction rate (%) ( /Load-store instruction)","非連続ギャザーロード命令率 (/ロード・ストア数)","Non-contiguous gather load instruction rate (%) (/Load-store instruction)","Gather load\n(/Load-store instruction)"]
[null,"[D??]","Non-contiguous scatter store instruction rate (%) ( /Load-store instruction)","非連続スキャッターストア命令率 (/ロード・ストア数)","Non-contiguous scatter store instruction rate (%) ( /Load-store instruction)","Scatter store\n(/Load-store instruction)"]
[null,"[D??]","Prefetch rate (%) (/Load-store instruction)","プリフェッチ命令率 (/ロード・ストア数)","Prefetch rate (%) (/Load-store instruction)","Prefetch (All)\n（/Load-store instruction）"]
[null,"GraphD-1","L1D,L2 cache miss rate (/Load-store instruction)","L1D,L2キャッシュミス率(/ロード・ストア数)","L1D,L2 cache miss rate (/Load-store instruction)","L1D,L2 Cache miss\n(/Load-store instruction)"]
[null,"GraphD-2","L1D,L2 cache miss items(/miss)","L1D,L2キャッシュミス率","L1D,L2 cache miss items(/miss)","L1D,L2 Cache miss"]
[]
["E Instruction"]
[null,"ID","Item name","説明(日本語)","参考(旧名称)","Formal name old"]
[null,null,"Instruction","命令数","Instruction","Instruction"]
[null,"- (上段★★)"]
[null,"[E01-E14]","Load-store instruction","ロード・ストア命令","Load-store instruction","Load-store instruction"]
[null,"[E15-E17]","Prefetch instruction","プリフェッチ命令","Prefetch instruction","Prefetch instruction"]
[null,"[E18]","DCZVA instruction","DCZVA命令","DCZVA instruction","Block zero instruction"]
[null,"[E19-E21]","Floating-point instruction","浮動小数点演算命令","Floating-point instruction","Floating-point instruction"]
[null,"[E22-E23]","Floating-point move and conversion instruction","浮動小数点移動変換命令","Floating-point move and conversion instruction","Supplementary floating-point\n※適訳がいまいち分からない。\n東京チューニングガイドなどよると、\n数学関数補助演算イベント=SVE_MATH_SPEC"]
[null,"[E24]","Integer instruction","整数演算命令","Integer instruction","Integer instruction"]
[null,"[E25]","Branch instruction","分岐命令","Branch instruction","Branch instruction"]
[null,"[E26]","Predicate instruction","Predicate演算命令","Predicate instruction","Predicate register instruction"]
[null,"[E27]","Crypto-graphic instruction","暗号命令","Cryptographic instruction","Cryptographic instruction"]
[null,"[E28]","Other instruction","その他の命令","Other instructions","Other instructions"]
[null,"[E29]","Total","全命令数(MOVPRFX命令は含まない)","Effective instruction","Effective instruction"]
[null,"ID","Item name","説明(日本語)","参考(旧名称)","Formal name old"]
[null,"- (中段1★★)"]
[null,"[E01-E07]","Load instruction","ロード命令","Load instruction","LD"]
[null,"[E09-E14]","Store instruction","ストア命令","Store instruction","ST"]
[null,"ID","Item name","説明(日本語)","参考(旧名称)","Formal name old"]
[null,"- (中段2★★)"]
[null,"[E01-E07]","SIMD","SIMD命令","SIMD instruction","SIMD"]
[null,"[E08]","Non-SIMD","非SIMD命令","Non-SIMD instruction","Non-SIMD"]
[null,"[E09-E13]","SIMD","SIMD命令","SIMD instruction","SIMD"]
[null,"[E14]","Non-SIMD","非SIMD命令","Non-SIMD instruction","Non-SIMD"]
[null,"ID","Item name","説明(日本語)","参考(旧名称)","Formal name old"]
[null,"- (下段★★)"]
[null,"[E01]","Single vector contiguous load instruction","SIMD連続ロード命令数","Single vector contiguous load instruction","Floating-point load instruction"]
[null,"[E02]","Multiple vector contiguous structure load instruction","SIMD連続ストラクチャーロード命令数","Multiple vector contiguous structure load instruction","structure load instruction"]
[null,"[E03]","Non-contiguous gather load instruction","非連続ギャザーロード命令数","Non-contiguous gather load instruction","gather load instruction"]
[null,"[E04]","Broadcast load instruction","ブロードキャストロード命令数","Broadcast load instruction","Broadcast load instruction"]
[null,"[E05]","Floating-point register fill instruction","浮動小数点レジスターへのFill命令数","Fill instruction","SVE fill instruction"]
[null,"[E06]","Predicate register fill instruction","PredicateレジスターへのFill命令数"]
[null,"[E07]","First-fault load instruction","First-faultロード命令数","First-fault load instruction","Fault load instruction"]
[null,"[E08]","Non-SIMD load instruction","非SIMDロード命令数","Non-SIMD load instruction","Load instruction"]
[null,"[E09]","Single vector contiguous store instruction","SIMD連続ストア命令数","Single vector contiguous store instruction","Floating-point store instruction"]
[null,"[E10]","Multiple vector contiguous structure store instruction","SIMD連続ストラクチャーストア命令数","Multiple vector contiguous structure store instruction","structure store instruction"]
[null,"[E11]","Non-contiguous scatter store instruction","非連続スキャッターストア命令数","Non-contiguous scatter store instruction","scatter store instruction"]
[null,"[E12]","Floating-point register spill instruction","浮動小数点レジスターからのSpill命令数","Spill instruction","SVE spill instruction"]
[null,"[E13]","Predicate register spill instruction","PredicateレジスターからのSpill命令数"]
[null,"[E14]","Non-SIMD store instruction","非SIMDストア命令数","Non-SIMD store instruction","Store instruction"]
[null,"[E15]","Contiguous prefetch instruction","連続プリフェッチ命令数","Continuous prefetch instruction","Continuous prefetch instruction"]
[null,"[E16]","Gathering prefetch instruction","ギャザープリフェッチ命令数","Gathering prefetch instruction","Gathering prefetch instruction"]
[null,"[E17]","Scalar prefetch instruction","通常プリフェッチ命令数","Scalar prefetch instruction","Normal prefetch instruction"]
[null,"[E18]","DCZVA instruction","DCZVA命令数","DCZVA instruction","Block zero instruction"]
[null,"[E19]","Floating-point instruction except FMA and reciprocal","浮動小数点積和演算命令および浮動小数点逆数演算命令を除く浮動小数点演算命令数","Floating-point instruction","Floating-point instruction"]
[null,"[E20]","FMA instruction","浮動小数点積和演算命令数","FMA instruction","Floating-point multiply-and-add instruction"]
[null,"[E21]","Floating-point reciprocal instruction","浮動小数点逆数演算命令数","Floating-point reciprocal instruction","Floating-point reciprocal instruction"]
[null,"[E22]","Floating-point conversion instruction","浮動小数点精度変換命令数","Floating-point conversion instruction","Floating-point accuracy conversion instruction"]
[null,"[E23]","Floating-point move instruction","浮動小数点移動命令数","Floating-point move instruction","Floating-point move instruction"]
[null,"[E24]","Integer instruction","整数演算命令数","Integer instruction","Integer instruction"]
[null,"[E25]","Branch instruction","分岐命令数","Branch instruction","Branch instruction"]
[null,"[E26]","Predicate instruction","Predicate演算命令数","Predicate instruction","Predicate register instruction"]
[null,"[E27]","Crypto-graphic instruction","暗号命令数","Cryptographic instruction","Cryptographic instruction"]
[null,"[E28]","Other instruction","その他の命令数","Other instruction","Other instruction"]
[null,"[E29]","Total","全命令数(MOVPRFX命令は含まない)","Total","Effective instruction"]
[null,"[E01,E02,E04-E07]\n(Lv2)","SIMD load instruction except gather load","ギャザーロード命令を除くSIMDロード命令数","SIMD load instruction","SIMD LD",null,"簡易(Lv2)"]
[null,"[E09,E10,E12,E13]\n(Lv2)","SIMD store instruction except scatter store","スキャッターストア命令を除くSIMDストア命令数","SIMD store instruction","SIMD ST",null,"簡易(Lv2)"]
[null,"[E05,E06]\n(Lv2+)","Fill instruction","Fill命令数",null,null,null,"標準(Lv2+)"]
[null,"[E12,E13]\n(Lv2+)","Spill instruction","Spill命令数",null,null,null,"標準(Lv2+)"]
[]
["F FLOPS"]
[null,"ID","Item name","説明(日本語)","参考(旧名称)","Formal name old"]
[null,null,"FLOPS","FLOPS",null,"FLOPS"]
[null,"[F01]","Double precision floating-point operation","倍精度浮動小数点演算数","Double precision floating-point rate","Double precision floating-point rate"]
[null,"[F02]","Single precision floating-point operation","単精度浮動小数点演算数","Single precision floating-point rate","Single precision floating-point rate"]
[null,"[F03]","Half precision floating-point operation","半精度浮動小数点演算数","Half precision floating-point rate","Half precision floating-point rate"]
[null,"[F04]","GFLOPS by Active element rate","Active elementの比率を加味した浮動小数点演算性能","GFLOPS by Active element rate","GFLOPS value used by \npredicate mask information"]
[]
["G Extra"]
[null,"ID","Item name","説明(日本語)","参考(旧名称)","Formal name old"]
[null,null,"Extra","Extra",null,"Extra"]
[null,"[G01-G03]","Gather instruction rate (%)","Gather率 (%)",null,"Gather rate (%)"]
[null,"[G04-G??]","Instruction","命令数",null,"Instruction"]
[null,"[G??-G??]","Rate (%)","比率 (%)",null,"Rate (%)"]
[null,"ID","Item name","説明(日本語)","参考(旧名称)","Formal name old"]
[null,"[G15-G17]","Gather","Gather",null,"Gather"]
[null,null,"Scatter","Scatter",null,"Scatter"]
[null,"[G01-G02]","Fill","fill",null,"fill"]
[null,"[G03-G04]","Spill","spill",null,"spill"]
[null,"ID","Item name","説明(日本語)","参考(旧名称)","Formal name old"]
[null,"[G01]","0 flow rate (%)","ギャザー命令のうちInactive elementであるために0フロー実行となった命令の比率 (%)","Gather instruction 0 flow rate (%)","Rate that becomes 0 flow "]
[null,"[G02]","1 flow rate (%)","ギャザー命令のうち1フロー実行となった命令の比率 (%)","Gather instruction 1 flow rate (%)","Rate that becomes 1 flow"]
[null,"[G03]","2 flows rate (%)","ギャザー命令のうち2フロー実行となった命令の比率 (%)","Gather instruction 2 flows rate (%)","Rate that becomes 2 flow"]
[null,"[G04]","Micro-operation instruction","マイクロ命令数","Micro-operation instruction","Micro-operation instruction"]
[null,"[G05]","Element manipulated instruction","要素間操作命令数","Element manipulated instruction","Operation between elements instruction"]
[null,"[G06]","Register manipulated instruction","レジスター間操作命令数","Register manipulated instruction","Between register instruction"]
[null,"[G07]","MOVPRFX instruction","MOVPRFX命令数","MOVPRFX instruction","MOVPRFX instruction"]
[null,"[G08]","Math functional instruction","数学関数補助演算命令数","Math functional instruction","Math accelerator instruction"]
[null,"[G09]","Micro decomposition instruction rate (%)","マイクロ命令分解率 (%)","Micro decomposition rate (%)","Micro decomposition"]
[null,"[G10]","Branch prediction miss rate (%)","分岐予測ミス率 (%)","Branch prediction miss rate (%)","Branch predication miss rate"]
[null,"[G??]","Predicate register fill instruction","Predicate レジスタfill 命令数","Predicate register fill instruction","Predicate register fill instruction"]
[null,"[G??]","Floating-point register fill instruction","浮動小数点レジスタfill 命令数","Floating-point register fill instruction","SVE Floating-point register fill instruction"]
[null,"[G??]","Predicate register spill instruction","Predicate レジスタ spill 命令数","Predicate register spill instruction","Predicate register spill instruction"]
[null,"[G??]","Floating-point register spill instruction","浮動小数点レジスタspill 命令数","Floating-point register spill instruction","SVE Floating-point register spil instruction"]
[null,"ID","Item name","説明(日本語)","参考(旧名称)","Formal name old"]
[null,null,"Process","  プロセス",null,"Process"]
[]
["H Cycle Accounting (Extra)"]
[null,"ID","Item name","説明(日本語)","参考(旧名称)","Formal name old"]
[null,null,"Cycle Accounting (Extra)","サイクルアカウンティング (Extra)",null,"Cycle Accounting Extra"]
[]
[null,"[H01]","Micro instruction commit","マイクロ命令コミット","Micro instruction commit","Micro instruction commit"]
[null,"[H02]","MOVPRFX commit","MOVPRFX コミット","MOVPRFX commit","MOVPRFX commit"]
[]
["I Hardware Prefetch Rate (/Hardware Prefetch) (%)"]
[null,"ID","Item name","説明(日本語)","参考(旧名称)","Formal name old"]
[null,null,"Hardware Prefetch Rate (%) (/Hardware Prefetch) ","ハードウェアプリフェッチ (%)","Hardware Prefetch Rate (%) (/Hardware Prefetch) ","Hardware prefetch (%)"]
[null,"[I01-I03]","L1","L1キャッシュ","L1","L1"]
[null,"[I04-I06]","L2","L2キャッシュ","L2","L2"]
[null,"[I07]","L1/L2","L1/L2","L1/L2","L1/L2"]
[null,"ID","Item name","説明(日本語)","参考(旧名称)","Formal name old"]
[null,"[I01]","Stream mode prefetch rate","ハードウェアプリフェッチのうち、ストリームモードプリフェッチの比率","L1 stream mode prefetch rate","Stream mode prefetch rate a prefetch"]
[null,"[I02]","Injection mode allocate prefetch rate","ハードウェアプリフェッチのうち、プリフェッチインジェクションモードがALLOCATEモードであるプリフェッチの比率","L1 injection mode allocate prefetch rate","Injection mode allocate prefetch rate a prefetch"]
[null,"[I03]","Injection mode unallocate prefetch rate","ハードウェアプリフェッチのうち、プリフェッチインジェクションモードがUNALLOCATEモードであるプリフェッチの比率","L1 injection mode unallocate prefetch rate","Injection mode unallocate prefetch rate a prefetch"]
[null,"[I04]","Stream mode prefetch rate","ハードウェアプリフェッチのうち、ストリームモードプリフェッチの比率","L2 stream mode prefetch rate","Stream mode prefetch rate a prefetch"]
[null,"[I05]","Injection mode allocate prefetch rate","ハードウェアプリフェッチのうち、プリフェッチインジェクションモードがALLOCATEモードであるプリフェッチの比率","L2 injection mode allocate prefetch rate","Injection mode allocate prefetch rate a prefetch"]
[null,"[I06]","Injection mode unallocate prefetch rate","ハードウェアプリフェッチのうち、プリフェッチインジェクションモードがUNALLOCATEモードであるプリフェッチの比率","L2 injection mode unallocate prefetch rate","Injection mode unallocate prefetch rate a prefetch"]
[null,"[I07]","Other hardware prefetch","ハードウェアプリフェッチのうち、その他のプリフェッチの比率","L1/L2 other hardware prefetch","Other hardware prefetch a prefetch"]
[]
["J CMG"]
[null,"ID","Item name","説明(日本語)","参考(旧名称)","Formal name old"]
[null,null,"Data Transfer CMGs","CMG",null,"CMG"]
[null,"[J01-J07]","src","データ送信元",null,"source"]
[null,"[J01-J07]","Destination (GB/s)","データ送信先 (GB/s)",null,"destination (GB/s)"]
[null,"ID","Item name","説明(日本語)","参考(旧名称)","Formal name old"]
[null,null,"Read","Read",null,"Read data throughput(GB/s)"]
[null,null,"Write","Write",null,"Write data throughput(GB/s)"]
[null,"ID","Item name","説明(日本語)","参考(旧名称)","Formal name old"]
[null,"★Read"]
[null,"[J01-r]","Own memory","CMG0から対象CMGへのデータ転送のスループット性能 (GB/s)","CMG0 read throughput (GB/s)","CMG0"]
[null,"[J02-r]","Other memory","CMG1から対象CMGへのデータ転送のスループット性能 (GB/s)","CMG1 read throughput (GB/s)","CMG1"]
[null,"[J03-r]","CMG2","CMG2から対象CMGへのデータ転送のスループット性能 (GB/s)","CMG2 read throughput (GB/s)","CMG2"]
[null,"[J04-r]","CMG3","CMG3から対象CMGへのデータ転送のスループット性能 (GB/s)","CMG3 read throughput (GB/s)","CMG3"]
[null,"[J05-r]","Memory","メモリーから対象CMGへのデータ転送のスループット性能 (GB/s)","Memory read throughput (GB/s)","Mem"]
[null,"[J06-r]","Tofu","Tofuから対象CMGへのデータ転送のスループット性能 (GB/s)","Tofu read throughput (GB/s)","Tofu"]
[null,"[J07-r]","PCI","PCIから対象CMGへのデータ転送のスループット性能 (GB/s)","PCI read throughput (GB/s)","PCI"]
[null,"ID","Item name","説明(日本語)","参考(旧名称)","Formal name old"]
[null,"★Write"]
[null,"[J01-w]","CMG0","対象CMGからCMG0へのデータ転送のスループット性能 (GB/s)","CMG0 write throughput (GB/s)","CMG0"]
[null,"[J02-w]","CMG1","対象CMGからCMG1へのデータ転送のスループット性能 (GB/s)","CMG1 write throughput (GB/s)","CMG1"]
[null,"[J03-w]","CMG2","対象CMGからCMG2へのデータ転送のスループット性能 (GB/s)","CMG2 write throughput (GB/s)","CMG2"]
[null,"[J04-w]","CMG3","対象CMGからCMG3へのデータ転送のスループット性能 (GB/s)","CMG3 write throughput (GB/s)","CMG3"]
[null,"[J05-w]","Memory","対象CMGからメモリーへのデータ転送のスループット性能 (GB/s)","Memory write throughput (GB/s)","Mem"]
[null,"[J06-w]","Tofu","対象CMGからTofuへのデータ転送のスループット性能 (GB/s)","Tofu write throughput (GB/s)","Tofu"]
[null,"[J07-w]","PCI","対象CMGからPCIへのデータ転送のスループット性能 (GB/s)","PCI write throughput (GB/s)","PCI"]
[]
["K Power Consumption"]
[null,"ID","Item name","説明(日本語)","参考(旧名称)","Formal name old"]
[null,null,"Power Consumption (W)","Power Consumption (W)","Power Consumption (W)","Electric Power"]
[null,"[K01]","Power consumption used by core","コアで消費される電力","Electric power used by core","Electric power used by core"]
[null,"[K02]","Power consumption used by L2 cache","L2キャッシュで消費される電力","Electric power used by L2 cache","Electric power used by L2 cache"]
[null,"[K03]","Power consumption used by memory","メモリーで消費される電力(1CMGに換算した値)","Electric power used by Memory","Electric power used by Memory"]
[null,"Graph K","Power Consumption","電力の内訳","Electric Power","Breakdown of Electric Power"]
[]
["L Variation of Time"]
[null,"ID","Item name","説明(日本語)","参考(旧名称)","Formal name old"]
[null,null,"Variation of Time","1回目の実行時間との比率（性能比） ","Time in section.","Breakdown of time in section."]
[null,"[L01]","Base Time (s)","基準実行時間 (s)",null,"Most left Time(s)"]
[null,"[L02]","statistics","statistics",null,"Statistics"]
[null,"[L03]","cycleaccounting1","cycleaccounting2",null,"Cycle1"]
[null,"[L04]","busy1","busy1",null,"Busy1"]
[null,"[L05]","cache1","cache1",null,"Cache1"]
[null,"[L06]","instruction1","instruction2",null,"Inst1"]
[null,"[L07]","cycleaccounting2","cycleaccounting2",null,"Cycle2"]
[null,"[L08]","cycleaccounting3","cycleaccounting3",null,"Cycle3_EP"]
[null,"[L09]","busy2","busy2",null,"Busy2"]
[null,"[L10]","cache2","cache2",null,"Cache2"]
[null,"[L11]","instruction2","instruction2",null,"Inst2"]
[null,"[L12]","instruction3","instruction3",null,"Inst3"]
[null,"[L13]","cycleaccountingex","cycleaccountingex",null,"CycleExt"]
[null,"[L14]","hardwareprefetch","hardwareprefetch",null,"Hardpref"]
[null,"[L15]","extra1","extra1",null,"InstExt1"]
[null,"[L16]","extra2","extra2",null,"InstExt2"]
[null,"[L17]","CMG1","CMG1",null,"CMG1"]
[null,"[L18]","CMG2","CMG2",null,"CMG2"]
[null,"ID","Item name","説明(日本語)","参考(旧名称)","Formal name old"]
[null,null,"イベントセット名(短縮名称)"]
[null,"[L01]","-"]
[null,"[L02]","pa1"]
[null,"[L03]","pa2"]
[null,"[L04]","pa3"]
[null,"[L05]","pa4"]
[null,"[L06]","pa5"]
[null,"[L07]","pa6"]
[null,"[L08]","pa7"]
[null,"[L09]","pa8"]
[null,"[L10]","pa9"]
[null,"[L11]","pa10"]
[null,"[L12]","pa11"]
[null,"[L13]","pa12"]
[null,"[L14]","pa13"]
[null,"[L15]","pa14"]
[null,"[L16]","pa15"]
[null,"[L17]","pa16"]
[null,"[L18]","pa17"]
[]
["M Mean Time"]
[null,"ID","Item name","説明(日本語)","参考(旧名称)","Formal name old"]
[null,null,"Mean Time"]
[null,"[M01]","Count","測定区間を実行した回数","Count","Count"]
[null,"[M02]","Mean time (s)","平均時間 (s)","Mean time (s)","Mean time (s)"]
[]
["N Balance"]
[null,"ID","Item name","説明(日本語)","参考(旧名称)","Formal name old"]
[null,null,"Balance","バランス情報",null,"Balance"]
[null,"[N01]","Load balance","ロードバランス","Load balance","Load balance"]
[null,"[N02]","Instruction balance","命令バランス","Instruction balance","Instruction balance"]
[null,"GraphN-1","Load balance","ロードバランス","Load balance","Load balance"]
[null,"GraphN-2","Instruction balance","命令バランス","Instruction balance","Instruction balance"]
[]
["O Cycle Count"]
[null,"ID","Item name","説明(日本語)","参考(旧名称)","Formal name old"]
[null,null,"Cycle Count"]
[null,"[O01]","pa1"]
[null,"[O02]","pa2"]
[null,"[O03]","pa3"]
[null,"[O04]","pa4"]
[null,"[O05]","pa5"]
[null,"[O06]","pa6"]
[null,"[O07]","pa7"]
[null,"[O08]","pa8"]
[null,"[O09]","pa9"]
[null,"[O10]","pa10"]
[null,"[O11]","pa11"]
[null,"[O12]","pa12"]
[null,"[O13]","pa13"]
[null,"[O14]","pa14"]
[null,"[O15]","pa15"]
[null,"[O16]","pa16"]
[null,"[O17]","pa17"]